Directorate,Department,Expenditure Type,Ref.Doc.1,Vendor Name,Expenditure Amount (exc VAT),Payment Date
Assurance,Assurance,Advertising,60032602,ASSOCIATION OF DEMOCRATIC SERVICES OFFIC,400,21/10/2015
Assurance,Assurance,Advertising,60030742,LONDON WEEKLY NEWSPAPERS LTD,650,08/10/2015
Assurance,Assurance,Advertising,60024561,NEWSQUEST (LONDON) LIMITED,198.84,08/10/2015
Assurance,Assurance,Advertising,60024878,NEWSQUEST (LONDON) LIMITED,198.84,08/10/2015
Assurance,Assurance,Consultants Fees,60032784,GOLDSMITH CONSULTING & MEDIATION LTD,225,07/10/2015
Assurance,Assurance,Consultants Fees,60035931,LAIOG UK,246,28/10/2015
Assurance,Assurance,Fees and Charges,20023936,THE ROYAL BANK OF SCOTLAND GROUP PLC,60,06/10/2015
Assurance,Assurance,General Office Expenses,40001056,OFFICE DEPOT UK LTD,0.8,02/10/2015
Assurance,Assurance,General Office Expenses,40001081,OFFICE DEPOT UK LTD,1.8,26/10/2015
Assurance,Assurance,General Office Expenses,40001074,OFFICE DEPOT UK LTD,7.33,26/10/2015
Assurance,Assurance,General Office Expenses,40001073,OFFICE DEPOT UK LTD,8.09,26/10/2015
Assurance,Assurance,General Office Expenses,40001112,OFFICE DEPOT UK LTD,11,26/10/2015
Assurance,Assurance,General Office Expenses,20023950,ROYAL BRITISH LEGION POPPY APPEAL,505.75,06/10/2015
Assurance,Assurance,Legal and Court Fees,10012784,THOMPSON SOLICITORS,291.67,30/10/2015
Assurance,Assurance,Miscellaneous Expenses,60031047,ELECTORAL REFORM SERVICES,"4,010.24",09/10/2015
Assurance,Assurance,Miscellaneous Expenses,60034815,ELECTORAL REFORM SERVICES,"82,472.43",22/10/2015
Assurance,Assurance,Other Indirect Employee Expens,20025141,FINCHLEY&FRIERN BARNET OPERATIC SOCIETY,30,20/10/2015
Assurance,Assurance,Other Indirect Employee Expens,20025078,REDACTED - PERSONAL DATA,350,16/10/2015
Assurance,Assurance,Other Indirect Employee Expens,20025430,TS ISIS WARDROOM MESS ACCOUNT,42,27/10/2015
Assurance,Assurance,Other Services,60034824,ELECTORAL REFORM SERVICES,626.52,29/10/2015
Assurance,Assurance,Other Services,60035990,ELECTORAL REFORM SERVICES,"4,860.67",29/10/2015
Assurance,Assurance,Other Services,60034765,REDACTED - PERSONAL DATA,635,30/10/2015
Assurance,Assurance,Postage,60031359,ROYAL MAIL GROUP LIMITED,1.48,05/10/2015
Assurance,Assurance,Postage,60027736,ROYAL MAIL GROUP LIMITED,2.45,13/10/2015
Assurance,Assurance,Postage,60031379,ROYAL MAIL GROUP LIMITED,4.44,06/10/2015
Assurance,Assurance,Postage,60031431,ROYAL MAIL GROUP LIMITED,79.01,09/10/2015
Assurance,Assurance,Postage,60031124,ROYAL MAIL GROUP LIMITED,146.27,09/10/2015
Assurance,Assurance,Postage,60030777,ROYAL MAIL GROUP LIMITED,764.8,07/10/2015
Assurance,Assurance,Postage,60032414,ROYAL MAIL GROUP LIMITED,"1,755.48",06/10/2015
Assurance,Assurance,Postage,60036012,ROYAL MAIL GROUP LIMITED,"2,036.08",28/10/2015
Assurance,Assurance,Printing-Contract,60016799,NEWSQUEST (LONDON) LIMITED,198.84,09/10/2015
Assurance,Assurance,Professional Services,60026730,ELECTORAL REFORM SERVICES,"1,981.05",13/10/2015
Assurance,Assurance,Stationery,40001078,OFFICE DEPOT UK LTD,1.42,26/10/2015
Assurance,Assurance,Stationery,40001123,OFFICE DEPOT UK LTD,65.74,26/10/2015
Assurance,Assurance,Subscriptions,60032047,CIPFA BUSINESS LIMITED,"1,375.00",14/10/2015
Assurance,Assurance,Subscriptions,60032595,NATIONAL CRIME AGENCY,120,16/10/2015
Assurance,Assurance,Subscriptions,60032589,NATIONAL CRIME AGENCY,480,16/10/2015
Assurance,Assurance,Training,60035936,ITS TRAINING (UK) LTD,"2,733.00",28/10/2015
Assurance,Assurance,Ttl IT & Comms,60032067,BRITISH TELECOM PLC,"7,307.00",13/10/2015
Central Expenses,Central Expenses,Audit Fee,60034452,GRANT THORNTON UK LLP,"57,325.00",28/10/2015
Central Expenses,Central Expenses,Grant Payments,20025472,TRANSPORT FOR LONDON,"108,504.70",29/10/2015
Central Expenses,Central Expenses,Insurance Claims,20024000,ALBANY ASSISTANCE LTD,"2,517.56",06/10/2015
Central Expenses,Central Expenses,Insurance Claims,80001169,ALBANY ASSISTANCE LTD,"3,061.27",14/10/2015
Central Expenses,Central Expenses,Insurance Claims,20024861,BERRYMANS LACE MAWER,"3,606.50",09/10/2015
Central Expenses,Central Expenses,Insurance Claims,20023998,CENTRAL LONDON COMMUNITY HEALTHCARE,10,06/10/2015
Central Expenses,Central Expenses,Insurance Claims,60034499,CHARLES DUKES ASSESSORS,60,20/10/2015
Central Expenses,Central Expenses,Insurance Claims,60022981,CITY SUBURBAN TREE SURGEONS LTD,"1,161.72",20/10/2015
Central Expenses,Central Expenses,Insurance Claims,60029475,CLYDE & CO LLP,"1,570.00",01/10/2015
Central Expenses,Central Expenses,Insurance Claims,80001194,DANEGROVE SCHOOL,"9,965.00",20/10/2015
Central Expenses,Central Expenses,Insurance Claims,20023993,DAS LAW,"4,775.00",02/10/2015
Central Expenses,Central Expenses,Insurance Claims,80001191,DEPARTMENT FOR WORK & PENSIONS,816,16/10/2015
Central Expenses,Central Expenses,Insurance Claims,20024073,DEPARTMENT FOR WORK AND PENSIONS,"8,659.00",06/10/2015
Central Expenses,Central Expenses,Insurance Claims,80001189,DH LAW LIMITED,"33,000.00",22/10/2015
Central Expenses,Central Expenses,Insurance Claims,20025002,DIRECT LINE,150,16/10/2015
Central Expenses,Central Expenses,Insurance Claims,80001217,ENTERPRISE RENT A CAR,357.91,27/10/2015
Central Expenses,Central Expenses,Insurance Claims,20024872,ENTERPRISE RENT-A-CAR,"2,061.70",09/10/2015
Central Expenses,Central Expenses,Insurance Claims,80001220,FLEET LEGAL SOLUTIONS,"1,230.10",27/10/2015
Central Expenses,Central Expenses,Insurance Claims,60029919,GOLDING COLLIE & COMPANY,60,12/10/2015
Central Expenses,Central Expenses,Insurance Claims,20024172,GREGORY ABRAMS SOLICITORS,"18,000.00",08/10/2015
Central Expenses,Central Expenses,Insurance Claims,10012785,JOHNSON AUSTIN PARTNERSHIP LLP,600,30/10/2015
Central Expenses,Central Expenses,Insurance Claims,60028936,KENNEDYS,917,07/10/2015
Central Expenses,Central Expenses,Insurance Claims,60027566,LEGAL COSTS NEGOTIATORS,119.42,12/10/2015
Central Expenses,Central Expenses,Insurance Claims,60028899,LEGAL COSTS NEGOTIATORS,139.7,14/10/2015
Central Expenses,Central Expenses,Insurance Claims,60026247,LEGAL COSTS NEGOTIATORS,365.23,20/10/2015
Central Expenses,Central Expenses,Insurance Claims,60031144,LEGAL COSTS NEGOTIATORS,368.82,14/10/2015
Central Expenses,Central Expenses,Insurance Claims,60030544,LEGAL COSTS NEGOTIATORS,681.3,14/10/2015
Central Expenses,Central Expenses,Insurance Claims,60029692,LEGAL COSTS NEGOTIATORS,818.41,14/10/2015
Central Expenses,Central Expenses,Insurance Claims,60033211,LEGAL COSTS NEGOTIATORS,"1,065.40",14/10/2015
Central Expenses,Central Expenses,Insurance Claims,80001195,LEXELLE ASSIST,"2,215.02",23/10/2015
Central Expenses,Central Expenses,Insurance Claims,20024167,LIVERPOOL VICTORIA,"1,590.92",08/10/2015
Central Expenses,Central Expenses,Insurance Claims,20024102,MAYORS OFFICE FOR POLICING AND CRIME,27.1,06/10/2015
Central Expenses,Central Expenses,Insurance Claims,80001185,MICHAEL W HALSALL SOLICITORS,"14,000.00",16/10/2015
Central Expenses,Central Expenses,Insurance Claims,20024133,PLEXUS LAW,"6,000.00",08/10/2015
Central Expenses,Central Expenses,Insurance Claims,80001216,QUINDELL,"1,756.76",27/10/2015
Central Expenses,Central Expenses,Insurance Claims,80001187,RALLI LTD,"5,600.00",16/10/2015
Central Expenses,Central Expenses,Insurance Claims,80001182,ROMAIN COLEMAN,360,16/10/2015
Central Expenses,Central Expenses,Insurance Claims,80001184,ROYAL FREE LONDON NHS FOUNDATI,25,27/10/2015
Central Expenses,Central Expenses,Insurance Claims,80001218,RSA,890.83,27/10/2015
Central Expenses,Central Expenses,Insurance Claims,80001260,RUBICON LAW,"16,000.00",27/10/2015
Central Expenses,Central Expenses,Insurance Claims,20025001,SETH LAW SOLICITORS,"1,026.00",16/10/2015
Central Expenses,Central Expenses,Insurance Claims,20024135,SILVERBECK RYMER SOLICITORS,240,08/10/2015
Central Expenses,Central Expenses,Insurance Claims,80001167,SILVERBECK RYMER SOLICITORS,360,15/10/2015
Central Expenses,Central Expenses,Insurance Claims,60019180,THE BARNETGROUP LIMITED,"4,859.34",07/10/2015
Central Expenses,Central Expenses,Insurance Claims,60033234,THE BARNETGROUP LIMITED,"12,063.81",14/10/2015
Central Expenses,Central Expenses,Insurance Claims,60033199,THE BARNETGROUP LIMITED,"20,000.00",14/10/2015
Central Expenses,Central Expenses,Insurance Claims,20024001,UK INSURANCE LTD,"1,329.13",06/10/2015
Central Expenses,Central Expenses,Insurance Claims,20024091,WARING + CO SOLICITORS,"2,578.00",06/10/2015
Central Expenses,Central Expenses,Insurance Claims,60027171,WEIGHTMANS LLP,662.5,23/10/2015
Central Expenses,Central Expenses,Insurance Claims,60022832,WEIGHTMANS LLP,"1,320.00",12/10/2015
Central Expenses,Central Expenses,Insurance Claims,20024151,WOODLANDS MEDICAL PRACTICE,50,08/10/2015
Central Expenses,Central Expenses,Joint Authorities - Third Part,EBX0085485,NORTH LONDON WASTE AUTHORITY,"894,643.00",23/10/2015
Central Expenses,Central Expenses,Other Establishments - Third P,60033236,CITY OF LONDON,"98,666.00",06/10/2015
Central Expenses,Central Expenses,Other Establishments - Third P,EBX0083793,LEE VALLEY REGIONAL PARK AUTH.,"33,052.02",15/10/2015
Central Expenses,Central Expenses,Other Establishments - Third P,EBX0082891,LONDON PENSIONS FUND AUTHORITY,"50,154.80",09/10/2015
Central Expenses,Central Expenses,Pensions To Retired Employees,60034654,LONDON PENSIONS FUND AUTHORITY,"2,805.89",15/10/2015
Commercial,Births Deaths & Marriages,Contract Cleaning,60033841,CHURCHILL CONTRACT SERVICES,607.85,30/10/2015
Commercial,Customer Support Group,Advertising,60035862,TMP (UK) LTD,111.28,28/10/2015
Commercial,Customer Support Group,Books-CDs-Audio-Video,60035544,SM ELECTRICAL SERVICES,150,29/10/2015
Commercial,Customer Support Group,Building Cleaning Recharge,60033317,CHURCHILL CONTRACT SERVICES,644.4,30/10/2015
Commercial,Customer Support Group,Building Repairs & Maintenance,60030796,ABEL ALARM COMPANY LIMITED,396,26/10/2015
Commercial,Customer Support Group,Building Repairs & Maintenance,60034027,AJS LTD,49.5,08/10/2015
Commercial,Customer Support Group,Building Repairs & Maintenance,60035176,AJS LTD,57.75,21/10/2015
Commercial,Customer Support Group,Building Repairs & Maintenance,60033969,AJS LTD,82.5,12/10/2015
Commercial,Customer Support Group,Building Repairs & Maintenance,60033893,AJS LTD,90.75,08/10/2015
Commercial,Customer Support Group,Building Repairs & Maintenance,60033864,AJS LTD,90.75,13/10/2015
Commercial,Customer Support Group,Building Repairs & Maintenance,60035095,AJS LTD,90.75,21/10/2015
Commercial,Customer Support Group,Building Repairs & Maintenance,60035155,AJS LTD,99,23/10/2015
Commercial,Customer Support Group,Building Repairs & Maintenance,60033890,AJS LTD,107.25,08/10/2015
Commercial,Customer Support Group,Building Repairs & Maintenance,60033857,AJS LTD,115.5,08/10/2015
Commercial,Customer Support Group,Building Repairs & Maintenance,60034022,AJS LTD,132,08/10/2015
Commercial,Customer Support Group,Building Repairs & Maintenance,60035214,AJS LTD,156.75,21/10/2015
Commercial,Customer Support Group,Building Repairs & Maintenance,60035051,AJS LTD,165,21/10/2015
Commercial,Customer Support Group,Building Repairs & Maintenance,60035065,AJS LTD,165,21/10/2015
Commercial,Customer Support Group,Building Repairs & Maintenance,60035102,AJS LTD,222.75,21/10/2015
Commercial,Customer Support Group,Building Repairs & Maintenance,60035189,AJS LTD,222.75,21/10/2015
Commercial,Customer Support Group,Building Repairs & Maintenance,60035101,AJS LTD,231,21/10/2015
Commercial,Customer Support Group,Building Repairs & Maintenance,60035078,AJS LTD,312.5,22/10/2015
Commercial,Customer Support Group,Building Repairs & Maintenance,60035140,AJS LTD,312.5,22/10/2015
Commercial,Customer Support Group,Building Repairs & Maintenance,60033922,AJS LTD,400,08/10/2015
Commercial,Customer Support Group,Building Repairs & Maintenance,60033870,AJS LTD,808.5,08/10/2015
Commercial,Customer Support Group,Building Repairs & Maintenance,60035429,APT CONTROLS LTD,519,23/10/2015
Commercial,Customer Support Group,Building Repairs & Maintenance,60034586,ASBESTOS CONSULTANTS EUROPE LTD T/A ACE,750,29/10/2015
Commercial,Customer Support Group,Building Repairs & Maintenance,60034612,ASBESTOS CONSULTANTS EUROPE LTD T/A ACE,795,29/10/2015
Commercial,Customer Support Group,Building Repairs & Maintenance,60030746,DOORWAY-MAINTENANCE CO.,110,01/10/2015
Commercial,Customer Support Group,Building Repairs & Maintenance,60034429,DOORWAY-MAINTENANCE CO.,250,19/10/2015
Commercial,Customer Support Group,Building Repairs & Maintenance,60028264,DOORWAY-MAINTENANCE CO.,600,02/10/2015
Commercial,Customer Support Group,Building Repairs & Maintenance,60033914,DORMA UK LTD,324.58,22/10/2015
Commercial,Customer Support Group,Building Repairs & Maintenance,60035028,DORMA UK LTD,325.67,21/10/2015
Commercial,Customer Support Group,Building Repairs & Maintenance,60035062,DORMA UK LTD,449.37,21/10/2015
Commercial,Customer Support Group,Building Repairs & Maintenance,60031378,DORMA UK LTD,539,05/10/2015
Commercial,Customer Support Group,Building Repairs & Maintenance,60033919,EARLSWOOD INDUSTRIAL SVCS LTD,897,15/10/2015
Commercial,Customer Support Group,Building Repairs & Maintenance,60034078,FRONTIER-PITTS LTD,131.5,29/10/2015
Commercial,Customer Support Group,Building Repairs & Maintenance,10012649,FRONTIER-PITTS LTD,340,02/10/2015
Commercial,Customer Support Group,Building Repairs & Maintenance,60034096,FRONTIER-PITTS LTD,376,09/10/2015
Commercial,Customer Support Group,Building Repairs & Maintenance,60034068,FRONTIER-PITTS LTD,"1,335.50",13/10/2015
Commercial,Customer Support Group,Building Repairs & Maintenance,10012580,HERTEL (UK) LTD,-140,07/10/2015
Commercial,Customer Support Group,Building Repairs & Maintenance,60033394,HERTEL (UK) LTD,7,12/10/2015
Commercial,Customer Support Group,Building Repairs & Maintenance,60033406,HERTEL (UK) LTD,7,12/10/2015
Commercial,Customer Support Group,Building Repairs & Maintenance,60033415,HERTEL (UK) LTD,7,12/10/2015
Commercial,Customer Support Group,Building Repairs & Maintenance,60033569,HERTEL (UK) LTD,7,12/10/2015
Commercial,Customer Support Group,Building Repairs & Maintenance,60033697,HERTEL (UK) LTD,7,12/10/2015
Commercial,Customer Support Group,Building Repairs & Maintenance,60033719,HERTEL (UK) LTD,7,12/10/2015
Commercial,Customer Support Group,Building Repairs & Maintenance,60033730,HERTEL (UK) LTD,7,12/10/2015
Commercial,Customer Support Group,Building Repairs & Maintenance,60033769,HERTEL (UK) LTD,7,12/10/2015
Commercial,Customer Support Group,Building Repairs & Maintenance,60033444,HERTEL (UK) LTD,7,13/10/2015
Commercial,Customer Support Group,Building Repairs & Maintenance,60033514,HERTEL (UK) LTD,7,13/10/2015
Commercial,Customer Support Group,Building Repairs & Maintenance,60033563,HERTEL (UK) LTD,7,13/10/2015
Commercial,Customer Support Group,Building Repairs & Maintenance,60033580,HERTEL (UK) LTD,7,13/10/2015
Commercial,Customer Support Group,Building Repairs & Maintenance,60033661,HERTEL (UK) LTD,7,13/10/2015
Commercial,Customer Support Group,Building Repairs & Maintenance,60033686,HERTEL (UK) LTD,7,13/10/2015
Commercial,Customer Support Group,Building Repairs & Maintenance,60033747,HERTEL (UK) LTD,7,13/10/2015
Commercial,Customer Support Group,Building Repairs & Maintenance,60033475,HERTEL (UK) LTD,40.83,07/10/2015
Commercial,Customer Support Group,Building Repairs & Maintenance,60033515,HERTEL (UK) LTD,40.83,09/10/2015
Commercial,Customer Support Group,Building Repairs & Maintenance,60033671,HERTEL (UK) LTD,40.83,09/10/2015
Commercial,Customer Support Group,Building Repairs & Maintenance,60033678,HERTEL (UK) LTD,40.83,09/10/2015
Commercial,Customer Support Group,Building Repairs & Maintenance,60033740,HERTEL (UK) LTD,40.83,09/10/2015
Commercial,Customer Support Group,Building Repairs & Maintenance,60033302,HERTEL (UK) LTD,40.83,12/10/2015
Commercial,Customer Support Group,Building Repairs & Maintenance,60033303,HERTEL (UK) LTD,40.83,12/10/2015
Commercial,Customer Support Group,Building Repairs & Maintenance,60033304,HERTEL (UK) LTD,40.83,12/10/2015
Commercial,Customer Support Group,Building Repairs & Maintenance,60033305,HERTEL (UK) LTD,40.83,12/10/2015
Commercial,Customer Support Group,Building Repairs & Maintenance,60033310,HERTEL (UK) LTD,40.83,12/10/2015
Commercial,Customer Support Group,Building Repairs & Maintenance,60033316,HERTEL (UK) LTD,40.83,12/10/2015
Commercial,Customer Support Group,Building Repairs & Maintenance,60033318,HERTEL (UK) LTD,40.83,12/10/2015
Commercial,Customer Support Group,Building Repairs & Maintenance,60033319,HERTEL (UK) LTD,40.83,12/10/2015
Commercial,Customer Support Group,Building Repairs & Maintenance,60033320,HERTEL (UK) LTD,40.83,12/10/2015
Commercial,Customer Support Group,Building Repairs & Maintenance,60033321,HERTEL (UK) LTD,40.83,12/10/2015
Commercial,Customer Support Group,Building Repairs & Maintenance,60033323,HERTEL (UK) LTD,40.83,12/10/2015
Commercial,Customer Support Group,Building Repairs & Maintenance,60033326,HERTEL (UK) LTD,40.83,12/10/2015
Commercial,Customer Support Group,Building Repairs & Maintenance,60033328,HERTEL (UK) LTD,40.83,12/10/2015
Commercial,Customer Support Group,Building Repairs & Maintenance,60033334,HERTEL (UK) LTD,40.83,12/10/2015
Commercial,Customer Support Group,Building Repairs & Maintenance,60033343,HERTEL (UK) LTD,40.83,12/10/2015
Commercial,Customer Support Group,Building Repairs & Maintenance,60033344,HERTEL (UK) LTD,40.83,12/10/2015
Commercial,Customer Support Group,Building Repairs & Maintenance,60033345,HERTEL (UK) LTD,40.83,12/10/2015
Commercial,Customer Support Group,Building Repairs & Maintenance,60033350,HERTEL (UK) LTD,40.83,12/10/2015
Commercial,Customer Support Group,Building Repairs & Maintenance,60033356,HERTEL (UK) LTD,40.83,12/10/2015
Commercial,Customer Support Group,Building Repairs & Maintenance,60033358,HERTEL (UK) LTD,40.83,12/10/2015
Commercial,Customer Support Group,Building Repairs & Maintenance,60033359,HERTEL (UK) LTD,40.83,12/10/2015
Commercial,Customer Support Group,Building Repairs & Maintenance,60033363,HERTEL (UK) LTD,40.83,12/10/2015
Commercial,Customer Support Group,Building Repairs & Maintenance,60033367,HERTEL (UK) LTD,40.83,12/10/2015
Commercial,Customer Support Group,Building Repairs & Maintenance,60033369,HERTEL (UK) LTD,40.83,12/10/2015
Commercial,Customer Support Group,Building Repairs & Maintenance,60033371,HERTEL (UK) LTD,40.83,12/10/2015
Commercial,Customer Support Group,Building Repairs & Maintenance,60033373,HERTEL (UK) LTD,40.83,12/10/2015
Commercial,Customer Support Group,Building Repairs & Maintenance,60033374,HERTEL (UK) LTD,40.83,12/10/2015
Commercial,Customer Support Group,Building Repairs & Maintenance,60033375,HERTEL (UK) LTD,40.83,12/10/2015
Commercial,Customer Support Group,Building Repairs & Maintenance,60033379,HERTEL (UK) LTD,40.83,12/10/2015
Commercial,Customer Support Group,Building Repairs & Maintenance,60033380,HERTEL (UK) LTD,40.83,12/10/2015
Commercial,Customer Support Group,Building Repairs & Maintenance,60033381,HERTEL (UK) LTD,40.83,12/10/2015
Commercial,Customer Support Group,Building Repairs & Maintenance,60033384,HERTEL (UK) LTD,40.83,12/10/2015
Commercial,Customer Support Group,Building Repairs & Maintenance,60033390,HERTEL (UK) LTD,40.83,12/10/2015
Commercial,Customer Support Group,Building Repairs & Maintenance,60033393,HERTEL (UK) LTD,40.83,12/10/2015
Commercial,Customer Support Group,Building Repairs & Maintenance,60033398,HERTEL (UK) LTD,40.83,12/10/2015
Commercial,Customer Support Group,Building Repairs & Maintenance,60033401,HERTEL (UK) LTD,40.83,12/10/2015
Commercial,Customer Support Group,Building Repairs & Maintenance,60033410,HERTEL (UK) LTD,40.83,12/10/2015
Commercial,Customer Support Group,Building Repairs & Maintenance,60033411,HERTEL (UK) LTD,40.83,12/10/2015
Commercial,Customer Support Group,Building Repairs & Maintenance,60033413,HERTEL (UK) LTD,40.83,12/10/2015
Commercial,Customer Support Group,Building Repairs & Maintenance,60033414,HERTEL (UK) LTD,40.83,12/10/2015
Commercial,Customer Support Group,Building Repairs & Maintenance,60033422,HERTEL (UK) LTD,40.83,12/10/2015
Commercial,Customer Support Group,Building Repairs & Maintenance,60033424,HERTEL (UK) LTD,40.83,12/10/2015
Commercial,Customer Support Group,Building Repairs & Maintenance,60033430,HERTEL (UK) LTD,40.83,12/10/2015
Commercial,Customer Support Group,Building Repairs & Maintenance,60033431,HERTEL (UK) LTD,40.83,12/10/2015
Commercial,Customer Support Group,Building Repairs & Maintenance,60033432,HERTEL (UK) LTD,40.83,12/10/2015
Commercial,Customer Support Group,Building Repairs & Maintenance,60033435,HERTEL (UK) LTD,40.83,12/10/2015
Commercial,Customer Support Group,Building Repairs & Maintenance,60033436,HERTEL (UK) LTD,40.83,12/10/2015
Commercial,Customer Support Group,Building Repairs & Maintenance,60033439,HERTEL (UK) LTD,40.83,12/10/2015
Commercial,Customer Support Group,Building Repairs & Maintenance,60033440,HERTEL (UK) LTD,40.83,12/10/2015
Commercial,Customer Support Group,Building Repairs & Maintenance,60033442,HERTEL (UK) LTD,40.83,12/10/2015
Commercial,Customer Support Group,Building Repairs & Maintenance,60033445,HERTEL (UK) LTD,40.83,12/10/2015
Commercial,Customer Support Group,Building Repairs & Maintenance,60033449,HERTEL (UK) LTD,40.83,12/10/2015
Commercial,Customer Support Group,Building Repairs & Maintenance,60033450,HERTEL (UK) LTD,40.83,12/10/2015
Commercial,Customer Support Group,Building Repairs & Maintenance,60033452,HERTEL (UK) LTD,40.83,12/10/2015
Commercial,Customer Support Group,Building Repairs & Maintenance,60033457,HERTEL (UK) LTD,40.83,12/10/2015
Commercial,Customer Support Group,Building Repairs & Maintenance,60033460,HERTEL (UK) LTD,40.83,12/10/2015
Commercial,Customer Support Group,Building Repairs & Maintenance,60033462,HERTEL (UK) LTD,40.83,12/10/2015
Commercial,Customer Support Group,Building Repairs & Maintenance,60033465,HERTEL (UK) LTD,40.83,12/10/2015
Commercial,Customer Support Group,Building Repairs & Maintenance,60033469,HERTEL (UK) LTD,40.83,12/10/2015
Commercial,Customer Support Group,Building Repairs & Maintenance,60033470,HERTEL (UK) LTD,40.83,12/10/2015
Commercial,Customer Support Group,Building Repairs & Maintenance,60033474,HERTEL (UK) LTD,40.83,12/10/2015
Commercial,Customer Support Group,Building Repairs & Maintenance,60033476,HERTEL (UK) LTD,40.83,12/10/2015
Commercial,Customer Support Group,Building Repairs & Maintenance,60033487,HERTEL (UK) LTD,40.83,12/10/2015
Commercial,Customer Support Group,Building Repairs & Maintenance,60033488,HERTEL (UK) LTD,40.83,12/10/2015
Commercial,Customer Support Group,Building Repairs & Maintenance,60033489,HERTEL (UK) LTD,40.83,12/10/2015
Commercial,Customer Support Group,Building Repairs & Maintenance,60033493,HERTEL (UK) LTD,40.83,12/10/2015
Commercial,Customer Support Group,Building Repairs & Maintenance,60033497,HERTEL (UK) LTD,40.83,12/10/2015
Commercial,Customer Support Group,Building Repairs & Maintenance,60033500,HERTEL (UK) LTD,40.83,12/10/2015
Commercial,Customer Support Group,Building Repairs & Maintenance,60033503,HERTEL (UK) LTD,40.83,12/10/2015
Commercial,Customer Support Group,Building Repairs & Maintenance,60033504,HERTEL (UK) LTD,40.83,12/10/2015
Commercial,Customer Support Group,Building Repairs & Maintenance,60033510,HERTEL (UK) LTD,40.83,12/10/2015
Commercial,Customer Support Group,Building Repairs & Maintenance,60033512,HERTEL (UK) LTD,40.83,12/10/2015
Commercial,Customer Support Group,Building Repairs & Maintenance,60033513,HERTEL (UK) LTD,40.83,12/10/2015
Commercial,Customer Support Group,Building Repairs & Maintenance,60033517,HERTEL (UK) LTD,40.83,12/10/2015
Commercial,Customer Support Group,Building Repairs & Maintenance,60033520,HERTEL (UK) LTD,40.83,12/10/2015
Commercial,Customer Support Group,Building Repairs & Maintenance,60033522,HERTEL (UK) LTD,40.83,12/10/2015
Commercial,Customer Support Group,Building Repairs & Maintenance,60033525,HERTEL (UK) LTD,40.83,12/10/2015
Commercial,Customer Support Group,Building Repairs & Maintenance,60033530,HERTEL (UK) LTD,40.83,12/10/2015
Commercial,Customer Support Group,Building Repairs & Maintenance,60033532,HERTEL (UK) LTD,40.83,12/10/2015
Commercial,Customer Support Group,Building Repairs & Maintenance,60033534,HERTEL (UK) LTD,40.83,12/10/2015
Commercial,Customer Support Group,Building Repairs & Maintenance,60033535,HERTEL (UK) LTD,40.83,12/10/2015
Commercial,Customer Support Group,Building Repairs & Maintenance,60033536,HERTEL (UK) LTD,40.83,12/10/2015
Commercial,Customer Support Group,Building Repairs & Maintenance,60033538,HERTEL (UK) LTD,40.83,12/10/2015
Commercial,Customer Support Group,Building Repairs & Maintenance,60033539,HERTEL (UK) LTD,40.83,12/10/2015
Commercial,Customer Support Group,Building Repairs & Maintenance,60033541,HERTEL (UK) LTD,40.83,12/10/2015
Commercial,Customer Support Group,Building Repairs & Maintenance,60033549,HERTEL (UK) LTD,40.83,12/10/2015
Commercial,Customer Support Group,Building Repairs & Maintenance,60033557,HERTEL (UK) LTD,40.83,12/10/2015
Commercial,Customer Support Group,Building Repairs & Maintenance,60033559,HERTEL (UK) LTD,40.83,12/10/2015
Commercial,Customer Support Group,Building Repairs & Maintenance,60033568,HERTEL (UK) LTD,40.83,12/10/2015
Commercial,Customer Support Group,Building Repairs & Maintenance,60033570,HERTEL (UK) LTD,40.83,12/10/2015
Commercial,Customer Support Group,Building Repairs & Maintenance,60033571,HERTEL (UK) LTD,40.83,12/10/2015
Commercial,Customer Support Group,Building Repairs & Maintenance,60033573,HERTEL (UK) LTD,40.83,12/10/2015
Commercial,Customer Support Group,Building Repairs & Maintenance,60033574,HERTEL (UK) LTD,40.83,12/10/2015
Commercial,Customer Support Group,Building Repairs & Maintenance,60033576,HERTEL (UK) LTD,40.83,12/10/2015
Commercial,Customer Support Group,Building Repairs & Maintenance,60033577,HERTEL (UK) LTD,40.83,12/10/2015
Commercial,Customer Support Group,Building Repairs & Maintenance,60033584,HERTEL (UK) LTD,40.83,12/10/2015
Commercial,Customer Support Group,Building Repairs & Maintenance,60033585,HERTEL (UK) LTD,40.83,12/10/2015
Commercial,Customer Support Group,Building Repairs & Maintenance,60033586,HERTEL (UK) LTD,40.83,12/10/2015
Commercial,Customer Support Group,Building Repairs & Maintenance,60033588,HERTEL (UK) LTD,40.83,12/10/2015
Commercial,Customer Support Group,Building Repairs & Maintenance,60033595,HERTEL (UK) LTD,40.83,12/10/2015
Commercial,Customer Support Group,Building Repairs & Maintenance,60033603,HERTEL (UK) LTD,40.83,12/10/2015
Commercial,Customer Support Group,Building Repairs & Maintenance,60033604,HERTEL (UK) LTD,40.83,12/10/2015
Commercial,Customer Support Group,Building Repairs & Maintenance,60033606,HERTEL (UK) LTD,40.83,12/10/2015
Commercial,Customer Support Group,Building Repairs & Maintenance,60033617,HERTEL (UK) LTD,40.83,12/10/2015
Commercial,Customer Support Group,Building Repairs & Maintenance,60033618,HERTEL (UK) LTD,40.83,12/10/2015
Commercial,Customer Support Group,Building Repairs & Maintenance,60033620,HERTEL (UK) LTD,40.83,12/10/2015
Commercial,Customer Support Group,Building Repairs & Maintenance,60033625,HERTEL (UK) LTD,40.83,12/10/2015
Commercial,Customer Support Group,Building Repairs & Maintenance,60033626,HERTEL (UK) LTD,40.83,12/10/2015
Commercial,Customer Support Group,Building Repairs & Maintenance,60033630,HERTEL (UK) LTD,40.83,12/10/2015
Commercial,Customer Support Group,Building Repairs & Maintenance,60033637,HERTEL (UK) LTD,40.83,12/10/2015
Commercial,Customer Support Group,Building Repairs & Maintenance,60033638,HERTEL (UK) LTD,40.83,12/10/2015
Commercial,Customer Support Group,Building Repairs & Maintenance,60033639,HERTEL (UK) LTD,40.83,12/10/2015
Commercial,Customer Support Group,Building Repairs & Maintenance,60033645,HERTEL (UK) LTD,40.83,12/10/2015
Commercial,Customer Support Group,Building Repairs & Maintenance,60033647,HERTEL (UK) LTD,40.83,12/10/2015
Commercial,Customer Support Group,Building Repairs & Maintenance,60033650,HERTEL (UK) LTD,40.83,12/10/2015
Commercial,Customer Support Group,Building Repairs & Maintenance,60033652,HERTEL (UK) LTD,40.83,12/10/2015
Commercial,Customer Support Group,Building Repairs & Maintenance,60033654,HERTEL (UK) LTD,40.83,12/10/2015
Commercial,Customer Support Group,Building Repairs & Maintenance,60033663,HERTEL (UK) LTD,40.83,12/10/2015
Commercial,Customer Support Group,Building Repairs & Maintenance,60033664,HERTEL (UK) LTD,40.83,12/10/2015
Commercial,Customer Support Group,Building Repairs & Maintenance,60033665,HERTEL (UK) LTD,40.83,12/10/2015
Commercial,Customer Support Group,Building Repairs & Maintenance,60033667,HERTEL (UK) LTD,40.83,12/10/2015
Commercial,Customer Support Group,Building Repairs & Maintenance,60033668,HERTEL (UK) LTD,40.83,12/10/2015
Commercial,Customer Support Group,Building Repairs & Maintenance,60033674,HERTEL (UK) LTD,40.83,12/10/2015
Commercial,Customer Support Group,Building Repairs & Maintenance,60033683,HERTEL (UK) LTD,40.83,12/10/2015
Commercial,Customer Support Group,Building Repairs & Maintenance,60033687,HERTEL (UK) LTD,40.83,12/10/2015
Commercial,Customer Support Group,Building Repairs & Maintenance,60033692,HERTEL (UK) LTD,40.83,12/10/2015
Commercial,Customer Support Group,Building Repairs & Maintenance,60033693,HERTEL (UK) LTD,40.83,12/10/2015
Commercial,Customer Support Group,Building Repairs & Maintenance,60033694,HERTEL (UK) LTD,40.83,12/10/2015
Commercial,Customer Support Group,Building Repairs & Maintenance,60033695,HERTEL (UK) LTD,40.83,12/10/2015
Commercial,Customer Support Group,Building Repairs & Maintenance,60033698,HERTEL (UK) LTD,40.83,12/10/2015
Commercial,Customer Support Group,Building Repairs & Maintenance,60033701,HERTEL (UK) LTD,40.83,12/10/2015
Commercial,Customer Support Group,Building Repairs & Maintenance,60033703,HERTEL (UK) LTD,40.83,12/10/2015
Commercial,Customer Support Group,Building Repairs & Maintenance,60033705,HERTEL (UK) LTD,40.83,12/10/2015
Commercial,Customer Support Group,Building Repairs & Maintenance,60033706,HERTEL (UK) LTD,40.83,12/10/2015
Commercial,Customer Support Group,Building Repairs & Maintenance,60033707,HERTEL (UK) LTD,40.83,12/10/2015
Commercial,Customer Support Group,Building Repairs & Maintenance,60033708,HERTEL (UK) LTD,40.83,12/10/2015
Commercial,Customer Support Group,Building Repairs & Maintenance,60033709,HERTEL (UK) LTD,40.83,12/10/2015
Commercial,Customer Support Group,Building Repairs & Maintenance,60033711,HERTEL (UK) LTD,40.83,12/10/2015
Commercial,Customer Support Group,Building Repairs & Maintenance,60033712,HERTEL (UK) LTD,40.83,12/10/2015
Commercial,Customer Support Group,Building Repairs & Maintenance,60033715,HERTEL (UK) LTD,40.83,12/10/2015
Commercial,Customer Support Group,Building Repairs & Maintenance,60033718,HERTEL (UK) LTD,40.83,12/10/2015
Commercial,Customer Support Group,Building Repairs & Maintenance,60033722,HERTEL (UK) LTD,40.83,12/10/2015
Commercial,Customer Support Group,Building Repairs & Maintenance,60033723,HERTEL (UK) LTD,40.83,12/10/2015
Commercial,Customer Support Group,Building Repairs & Maintenance,60033726,HERTEL (UK) LTD,40.83,12/10/2015
Commercial,Customer Support Group,Building Repairs & Maintenance,60033731,HERTEL (UK) LTD,40.83,12/10/2015
Commercial,Customer Support Group,Building Repairs & Maintenance,60033732,HERTEL (UK) LTD,40.83,12/10/2015
Commercial,Customer Support Group,Building Repairs & Maintenance,60033734,HERTEL (UK) LTD,40.83,12/10/2015
Commercial,Customer Support Group,Building Repairs & Maintenance,60033735,HERTEL (UK) LTD,40.83,12/10/2015
Commercial,Customer Support Group,Building Repairs & Maintenance,60033744,HERTEL (UK) LTD,40.83,12/10/2015
Commercial,Customer Support Group,Building Repairs & Maintenance,60033745,HERTEL (UK) LTD,40.83,12/10/2015
Commercial,Customer Support Group,Building Repairs & Maintenance,60033753,HERTEL (UK) LTD,40.83,12/10/2015
Commercial,Customer Support Group,Building Repairs & Maintenance,60033754,HERTEL (UK) LTD,40.83,12/10/2015
Commercial,Customer Support Group,Building Repairs & Maintenance,60033756,HERTEL (UK) LTD,40.83,12/10/2015
Commercial,Customer Support Group,Building Repairs & Maintenance,60033764,HERTEL (UK) LTD,40.83,12/10/2015
Commercial,Customer Support Group,Building Repairs & Maintenance,60033766,HERTEL (UK) LTD,40.83,12/10/2015
Commercial,Customer Support Group,Building Repairs & Maintenance,60033770,HERTEL (UK) LTD,40.83,12/10/2015
Commercial,Customer Support Group,Building Repairs & Maintenance,60033771,HERTEL (UK) LTD,40.83,12/10/2015
Commercial,Customer Support Group,Building Repairs & Maintenance,60033778,HERTEL (UK) LTD,40.83,12/10/2015
Commercial,Customer Support Group,Building Repairs & Maintenance,60033781,HERTEL (UK) LTD,40.83,12/10/2015
Commercial,Customer Support Group,Building Repairs & Maintenance,60033783,HERTEL (UK) LTD,40.83,12/10/2015
Commercial,Customer Support Group,Building Repairs & Maintenance,60033785,HERTEL (UK) LTD,40.83,12/10/2015
Commercial,Customer Support Group,Building Repairs & Maintenance,60033787,HERTEL (UK) LTD,40.83,12/10/2015
Commercial,Customer Support Group,Building Repairs & Maintenance,60033790,HERTEL (UK) LTD,40.83,12/10/2015
Commercial,Customer Support Group,Building Repairs & Maintenance,60033791,HERTEL (UK) LTD,40.83,12/10/2015
Commercial,Customer Support Group,Building Repairs & Maintenance,60033792,HERTEL (UK) LTD,40.83,12/10/2015
Commercial,Customer Support Group,Building Repairs & Maintenance,60033795,HERTEL (UK) LTD,40.83,12/10/2015
Commercial,Customer Support Group,Building Repairs & Maintenance,60033800,HERTEL (UK) LTD,40.83,12/10/2015
Commercial,Customer Support Group,Building Repairs & Maintenance,60033802,HERTEL (UK) LTD,40.83,12/10/2015
Commercial,Customer Support Group,Building Repairs & Maintenance,60033805,HERTEL (UK) LTD,40.83,12/10/2015
Commercial,Customer Support Group,Building Repairs & Maintenance,60033807,HERTEL (UK) LTD,40.83,12/10/2015
Commercial,Customer Support Group,Building Repairs & Maintenance,60033810,HERTEL (UK) LTD,40.83,12/10/2015
Commercial,Customer Support Group,Building Repairs & Maintenance,60033811,HERTEL (UK) LTD,40.83,12/10/2015
Commercial,Customer Support Group,Building Repairs & Maintenance,60033812,HERTEL (UK) LTD,40.83,12/10/2015
Commercial,Customer Support Group,Building Repairs & Maintenance,60033813,HERTEL (UK) LTD,40.83,12/10/2015
Commercial,Customer Support Group,Building Repairs & Maintenance,60033814,HERTEL (UK) LTD,40.83,12/10/2015
Commercial,Customer Support Group,Building Repairs & Maintenance,60033820,HERTEL (UK) LTD,40.83,12/10/2015
Commercial,Customer Support Group,Building Repairs & Maintenance,60033821,HERTEL (UK) LTD,40.83,12/10/2015
Commercial,Customer Support Group,Building Repairs & Maintenance,60033825,HERTEL (UK) LTD,40.83,12/10/2015
Commercial,Customer Support Group,Building Repairs & Maintenance,60033827,HERTEL (UK) LTD,40.83,12/10/2015
Commercial,Customer Support Group,Building Repairs & Maintenance,60033829,HERTEL (UK) LTD,40.83,12/10/2015
Commercial,Customer Support Group,Building Repairs & Maintenance,60033830,HERTEL (UK) LTD,40.83,12/10/2015
Commercial,Customer Support Group,Building Repairs & Maintenance,60033831,HERTEL (UK) LTD,40.83,12/10/2015
Commercial,Customer Support Group,Building Repairs & Maintenance,60033833,HERTEL (UK) LTD,40.83,12/10/2015
Commercial,Customer Support Group,Building Repairs & Maintenance,60033834,HERTEL (UK) LTD,40.83,12/10/2015
Commercial,Customer Support Group,Building Repairs & Maintenance,60033837,HERTEL (UK) LTD,40.83,12/10/2015
Commercial,Customer Support Group,Building Repairs & Maintenance,60033838,HERTEL (UK) LTD,40.83,12/10/2015
Commercial,Customer Support Group,Building Repairs & Maintenance,60033839,HERTEL (UK) LTD,40.83,12/10/2015
Commercial,Customer Support Group,Building Repairs & Maintenance,60033843,HERTEL (UK) LTD,40.83,12/10/2015
Commercial,Customer Support Group,Building Repairs & Maintenance,60033845,HERTEL (UK) LTD,40.83,12/10/2015
Commercial,Customer Support Group,Building Repairs & Maintenance,60033848,HERTEL (UK) LTD,40.83,12/10/2015
Commercial,Customer Support Group,Building Repairs & Maintenance,60033315,HERTEL (UK) LTD,40.83,13/10/2015
Commercial,Customer Support Group,Building Repairs & Maintenance,60033325,HERTEL (UK) LTD,40.83,13/10/2015
Commercial,Customer Support Group,Building Repairs & Maintenance,60033354,HERTEL (UK) LTD,40.83,13/10/2015
Commercial,Customer Support Group,Building Repairs & Maintenance,60033355,HERTEL (UK) LTD,40.83,13/10/2015
Commercial,Customer Support Group,Building Repairs & Maintenance,60033357,HERTEL (UK) LTD,40.83,13/10/2015
Commercial,Customer Support Group,Building Repairs & Maintenance,60033365,HERTEL (UK) LTD,40.83,13/10/2015
Commercial,Customer Support Group,Building Repairs & Maintenance,60033366,HERTEL (UK) LTD,40.83,13/10/2015
Commercial,Customer Support Group,Building Repairs & Maintenance,60033383,HERTEL (UK) LTD,40.83,13/10/2015
Commercial,Customer Support Group,Building Repairs & Maintenance,60033391,HERTEL (UK) LTD,40.83,13/10/2015
Commercial,Customer Support Group,Building Repairs & Maintenance,60033419,HERTEL (UK) LTD,40.83,13/10/2015
Commercial,Customer Support Group,Building Repairs & Maintenance,60033420,HERTEL (UK) LTD,40.83,13/10/2015
Commercial,Customer Support Group,Building Repairs & Maintenance,60033434,HERTEL (UK) LTD,40.83,13/10/2015
Commercial,Customer Support Group,Building Repairs & Maintenance,60033441,HERTEL (UK) LTD,40.83,13/10/2015
Commercial,Customer Support Group,Building Repairs & Maintenance,60033451,HERTEL (UK) LTD,40.83,13/10/2015
Commercial,Customer Support Group,Building Repairs & Maintenance,60033461,HERTEL (UK) LTD,40.83,13/10/2015
Commercial,Customer Support Group,Building Repairs & Maintenance,60033464,HERTEL (UK) LTD,40.83,13/10/2015
Commercial,Customer Support Group,Building Repairs & Maintenance,60033473,HERTEL (UK) LTD,40.83,13/10/2015
Commercial,Customer Support Group,Building Repairs & Maintenance,60033477,HERTEL (UK) LTD,40.83,13/10/2015
Commercial,Customer Support Group,Building Repairs & Maintenance,60033479,HERTEL (UK) LTD,40.83,13/10/2015
Commercial,Customer Support Group,Building Repairs & Maintenance,60033480,HERTEL (UK) LTD,40.83,13/10/2015
Commercial,Customer Support Group,Building Repairs & Maintenance,60033486,HERTEL (UK) LTD,40.83,13/10/2015
Commercial,Customer Support Group,Building Repairs & Maintenance,60033502,HERTEL (UK) LTD,40.83,13/10/2015
Commercial,Customer Support Group,Building Repairs & Maintenance,60033518,HERTEL (UK) LTD,40.83,13/10/2015
Commercial,Customer Support Group,Building Repairs & Maintenance,60033526,HERTEL (UK) LTD,40.83,13/10/2015
Commercial,Customer Support Group,Building Repairs & Maintenance,60033558,HERTEL (UK) LTD,40.83,13/10/2015
Commercial,Customer Support Group,Building Repairs & Maintenance,60033561,HERTEL (UK) LTD,40.83,13/10/2015
Commercial,Customer Support Group,Building Repairs & Maintenance,60033564,HERTEL (UK) LTD,40.83,13/10/2015
Commercial,Customer Support Group,Building Repairs & Maintenance,60033581,HERTEL (UK) LTD,40.83,13/10/2015
Commercial,Customer Support Group,Building Repairs & Maintenance,60033590,HERTEL (UK) LTD,40.83,13/10/2015
Commercial,Customer Support Group,Building Repairs & Maintenance,60033596,HERTEL (UK) LTD,40.83,13/10/2015
Commercial,Customer Support Group,Building Repairs & Maintenance,60033600,HERTEL (UK) LTD,40.83,13/10/2015
Commercial,Customer Support Group,Building Repairs & Maintenance,60033607,HERTEL (UK) LTD,40.83,13/10/2015
Commercial,Customer Support Group,Building Repairs & Maintenance,60033624,HERTEL (UK) LTD,40.83,13/10/2015
Commercial,Customer Support Group,Building Repairs & Maintenance,60033646,HERTEL (UK) LTD,40.83,13/10/2015
Commercial,Customer Support Group,Building Repairs & Maintenance,60033656,HERTEL (UK) LTD,40.83,13/10/2015
Commercial,Customer Support Group,Building Repairs & Maintenance,60033666,HERTEL (UK) LTD,40.83,13/10/2015
Commercial,Customer Support Group,Building Repairs & Maintenance,60033672,HERTEL (UK) LTD,40.83,13/10/2015
Commercial,Customer Support Group,Building Repairs & Maintenance,60033675,HERTEL (UK) LTD,40.83,13/10/2015
Commercial,Customer Support Group,Building Repairs & Maintenance,60033685,HERTEL (UK) LTD,40.83,13/10/2015
Commercial,Customer Support Group,Building Repairs & Maintenance,60033689,HERTEL (UK) LTD,40.83,13/10/2015
Commercial,Customer Support Group,Building Repairs & Maintenance,60033714,HERTEL (UK) LTD,40.83,13/10/2015
Commercial,Customer Support Group,Building Repairs & Maintenance,60033738,HERTEL (UK) LTD,40.83,13/10/2015
Commercial,Customer Support Group,Building Repairs & Maintenance,60033743,HERTEL (UK) LTD,40.83,13/10/2015
Commercial,Customer Support Group,Building Repairs & Maintenance,60033760,HERTEL (UK) LTD,40.83,13/10/2015
Commercial,Customer Support Group,Building Repairs & Maintenance,60033780,HERTEL (UK) LTD,40.83,13/10/2015
Commercial,Customer Support Group,Building Repairs & Maintenance,60033784,HERTEL (UK) LTD,40.83,13/10/2015
Commercial,Customer Support Group,Building Repairs & Maintenance,60033789,HERTEL (UK) LTD,40.83,13/10/2015
Commercial,Customer Support Group,Building Repairs & Maintenance,60033797,HERTEL (UK) LTD,40.83,13/10/2015
Commercial,Customer Support Group,Building Repairs & Maintenance,60033798,HERTEL (UK) LTD,40.83,13/10/2015
Commercial,Customer Support Group,Building Repairs & Maintenance,60034316,HERTEL (UK) LTD,40.83,13/10/2015
Commercial,Customer Support Group,Building Repairs & Maintenance,60034338,HERTEL (UK) LTD,40.83,13/10/2015
Commercial,Customer Support Group,Building Repairs & Maintenance,60033331,HERTEL (UK) LTD,40.83,14/10/2015
Commercial,Customer Support Group,Building Repairs & Maintenance,60033339,HERTEL (UK) LTD,40.83,14/10/2015
Commercial,Customer Support Group,Building Repairs & Maintenance,60033347,HERTEL (UK) LTD,40.83,14/10/2015
Commercial,Customer Support Group,Building Repairs & Maintenance,60033370,HERTEL (UK) LTD,40.83,14/10/2015
Commercial,Customer Support Group,Building Repairs & Maintenance,60033388,HERTEL (UK) LTD,40.83,14/10/2015
Commercial,Customer Support Group,Building Repairs & Maintenance,60033396,HERTEL (UK) LTD,40.83,14/10/2015
Commercial,Customer Support Group,Building Repairs & Maintenance,60033404,HERTEL (UK) LTD,40.83,14/10/2015
Commercial,Customer Support Group,Building Repairs & Maintenance,60033421,HERTEL (UK) LTD,40.83,14/10/2015
Commercial,Customer Support Group,Building Repairs & Maintenance,60033425,HERTEL (UK) LTD,40.83,14/10/2015
Commercial,Customer Support Group,Building Repairs & Maintenance,60033428,HERTEL (UK) LTD,40.83,14/10/2015
Commercial,Customer Support Group,Building Repairs & Maintenance,60033438,HERTEL (UK) LTD,40.83,14/10/2015
Commercial,Customer Support Group,Building Repairs & Maintenance,60033468,HERTEL (UK) LTD,40.83,14/10/2015
Commercial,Customer Support Group,Building Repairs & Maintenance,60033472,HERTEL (UK) LTD,40.83,14/10/2015
Commercial,Customer Support Group,Building Repairs & Maintenance,60033483,HERTEL (UK) LTD,40.83,14/10/2015
Commercial,Customer Support Group,Building Repairs & Maintenance,60033547,HERTEL (UK) LTD,40.83,14/10/2015
Commercial,Customer Support Group,Building Repairs & Maintenance,60033591,HERTEL (UK) LTD,40.83,14/10/2015
Commercial,Customer Support Group,Building Repairs & Maintenance,60033594,HERTEL (UK) LTD,40.83,14/10/2015
Commercial,Customer Support Group,Building Repairs & Maintenance,60033599,HERTEL (UK) LTD,40.83,14/10/2015
Commercial,Customer Support Group,Building Repairs & Maintenance,60033612,HERTEL (UK) LTD,40.83,14/10/2015
Commercial,Customer Support Group,Building Repairs & Maintenance,60033623,HERTEL (UK) LTD,40.83,14/10/2015
Commercial,Customer Support Group,Building Repairs & Maintenance,60033653,HERTEL (UK) LTD,40.83,14/10/2015
Commercial,Customer Support Group,Building Repairs & Maintenance,60033658,HERTEL (UK) LTD,40.83,14/10/2015
Commercial,Customer Support Group,Building Repairs & Maintenance,60033660,HERTEL (UK) LTD,40.83,14/10/2015
Commercial,Customer Support Group,Building Repairs & Maintenance,60033669,HERTEL (UK) LTD,40.83,14/10/2015
Commercial,Customer Support Group,Building Repairs & Maintenance,60033670,HERTEL (UK) LTD,40.83,14/10/2015
Commercial,Customer Support Group,Building Repairs & Maintenance,60033673,HERTEL (UK) LTD,40.83,14/10/2015
Commercial,Customer Support Group,Building Repairs & Maintenance,60033684,HERTEL (UK) LTD,40.83,14/10/2015
Commercial,Customer Support Group,Building Repairs & Maintenance,60033688,HERTEL (UK) LTD,40.83,14/10/2015
Commercial,Customer Support Group,Building Repairs & Maintenance,60033700,HERTEL (UK) LTD,40.83,14/10/2015
Commercial,Customer Support Group,Building Repairs & Maintenance,60033702,HERTEL (UK) LTD,40.83,14/10/2015
Commercial,Customer Support Group,Building Repairs & Maintenance,60033710,HERTEL (UK) LTD,40.83,14/10/2015
Commercial,Customer Support Group,Building Repairs & Maintenance,60033728,HERTEL (UK) LTD,40.83,14/10/2015
Commercial,Customer Support Group,Building Repairs & Maintenance,60033746,HERTEL (UK) LTD,40.83,14/10/2015
Commercial,Customer Support Group,Building Repairs & Maintenance,60033749,HERTEL (UK) LTD,40.83,14/10/2015
Commercial,Customer Support Group,Building Repairs & Maintenance,60033758,HERTEL (UK) LTD,40.83,14/10/2015
Commercial,Customer Support Group,Building Repairs & Maintenance,60033772,HERTEL (UK) LTD,40.83,14/10/2015
Commercial,Customer Support Group,Building Repairs & Maintenance,60033799,HERTEL (UK) LTD,40.83,14/10/2015
Commercial,Customer Support Group,Building Repairs & Maintenance,60033846,HERTEL (UK) LTD,40.83,14/10/2015
Commercial,Customer Support Group,Building Repairs & Maintenance,60034280,HERTEL (UK) LTD,40.83,14/10/2015
Commercial,Customer Support Group,Building Repairs & Maintenance,60034284,HERTEL (UK) LTD,40.83,14/10/2015
Commercial,Customer Support Group,Building Repairs & Maintenance,60034286,HERTEL (UK) LTD,40.83,14/10/2015
Commercial,Customer Support Group,Building Repairs & Maintenance,60034354,HERTEL (UK) LTD,40.83,14/10/2015
Commercial,Customer Support Group,Building Repairs & Maintenance,60034383,HERTEL (UK) LTD,40.83,14/10/2015
Commercial,Customer Support Group,Building Repairs & Maintenance,60033338,HERTEL (UK) LTD,40.83,15/10/2015
Commercial,Customer Support Group,Building Repairs & Maintenance,60033392,HERTEL (UK) LTD,40.83,15/10/2015
Commercial,Customer Support Group,Building Repairs & Maintenance,60033540,HERTEL (UK) LTD,40.83,15/10/2015
Commercial,Customer Support Group,Building Repairs & Maintenance,60033583,HERTEL (UK) LTD,40.83,15/10/2015
Commercial,Customer Support Group,Building Repairs & Maintenance,60033622,HERTEL (UK) LTD,40.83,15/10/2015
Commercial,Customer Support Group,Building Repairs & Maintenance,60033628,HERTEL (UK) LTD,40.83,15/10/2015
Commercial,Customer Support Group,Building Repairs & Maintenance,60034278,HERTEL (UK) LTD,40.83,15/10/2015
Commercial,Customer Support Group,Building Repairs & Maintenance,60034279,HERTEL (UK) LTD,40.83,15/10/2015
Commercial,Customer Support Group,Building Repairs & Maintenance,60034283,HERTEL (UK) LTD,40.83,15/10/2015
Commercial,Customer Support Group,Building Repairs & Maintenance,60034287,HERTEL (UK) LTD,40.83,15/10/2015
Commercial,Customer Support Group,Building Repairs & Maintenance,60034288,HERTEL (UK) LTD,40.83,15/10/2015
Commercial,Customer Support Group,Building Repairs & Maintenance,60034291,HERTEL (UK) LTD,40.83,15/10/2015
Commercial,Customer Support Group,Building Repairs & Maintenance,60034292,HERTEL (UK) LTD,40.83,15/10/2015
Commercial,Customer Support Group,Building Repairs & Maintenance,60034293,HERTEL (UK) LTD,40.83,15/10/2015
Commercial,Customer Support Group,Building Repairs & Maintenance,60034294,HERTEL (UK) LTD,40.83,15/10/2015
Commercial,Customer Support Group,Building Repairs & Maintenance,60034295,HERTEL (UK) LTD,40.83,15/10/2015
Commercial,Customer Support Group,Building Repairs & Maintenance,60034296,HERTEL (UK) LTD,40.83,15/10/2015
Commercial,Customer Support Group,Building Repairs & Maintenance,60034297,HERTEL (UK) LTD,40.83,15/10/2015
Commercial,Customer Support Group,Building Repairs & Maintenance,60034299,HERTEL (UK) LTD,40.83,15/10/2015
Commercial,Customer Support Group,Building Repairs & Maintenance,60034301,HERTEL (UK) LTD,40.83,15/10/2015
Commercial,Customer Support Group,Building Repairs & Maintenance,60034305,HERTEL (UK) LTD,40.83,15/10/2015
Commercial,Customer Support Group,Building Repairs & Maintenance,60034306,HERTEL (UK) LTD,40.83,15/10/2015
Commercial,Customer Support Group,Building Repairs & Maintenance,60034309,HERTEL (UK) LTD,40.83,15/10/2015
Commercial,Customer Support Group,Building Repairs & Maintenance,60034311,HERTEL (UK) LTD,40.83,15/10/2015
Commercial,Customer Support Group,Building Repairs & Maintenance,60034312,HERTEL (UK) LTD,40.83,15/10/2015
Commercial,Customer Support Group,Building Repairs & Maintenance,60034313,HERTEL (UK) LTD,40.83,15/10/2015
Commercial,Customer Support Group,Building Repairs & Maintenance,60034314,HERTEL (UK) LTD,40.83,15/10/2015
Commercial,Customer Support Group,Building Repairs & Maintenance,60034318,HERTEL (UK) LTD,40.83,15/10/2015
Commercial,Customer Support Group,Building Repairs & Maintenance,60034319,HERTEL (UK) LTD,40.83,15/10/2015
Commercial,Customer Support Group,Building Repairs & Maintenance,60034320,HERTEL (UK) LTD,40.83,15/10/2015
Commercial,Customer Support Group,Building Repairs & Maintenance,60034321,HERTEL (UK) LTD,40.83,15/10/2015
Commercial,Customer Support Group,Building Repairs & Maintenance,60034324,HERTEL (UK) LTD,40.83,15/10/2015
Commercial,Customer Support Group,Building Repairs & Maintenance,60034326,HERTEL (UK) LTD,40.83,15/10/2015
Commercial,Customer Support Group,Building Repairs & Maintenance,60034327,HERTEL (UK) LTD,40.83,15/10/2015
Commercial,Customer Support Group,Building Repairs & Maintenance,60034328,HERTEL (UK) LTD,40.83,15/10/2015
Commercial,Customer Support Group,Building Repairs & Maintenance,60034329,HERTEL (UK) LTD,40.83,15/10/2015
Commercial,Customer Support Group,Building Repairs & Maintenance,60034330,HERTEL (UK) LTD,40.83,15/10/2015
Commercial,Customer Support Group,Building Repairs & Maintenance,60034331,HERTEL (UK) LTD,40.83,15/10/2015
Commercial,Customer Support Group,Building Repairs & Maintenance,60034332,HERTEL (UK) LTD,40.83,15/10/2015
Commercial,Customer Support Group,Building Repairs & Maintenance,60034333,HERTEL (UK) LTD,40.83,15/10/2015
Commercial,Customer Support Group,Building Repairs & Maintenance,60034335,HERTEL (UK) LTD,40.83,15/10/2015
Commercial,Customer Support Group,Building Repairs & Maintenance,60034336,HERTEL (UK) LTD,40.83,15/10/2015
Commercial,Customer Support Group,Building Repairs & Maintenance,60034337,HERTEL (UK) LTD,40.83,15/10/2015
Commercial,Customer Support Group,Building Repairs & Maintenance,60034340,HERTEL (UK) LTD,40.83,15/10/2015
Commercial,Customer Support Group,Building Repairs & Maintenance,60034341,HERTEL (UK) LTD,40.83,15/10/2015
Commercial,Customer Support Group,Building Repairs & Maintenance,60034342,HERTEL (UK) LTD,40.83,15/10/2015
Commercial,Customer Support Group,Building Repairs & Maintenance,60034344,HERTEL (UK) LTD,40.83,15/10/2015
Commercial,Customer Support Group,Building Repairs & Maintenance,60034345,HERTEL (UK) LTD,40.83,15/10/2015
Commercial,Customer Support Group,Building Repairs & Maintenance,60034346,HERTEL (UK) LTD,40.83,15/10/2015
Commercial,Customer Support Group,Building Repairs & Maintenance,60034347,HERTEL (UK) LTD,40.83,15/10/2015
Commercial,Customer Support Group,Building Repairs & Maintenance,60034349,HERTEL (UK) LTD,40.83,15/10/2015
Commercial,Customer Support Group,Building Repairs & Maintenance,60034350,HERTEL (UK) LTD,40.83,15/10/2015
Commercial,Customer Support Group,Building Repairs & Maintenance,60034352,HERTEL (UK) LTD,40.83,15/10/2015
Commercial,Customer Support Group,Building Repairs & Maintenance,60034353,HERTEL (UK) LTD,40.83,15/10/2015
Commercial,Customer Support Group,Building Repairs & Maintenance,60034355,HERTEL (UK) LTD,40.83,15/10/2015
Commercial,Customer Support Group,Building Repairs & Maintenance,60034356,HERTEL (UK) LTD,40.83,15/10/2015
Commercial,Customer Support Group,Building Repairs & Maintenance,60034357,HERTEL (UK) LTD,40.83,15/10/2015
Commercial,Customer Support Group,Building Repairs & Maintenance,60034358,HERTEL (UK) LTD,40.83,15/10/2015
Commercial,Customer Support Group,Building Repairs & Maintenance,60034359,HERTEL (UK) LTD,40.83,15/10/2015
Commercial,Customer Support Group,Building Repairs & Maintenance,60034360,HERTEL (UK) LTD,40.83,15/10/2015
Commercial,Customer Support Group,Building Repairs & Maintenance,60034361,HERTEL (UK) LTD,40.83,15/10/2015
Commercial,Customer Support Group,Building Repairs & Maintenance,60034362,HERTEL (UK) LTD,40.83,15/10/2015
Commercial,Customer Support Group,Building Repairs & Maintenance,60034363,HERTEL (UK) LTD,40.83,15/10/2015
Commercial,Customer Support Group,Building Repairs & Maintenance,60034365,HERTEL (UK) LTD,40.83,15/10/2015
Commercial,Customer Support Group,Building Repairs & Maintenance,60034366,HERTEL (UK) LTD,40.83,15/10/2015
Commercial,Customer Support Group,Building Repairs & Maintenance,60034367,HERTEL (UK) LTD,40.83,15/10/2015
Commercial,Customer Support Group,Building Repairs & Maintenance,60034369,HERTEL (UK) LTD,40.83,15/10/2015
Commercial,Customer Support Group,Building Repairs & Maintenance,60034371,HERTEL (UK) LTD,40.83,15/10/2015
Commercial,Customer Support Group,Building Repairs & Maintenance,60034373,HERTEL (UK) LTD,40.83,15/10/2015
Commercial,Customer Support Group,Building Repairs & Maintenance,60034374,HERTEL (UK) LTD,40.83,15/10/2015
Commercial,Customer Support Group,Building Repairs & Maintenance,60034375,HERTEL (UK) LTD,40.83,15/10/2015
Commercial,Customer Support Group,Building Repairs & Maintenance,60034376,HERTEL (UK) LTD,40.83,15/10/2015
Commercial,Customer Support Group,Building Repairs & Maintenance,60034377,HERTEL (UK) LTD,40.83,15/10/2015
Commercial,Customer Support Group,Building Repairs & Maintenance,60034378,HERTEL (UK) LTD,40.83,15/10/2015
Commercial,Customer Support Group,Building Repairs & Maintenance,60034379,HERTEL (UK) LTD,40.83,15/10/2015
Commercial,Customer Support Group,Building Repairs & Maintenance,60034381,HERTEL (UK) LTD,40.83,15/10/2015
Commercial,Customer Support Group,Building Repairs & Maintenance,60034384,HERTEL (UK) LTD,40.83,15/10/2015
Commercial,Customer Support Group,Building Repairs & Maintenance,60034385,HERTEL (UK) LTD,40.83,15/10/2015
Commercial,Customer Support Group,Building Repairs & Maintenance,60034386,HERTEL (UK) LTD,40.83,15/10/2015
Commercial,Customer Support Group,Building Repairs & Maintenance,60034387,HERTEL (UK) LTD,40.83,15/10/2015
Commercial,Customer Support Group,Building Repairs & Maintenance,60034388,HERTEL (UK) LTD,40.83,15/10/2015
Commercial,Customer Support Group,Building Repairs & Maintenance,60034389,HERTEL (UK) LTD,40.83,15/10/2015
Commercial,Customer Support Group,Building Repairs & Maintenance,60034390,HERTEL (UK) LTD,40.83,15/10/2015
Commercial,Customer Support Group,Building Repairs & Maintenance,60034393,HERTEL (UK) LTD,40.83,15/10/2015
Commercial,Customer Support Group,Building Repairs & Maintenance,60034394,HERTEL (UK) LTD,40.83,15/10/2015
Commercial,Customer Support Group,Building Repairs & Maintenance,60034397,HERTEL (UK) LTD,40.83,15/10/2015
Commercial,Customer Support Group,Building Repairs & Maintenance,60034399,HERTEL (UK) LTD,40.83,15/10/2015
Commercial,Customer Support Group,Building Repairs & Maintenance,60034402,HERTEL (UK) LTD,40.83,15/10/2015
Commercial,Customer Support Group,Building Repairs & Maintenance,60034403,HERTEL (UK) LTD,40.83,15/10/2015
Commercial,Customer Support Group,Building Repairs & Maintenance,60034405,HERTEL (UK) LTD,40.83,15/10/2015
Commercial,Customer Support Group,Building Repairs & Maintenance,60034406,HERTEL (UK) LTD,40.83,15/10/2015
Commercial,Customer Support Group,Building Repairs & Maintenance,60034408,HERTEL (UK) LTD,40.83,15/10/2015
Commercial,Customer Support Group,Building Repairs & Maintenance,60034409,HERTEL (UK) LTD,40.83,15/10/2015
Commercial,Customer Support Group,Building Repairs & Maintenance,60034410,HERTEL (UK) LTD,40.83,15/10/2015
Commercial,Customer Support Group,Building Repairs & Maintenance,60034411,HERTEL (UK) LTD,40.83,15/10/2015
Commercial,Customer Support Group,Building Repairs & Maintenance,60034413,HERTEL (UK) LTD,40.83,15/10/2015
Commercial,Customer Support Group,Building Repairs & Maintenance,60034414,HERTEL (UK) LTD,40.83,15/10/2015
Commercial,Customer Support Group,Building Repairs & Maintenance,60034415,HERTEL (UK) LTD,40.83,15/10/2015
Commercial,Customer Support Group,Building Repairs & Maintenance,60034417,HERTEL (UK) LTD,40.83,15/10/2015
Commercial,Customer Support Group,Building Repairs & Maintenance,60034419,HERTEL (UK) LTD,40.83,15/10/2015
Commercial,Customer Support Group,Building Repairs & Maintenance,60034420,HERTEL (UK) LTD,40.83,15/10/2015
Commercial,Customer Support Group,Building Repairs & Maintenance,60034421,HERTEL (UK) LTD,40.83,15/10/2015
Commercial,Customer Support Group,Building Repairs & Maintenance,60034422,HERTEL (UK) LTD,40.83,15/10/2015
Commercial,Customer Support Group,Building Repairs & Maintenance,60034423,HERTEL (UK) LTD,40.83,15/10/2015
Commercial,Customer Support Group,Building Repairs & Maintenance,60034424,HERTEL (UK) LTD,40.83,15/10/2015
Commercial,Customer Support Group,Building Repairs & Maintenance,60034425,HERTEL (UK) LTD,40.83,15/10/2015
Commercial,Customer Support Group,Building Repairs & Maintenance,60034426,HERTEL (UK) LTD,40.83,15/10/2015
Commercial,Customer Support Group,Building Repairs & Maintenance,60034427,HERTEL (UK) LTD,40.83,15/10/2015
Commercial,Customer Support Group,Building Repairs & Maintenance,60034428,HERTEL (UK) LTD,40.83,15/10/2015
Commercial,Customer Support Group,Building Repairs & Maintenance,60034430,HERTEL (UK) LTD,40.83,15/10/2015
Commercial,Customer Support Group,Building Repairs & Maintenance,60034431,HERTEL (UK) LTD,40.83,15/10/2015
Commercial,Customer Support Group,Building Repairs & Maintenance,60034432,HERTEL (UK) LTD,40.83,15/10/2015
Commercial,Customer Support Group,Building Repairs & Maintenance,60034434,HERTEL (UK) LTD,40.83,15/10/2015
Commercial,Customer Support Group,Building Repairs & Maintenance,60034435,HERTEL (UK) LTD,40.83,15/10/2015
Commercial,Customer Support Group,Building Repairs & Maintenance,60034436,HERTEL (UK) LTD,40.83,15/10/2015
Commercial,Customer Support Group,Building Repairs & Maintenance,60034437,HERTEL (UK) LTD,40.83,15/10/2015
Commercial,Customer Support Group,Building Repairs & Maintenance,60034438,HERTEL (UK) LTD,40.83,15/10/2015
Commercial,Customer Support Group,Building Repairs & Maintenance,60034440,HERTEL (UK) LTD,40.83,15/10/2015
Commercial,Customer Support Group,Building Repairs & Maintenance,60034441,HERTEL (UK) LTD,40.83,15/10/2015
Commercial,Customer Support Group,Building Repairs & Maintenance,60034442,HERTEL (UK) LTD,40.83,15/10/2015
Commercial,Customer Support Group,Building Repairs & Maintenance,60034443,HERTEL (UK) LTD,40.83,15/10/2015
Commercial,Customer Support Group,Building Repairs & Maintenance,60034576,HERTEL (UK) LTD,40.83,15/10/2015
Commercial,Customer Support Group,Building Repairs & Maintenance,60034579,HERTEL (UK) LTD,40.83,15/10/2015
Commercial,Customer Support Group,Building Repairs & Maintenance,60034617,HERTEL (UK) LTD,40.83,15/10/2015
Commercial,Customer Support Group,Building Repairs & Maintenance,60034631,HERTEL (UK) LTD,40.83,15/10/2015
Commercial,Customer Support Group,Building Repairs & Maintenance,60034686,HERTEL (UK) LTD,40.83,15/10/2015
Commercial,Customer Support Group,Building Repairs & Maintenance,60033418,HERTEL (UK) LTD,40.83,16/10/2015
Commercial,Customer Support Group,Building Repairs & Maintenance,60033544,HERTEL (UK) LTD,40.83,16/10/2015
Commercial,Customer Support Group,Building Repairs & Maintenance,60033598,HERTEL (UK) LTD,40.83,16/10/2015
Commercial,Customer Support Group,Building Repairs & Maintenance,60033750,HERTEL (UK) LTD,40.83,16/10/2015
Commercial,Customer Support Group,Building Repairs & Maintenance,60033828,HERTEL (UK) LTD,40.83,16/10/2015
Commercial,Customer Support Group,Building Repairs & Maintenance,60034304,HERTEL (UK) LTD,40.83,16/10/2015
Commercial,Customer Support Group,Building Repairs & Maintenance,60034307,HERTEL (UK) LTD,40.83,16/10/2015
Commercial,Customer Support Group,Building Repairs & Maintenance,60034368,HERTEL (UK) LTD,40.83,16/10/2015
Commercial,Customer Support Group,Building Repairs & Maintenance,60034382,HERTEL (UK) LTD,40.83,16/10/2015
Commercial,Customer Support Group,Building Repairs & Maintenance,60034391,HERTEL (UK) LTD,40.83,16/10/2015
Commercial,Customer Support Group,Building Repairs & Maintenance,60034395,HERTEL (UK) LTD,40.83,16/10/2015
Commercial,Customer Support Group,Building Repairs & Maintenance,60034407,HERTEL (UK) LTD,40.83,16/10/2015
Commercial,Customer Support Group,Building Repairs & Maintenance,60033446,HERTEL (UK) LTD,40.83,20/10/2015
Commercial,Customer Support Group,Building Repairs & Maintenance,60033773,HERTEL (UK) LTD,40.83,20/10/2015
Commercial,Customer Support Group,Building Repairs & Maintenance,60033602,HERTEL (UK) LTD,40.83,21/10/2015
Commercial,Customer Support Group,Building Repairs & Maintenance,60033752,HERTEL (UK) LTD,40.83,23/10/2015
Commercial,Customer Support Group,Building Repairs & Maintenance,60034285,HERTEL (UK) LTD,40.83,23/10/2015
Commercial,Customer Support Group,Building Repairs & Maintenance,60034351,HERTEL (UK) LTD,40.83,23/10/2015
Commercial,Customer Support Group,Building Repairs & Maintenance,60034322,HERTEL (UK) LTD,40.83,26/10/2015
Commercial,Customer Support Group,Building Repairs & Maintenance,60034380,HERTEL (UK) LTD,40.83,26/10/2015
Commercial,Customer Support Group,Building Repairs & Maintenance,60033496,HERTEL (UK) LTD,45,07/10/2015
Commercial,Customer Support Group,Building Repairs & Maintenance,60033608,HERTEL (UK) LTD,45,09/10/2015
Commercial,Customer Support Group,Building Repairs & Maintenance,60033516,HERTEL (UK) LTD,45,15/10/2015
Commercial,Customer Support Group,Building Repairs & Maintenance,60033551,HERTEL (UK) LTD,45,15/10/2015
Commercial,Customer Support Group,Building Repairs & Maintenance,60024676,HERTEL (UK) LTD,65,07/10/2015
Commercial,Customer Support Group,Building Repairs & Maintenance,60033481,HERTEL (UK) LTD,65,07/10/2015
Commercial,Customer Support Group,Building Repairs & Maintenance,60034302,HERTEL (UK) LTD,70,13/10/2015
Commercial,Customer Support Group,Building Repairs & Maintenance,60034310,HERTEL (UK) LTD,70,13/10/2015
Commercial,Customer Support Group,Building Repairs & Maintenance,60034433,HERTEL (UK) LTD,70,13/10/2015
Commercial,Customer Support Group,Building Repairs & Maintenance,60033311,HERTEL (UK) LTD,70,15/10/2015
Commercial,Customer Support Group,Building Repairs & Maintenance,60034453,HERTEL (UK) LTD,70,15/10/2015
Commercial,Customer Support Group,Building Repairs & Maintenance,60034458,HERTEL (UK) LTD,70,15/10/2015
Commercial,Customer Support Group,Building Repairs & Maintenance,60034476,HERTEL (UK) LTD,70,15/10/2015
Commercial,Customer Support Group,Building Repairs & Maintenance,60034493,HERTEL (UK) LTD,70,16/10/2015
Commercial,Customer Support Group,Building Repairs & Maintenance,60034532,HERTEL (UK) LTD,70,16/10/2015
Commercial,Customer Support Group,Building Repairs & Maintenance,60034550,HERTEL (UK) LTD,70,16/10/2015
Commercial,Customer Support Group,Building Repairs & Maintenance,60034581,HERTEL (UK) LTD,70,16/10/2015
Commercial,Customer Support Group,Building Repairs & Maintenance,60034668,HERTEL (UK) LTD,70,16/10/2015
Commercial,Customer Support Group,Building Repairs & Maintenance,60034670,HERTEL (UK) LTD,70,16/10/2015
Commercial,Customer Support Group,Building Repairs & Maintenance,60033332,HERTEL (UK) LTD,90,07/10/2015
Commercial,Customer Support Group,Building Repairs & Maintenance,60033508,HERTEL (UK) LTD,90,07/10/2015
Commercial,Customer Support Group,Building Repairs & Maintenance,60033458,HERTEL (UK) LTD,122.5,12/10/2015
Commercial,Customer Support Group,Building Repairs & Maintenance,60033494,HERTEL (UK) LTD,135,09/10/2015
Commercial,Customer Support Group,Building Repairs & Maintenance,60033757,HERTEL (UK) LTD,135,15/10/2015
Commercial,Customer Support Group,Building Repairs & Maintenance,60033629,HERTEL (UK) LTD,186.5,15/10/2015
Commercial,Customer Support Group,Building Repairs & Maintenance,60033733,HERTEL (UK) LTD,186.84,15/10/2015
Commercial,Customer Support Group,Building Repairs & Maintenance,60033335,HERTEL (UK) LTD,204.15,07/10/2015
Commercial,Customer Support Group,Building Repairs & Maintenance,60033341,HERTEL (UK) LTD,204.15,13/10/2015
Commercial,Customer Support Group,Building Repairs & Maintenance,60033364,HERTEL (UK) LTD,204.15,13/10/2015
Commercial,Customer Support Group,Building Repairs & Maintenance,60033399,HERTEL (UK) LTD,204.15,13/10/2015
Commercial,Customer Support Group,Building Repairs & Maintenance,60033505,HERTEL (UK) LTD,204.15,13/10/2015
Commercial,Customer Support Group,Building Repairs & Maintenance,60033592,HERTEL (UK) LTD,204.15,13/10/2015
Commercial,Customer Support Group,Building Repairs & Maintenance,60033616,HERTEL (UK) LTD,204.15,13/10/2015
Commercial,Customer Support Group,Building Repairs & Maintenance,60033649,HERTEL (UK) LTD,204.15,13/10/2015
Commercial,Customer Support Group,Building Repairs & Maintenance,60033736,HERTEL (UK) LTD,204.15,13/10/2015
Commercial,Customer Support Group,Building Repairs & Maintenance,60033751,HERTEL (UK) LTD,204.15,13/10/2015
Commercial,Customer Support Group,Building Repairs & Maintenance,60033763,HERTEL (UK) LTD,204.15,13/10/2015
Commercial,Customer Support Group,Building Repairs & Maintenance,60033314,HERTEL (UK) LTD,249.12,15/10/2015
Commercial,Customer Support Group,Building Repairs & Maintenance,60033605,HERTEL (UK) LTD,249.12,15/10/2015
Commercial,Customer Support Group,Building Repairs & Maintenance,60033847,HERTEL (UK) LTD,279.75,15/10/2015
Commercial,Customer Support Group,Building Repairs & Maintenance,60033324,HERTEL (UK) LTD,360,09/10/2015
Commercial,Customer Support Group,Building Repairs & Maintenance,60033322,HERTEL (UK) LTD,373,15/10/2015
Commercial,Customer Support Group,Building Repairs & Maintenance,60033817,HERTEL (UK) LTD,373.68,15/10/2015
Commercial,Customer Support Group,Building Repairs & Maintenance,60033690,HERTEL (UK) LTD,435.96,15/10/2015
Commercial,Customer Support Group,Building Repairs & Maintenance,60033803,HERTEL (UK) LTD,540,15/10/2015
Commercial,Customer Support Group,Building Repairs & Maintenance,60033353,HERTEL (UK) LTD,810,12/10/2015
Commercial,Customer Support Group,Building Repairs & Maintenance,60033376,HERTEL (UK) LTD,"1,183.32",15/10/2015
Commercial,Customer Support Group,Building Repairs & Maintenance,60033453,HERTEL (UK) LTD,"1,370.16",15/10/2015
Commercial,Customer Support Group,Building Repairs & Maintenance,60033342,HERTEL (UK) LTD,"1,432.44",15/10/2015
Commercial,Customer Support Group,Building Repairs & Maintenance,60033724,HERTEL (UK) LTD,"2,144.74",15/10/2015
Commercial,Customer Support Group,Building Repairs & Maintenance,60034939,LIFT & ENGINEERING SERVICES LTD,49.58,29/10/2015
Commercial,Customer Support Group,Building Repairs & Maintenance,60034959,LIFT & ENGINEERING SERVICES LTD,49.58,29/10/2015
Commercial,Customer Support Group,Building Repairs & Maintenance,60034968,LIFT & ENGINEERING SERVICES LTD,49.58,29/10/2015
Commercial,Customer Support Group,Building Repairs & Maintenance,60035010,LIFT & ENGINEERING SERVICES LTD,49.58,29/10/2015
Commercial,Customer Support Group,Building Repairs & Maintenance,60034839,LIFT & ENGINEERING SERVICES LTD,94.58,29/10/2015
Commercial,Customer Support Group,Building Repairs & Maintenance,60033944,LIFT & ENGINEERING SERVICES LTD,99.16,23/10/2015
Commercial,Customer Support Group,Building Repairs & Maintenance,60024068,LIFT & ENGINEERING SERVICES LTD,99.16,26/10/2015
Commercial,Customer Support Group,Building Repairs & Maintenance,60034923,LIFT & ENGINEERING SERVICES LTD,99.16,29/10/2015
Commercial,Customer Support Group,Building Repairs & Maintenance,60034869,LIFT & ENGINEERING SERVICES LTD,99.17,29/10/2015
Commercial,Customer Support Group,Building Repairs & Maintenance,60034922,LIFT & ENGINEERING SERVICES LTD,99.17,29/10/2015
Commercial,Customer Support Group,Building Repairs & Maintenance,60034997,LIFT & ENGINEERING SERVICES LTD,99.17,29/10/2015
Commercial,Customer Support Group,Building Repairs & Maintenance,60031856,LIFT & ENGINEERING SERVICES LTD,203,09/10/2015
Commercial,Customer Support Group,Building Repairs & Maintenance,60033863,LIFT & ENGINEERING SERVICES LTD,203,29/10/2015
Commercial,Customer Support Group,Building Repairs & Maintenance,60033499,LIFT & ENGINEERING SERVICES LTD,522,21/10/2015
Commercial,Customer Support Group,Building Repairs & Maintenance,60031537,LIFT & ENGINEERING SERVICES LTD,860,08/10/2015
Commercial,Customer Support Group,Building Repairs & Maintenance,60034220,LIFT & ENGINEERING SERVICES LTD,936,30/10/2015
Commercial,Customer Support Group,Building Repairs & Maintenance,60028532,OAKRAY LIMITED,80,12/10/2015
Commercial,Customer Support Group,Building Repairs & Maintenance,60031135,OAKRAY LIMITED,157.51,02/10/2015
Commercial,Customer Support Group,Building Repairs & Maintenance,60032119,OAKRAY LIMITED,208,14/10/2015
Commercial,Customer Support Group,Building Repairs & Maintenance,60028569,OAKRAY LIMITED,476.5,12/10/2015
Commercial,Customer Support Group,Building Repairs & Maintenance,60032055,OAKRAY LIMITED,479.11,14/10/2015
Commercial,Customer Support Group,Building Repairs & Maintenance,60031043,OAKRAY LIMITED,740.03,26/10/2015
Commercial,Customer Support Group,Building Repairs & Maintenance,60032099,OAKRAY LIMITED,"1,272.00",26/10/2015
Commercial,Customer Support Group,Building Repairs & Maintenance,60032081,OAKRAY LIMITED,"1,336.00",26/10/2015
Commercial,Customer Support Group,Building Repairs & Maintenance,60035824,REDACTED - PERSONAL DATA,315,29/10/2015
Commercial,Customer Support Group,Building Repairs & Maintenance,60033130,RGE SERVICES,28.5,29/10/2015
Commercial,Customer Support Group,Building Repairs & Maintenance,60032287,RGE SERVICES,31,16/10/2015
Commercial,Customer Support Group,Building Repairs & Maintenance,60033074,RGE SERVICES,52.25,28/10/2015
Commercial,Customer Support Group,Building Repairs & Maintenance,60033065,RGE SERVICES,52.25,29/10/2015
Commercial,Customer Support Group,Building Repairs & Maintenance,60033089,RGE SERVICES,52.25,29/10/2015
Commercial,Customer Support Group,Building Repairs & Maintenance,60033141,RGE SERVICES,52.25,29/10/2015
Commercial,Customer Support Group,Building Repairs & Maintenance,60033145,RGE SERVICES,52.25,29/10/2015
Commercial,Customer Support Group,Building Repairs & Maintenance,60033171,RGE SERVICES,52.25,29/10/2015
Commercial,Customer Support Group,Building Repairs & Maintenance,60029969,RGE SERVICES,62,23/10/2015
Commercial,Customer Support Group,Building Repairs & Maintenance,60031145,RGE SERVICES,62,02/10/2015
Commercial,Customer Support Group,Building Repairs & Maintenance,60032275,RGE SERVICES,62,16/10/2015
Commercial,Customer Support Group,Building Repairs & Maintenance,60032293,RGE SERVICES,62,16/10/2015
Commercial,Customer Support Group,Building Repairs & Maintenance,60032328,RGE SERVICES,62,16/10/2015
Commercial,Customer Support Group,Building Repairs & Maintenance,60032332,RGE SERVICES,62,16/10/2015
Commercial,Customer Support Group,Building Repairs & Maintenance,60032362,RGE SERVICES,62,16/10/2015
Commercial,Customer Support Group,Building Repairs & Maintenance,60032369,RGE SERVICES,62,16/10/2015
Commercial,Customer Support Group,Building Repairs & Maintenance,60032263,RGE SERVICES,62,20/10/2015
Commercial,Customer Support Group,Building Repairs & Maintenance,60032357,RGE SERVICES,62,20/10/2015
Commercial,Customer Support Group,Building Repairs & Maintenance,60032363,RGE SERVICES,69.3,26/10/2015
Commercial,Customer Support Group,Building Repairs & Maintenance,60033072,RGE SERVICES,71.25,29/10/2015
Commercial,Customer Support Group,Building Repairs & Maintenance,60033129,RGE SERVICES,71.25,29/10/2015
Commercial,Customer Support Group,Building Repairs & Maintenance,60032326,RGE SERVICES,84.02,16/10/2015
Commercial,Customer Support Group,Building Repairs & Maintenance,60033168,RGE SERVICES,85.5,29/10/2015
Commercial,Customer Support Group,Building Repairs & Maintenance,60032343,RGE SERVICES,93,30/10/2015
Commercial,Customer Support Group,Building Repairs & Maintenance,60031188,RGE SERVICES,107.5,02/10/2015
Commercial,Customer Support Group,Building Repairs & Maintenance,60033080,RGE SERVICES,111.15,29/10/2015
Commercial,Customer Support Group,Building Repairs & Maintenance,60032341,RGE SERVICES,114.43,16/10/2015
Commercial,Customer Support Group,Building Repairs & Maintenance,60033095,RGE SERVICES,128.25,29/10/2015
Commercial,Customer Support Group,Building Repairs & Maintenance,60032811,RGE SERVICES,128.37,07/10/2015
Commercial,Customer Support Group,Building Repairs & Maintenance,60032368,RGE SERVICES,139.19,16/10/2015
Commercial,Customer Support Group,Building Repairs & Maintenance,60032284,RGE SERVICES,158.59,16/10/2015
Commercial,Customer Support Group,Building Repairs & Maintenance,60033152,RGE SERVICES,165.3,29/10/2015
Commercial,Customer Support Group,Building Repairs & Maintenance,60032336,RGE SERVICES,168.6,16/10/2015
Commercial,Customer Support Group,Building Repairs & Maintenance,60032259,RGE SERVICES,168.85,27/10/2015
Commercial,Customer Support Group,Building Repairs & Maintenance,60033108,RGE SERVICES,181.45,29/10/2015
Commercial,Customer Support Group,Building Repairs & Maintenance,60032338,RGE SERVICES,189.74,16/10/2015
Commercial,Customer Support Group,Building Repairs & Maintenance,60033075,RGE SERVICES,190,29/10/2015
Commercial,Customer Support Group,Building Repairs & Maintenance,60026478,RGE SERVICES,190.73,23/10/2015
Commercial,Customer Support Group,Building Repairs & Maintenance,60033120,RGE SERVICES,192.07,29/10/2015
Commercial,Customer Support Group,Building Repairs & Maintenance,60031142,RGE SERVICES,192.83,02/10/2015
Commercial,Customer Support Group,Building Repairs & Maintenance,60032270,RGE SERVICES,214.9,16/10/2015
Commercial,Customer Support Group,Building Repairs & Maintenance,60033105,RGE SERVICES,227.85,29/10/2015
Commercial,Customer Support Group,Building Repairs & Maintenance,60032329,RGE SERVICES,235.05,26/10/2015
Commercial,Customer Support Group,Building Repairs & Maintenance,60031146,RGE SERVICES,243.28,13/10/2015
Commercial,Customer Support Group,Building Repairs & Maintenance,60027909,RGE SERVICES,250.82,12/10/2015
Commercial,Customer Support Group,Building Repairs & Maintenance,60033103,RGE SERVICES,251.34,29/10/2015
Commercial,Customer Support Group,Building Repairs & Maintenance,60027501,RGE SERVICES,297.94,27/10/2015
Commercial,Customer Support Group,Building Repairs & Maintenance,60033066,RGE SERVICES,326.35,12/10/2015
Commercial,Customer Support Group,Building Repairs & Maintenance,60032349,RGE SERVICES,395.32,16/10/2015
Commercial,Customer Support Group,Building Repairs & Maintenance,60029548,RGE SERVICES,491.9,23/10/2015
Commercial,Customer Support Group,Building Repairs & Maintenance,60032352,RGE SERVICES,561.15,27/10/2015
Commercial,Customer Support Group,Building Repairs & Maintenance,60029611,RGE SERVICES,566.2,27/10/2015
Commercial,Customer Support Group,Building Repairs & Maintenance,60028527,RGE SERVICES,845.69,27/10/2015
Commercial,Customer Support Group,Building Repairs & Maintenance,60033099,RGE SERVICES,965.2,29/10/2015
Commercial,Customer Support Group,Building Repairs & Maintenance,60031177,RGE SERVICES,"1,038.04",27/10/2015
Commercial,Customer Support Group,Building Repairs & Maintenance,60031158,RGE SERVICES,"1,080.70",02/10/2015
Commercial,Customer Support Group,Building Repairs & Maintenance,60032812,S W BRUCE & CO LTD,25,23/10/2015
Commercial,Customer Support Group,Building Repairs & Maintenance,60032862,S W BRUCE & CO LTD,25,23/10/2015
Commercial,Customer Support Group,Building Repairs & Maintenance,60033146,S W BRUCE & CO LTD,25,27/10/2015
Commercial,Customer Support Group,Building Repairs & Maintenance,60032795,S W BRUCE & CO LTD,39.08,23/10/2015
Commercial,Customer Support Group,Building Repairs & Maintenance,60033115,S W BRUCE & CO LTD,39.41,27/10/2015
Commercial,Customer Support Group,Building Repairs & Maintenance,60032503,S W BRUCE & CO LTD,47.04,21/10/2015
Commercial,Customer Support Group,Building Repairs & Maintenance,60033085,S W BRUCE & CO LTD,47.12,27/10/2015
Commercial,Customer Support Group,Building Repairs & Maintenance,60033124,S W BRUCE & CO LTD,49.15,27/10/2015
Commercial,Customer Support Group,Building Repairs & Maintenance,60032360,S W BRUCE & CO LTD,57,20/10/2015
Commercial,Customer Support Group,Building Repairs & Maintenance,60032574,S W BRUCE & CO LTD,57,21/10/2015
Commercial,Customer Support Group,Building Repairs & Maintenance,60032867,S W BRUCE & CO LTD,57,23/10/2015
Commercial,Customer Support Group,Building Repairs & Maintenance,60032873,S W BRUCE & CO LTD,64.16,23/10/2015
Commercial,Customer Support Group,Building Repairs & Maintenance,60032266,S W BRUCE & CO LTD,64.81,20/10/2015
Commercial,Customer Support Group,Building Repairs & Maintenance,60033163,S W BRUCE & CO LTD,69.82,27/10/2015
Commercial,Customer Support Group,Building Repairs & Maintenance,60032854,S W BRUCE & CO LTD,75.51,23/10/2015
Commercial,Customer Support Group,Building Repairs & Maintenance,60032334,S W BRUCE & CO LTD,80.24,20/10/2015
Commercial,Customer Support Group,Building Repairs & Maintenance,60032914,S W BRUCE & CO LTD,80.56,23/10/2015
Commercial,Customer Support Group,Building Repairs & Maintenance,60032546,S W BRUCE & CO LTD,82.59,21/10/2015
Commercial,Customer Support Group,Building Repairs & Maintenance,60032233,S W BRUCE & CO LTD,85.26,21/10/2015
Commercial,Customer Support Group,Building Repairs & Maintenance,60032457,S W BRUCE & CO LTD,95.12,21/10/2015
Commercial,Customer Support Group,Building Repairs & Maintenance,60032521,S W BRUCE & CO LTD,107.76,21/10/2015
Commercial,Customer Support Group,Building Repairs & Maintenance,60032547,S W BRUCE & CO LTD,107.83,21/10/2015
Commercial,Customer Support Group,Building Repairs & Maintenance,60032478,S W BRUCE & CO LTD,114.97,21/10/2015
Commercial,Customer Support Group,Building Repairs & Maintenance,60032920,S W BRUCE & CO LTD,129.38,23/10/2015
Commercial,Customer Support Group,Building Repairs & Maintenance,60032482,S W BRUCE & CO LTD,135.25,21/10/2015
Commercial,Customer Support Group,Building Repairs & Maintenance,60032868,S W BRUCE & CO LTD,140.02,30/10/2015
Commercial,Customer Support Group,Building Repairs & Maintenance,60032222,S W BRUCE & CO LTD,147.95,21/10/2015
Commercial,Customer Support Group,Building Repairs & Maintenance,60032923,S W BRUCE & CO LTD,147.95,30/10/2015
Commercial,Customer Support Group,Building Repairs & Maintenance,60032278,S W BRUCE & CO LTD,163.19,20/10/2015
Commercial,Customer Support Group,Building Repairs & Maintenance,60032527,S W BRUCE & CO LTD,164.83,21/10/2015
Commercial,Customer Support Group,Building Repairs & Maintenance,60027867,S W BRUCE & CO LTD,191.19,02/10/2015
Commercial,Customer Support Group,Building Repairs & Maintenance,60032575,S W BRUCE & CO LTD,205.54,21/10/2015
Commercial,Customer Support Group,Building Repairs & Maintenance,60032511,S W BRUCE & CO LTD,220.8,21/10/2015
Commercial,Customer Support Group,Building Repairs & Maintenance,60032824,S W BRUCE & CO LTD,230,23/10/2015
Commercial,Customer Support Group,Building Repairs & Maintenance,60032346,S W BRUCE & CO LTD,250.13,20/10/2015
Commercial,Customer Support Group,Building Repairs & Maintenance,60032258,S W BRUCE & CO LTD,280.32,20/10/2015
Commercial,Customer Support Group,Building Repairs & Maintenance,60032340,S W BRUCE & CO LTD,313.91,20/10/2015
Commercial,Customer Support Group,Building Repairs & Maintenance,60032236,S W BRUCE & CO LTD,329.74,21/10/2015
Commercial,Customer Support Group,Building Repairs & Maintenance,60032930,S W BRUCE & CO LTD,381.45,23/10/2015
Commercial,Customer Support Group,Building Repairs & Maintenance,60033160,S W BRUCE & CO LTD,441,27/10/2015
Commercial,Customer Support Group,Building Repairs & Maintenance,60032420,S W BRUCE & CO LTD,648.84,20/10/2015
Commercial,Customer Support Group,Building Repairs & Maintenance,60032801,S W BRUCE & CO LTD,715.58,23/10/2015
Commercial,Customer Support Group,Building Repairs & Maintenance,60033113,S W BRUCE & CO LTD,"1,430.00",27/10/2015
Commercial,Customer Support Group,Building Repairs & Maintenance,60035019,SECOM PLC,380,16/10/2015
Commercial,Customer Support Group,Building Repairs & Maintenance,60029398,TANN SYNCHRONOME LTD,"12,403.00",15/10/2015
Commercial,Customer Support Group,Building Repairs & Maintenance,60034982,UNITED FORKTRUCKS (1992) LTD,110,28/10/2015
Commercial,Customer Support Group,Building Repairs & Maintenance,60034882,UNITED FORKTRUCKS (1992) LTD,110,29/10/2015
Commercial,Customer Support Group,Building Repairs & Maintenance,60034042,UNITED FORKTRUCKS (1992) LTD,293.92,15/10/2015
Commercial,Customer Support Group,Cleaning and domestic material,60032837,CHURCHILL CONTRACT SERVICES,358.4,21/10/2015
Commercial,Customer Support Group,Cleaning and domestic material,60030103,CHURCHILL CONTRACT SERVICES,640,26/10/2015
Commercial,Customer Support Group,Cleaning and domestic material,60034014,HERTFORDSHIRE COUNTY COUNCIL,38.4,13/10/2015
Commercial,Customer Support Group,Cleaning and domestic material,60033937,HERTFORDSHIRE COUNTY COUNCIL,158.9,08/10/2015
Commercial,Customer Support Group,Cleaning and domestic material,60034021,HERTFORDSHIRE COUNTY COUNCIL,426.48,13/10/2015
Commercial,Customer Support Group,Cleaning and domestic material,60034004,HERTFORDSHIRE COUNTY COUNCIL,816.85,13/10/2015
Commercial,Customer Support Group,Cleaning and domestic material,60031028,HERTFORDSHIRE SUPPLIES   COUNTY CO,"1,355.80",13/10/2015
Commercial,Customer Support Group,Comm(Periodend Processing)Rech,60035144,TMP (UK) LTD,24.95,27/10/2015
Commercial,Customer Support Group,Consultants Fees,60036213,EPC ASSURE LTD,65,30/10/2015
Commercial,Customer Support Group,Consultants Fees,60031180,NORWEL COMPUTER SERVICES LTD,"1,685.71",02/10/2015
Commercial,Customer Support Group,Contract Cleaning,60033835,CHURCHILL CONTRACT SERVICES,286.43,30/10/2015
Commercial,Customer Support Group,Contract Cleaning,60033823,CHURCHILL CONTRACT SERVICES,647.01,30/10/2015
Commercial,Customer Support Group,Contract Cleaning,60033336,CHURCHILL CONTRACT SERVICES,"1,103.65",30/10/2015
Commercial,Customer Support Group,Contract Cleaning,60033597,CHURCHILL CONTRACT SERVICES,"3,458.58",30/10/2015
Commercial,Customer Support Group,Contract Cleaning,60033832,CHURCHILL CONTRACT SERVICES,"7,809.56",30/10/2015
Commercial,Customer Support Group,Contract Cleaning,60033312,CHURCHILL CONTRACT SERVICES,"8,132.77",30/10/2015
Commercial,Customer Support Group,CSG Services Contract Payment,10012742,CAPITA BUSINESS SERVICES LTD,"8,101.30",21/10/2015
Commercial,Customer Support Group,CSG Services Contract Payment,10012743,CAPITA BUSINESS SERVICES LTD,"9,987.60",21/10/2015
Commercial,Customer Support Group,CSG Services Contract Payment,10012730,CAPITA BUSINESS SERVICES LTD,"11,473.25",08/10/2015
Commercial,Customer Support Group,CSG Services Contract Payment,10012729,CAPITA BUSINESS SERVICES LTD,"16,162.65",08/10/2015
Commercial,Customer Support Group,CSG Services Contract Payment,10012774,CAPITA BUSINESS SERVICES LTD,"40,844.65",23/10/2015
Commercial,Customer Support Group,CSG Services Contract Payment,10012775,CAPITA BUSINESS SERVICES LTD,"42,495.75",30/10/2015
Commercial,Customer Support Group,CSG Services Contract Payment,10012741,CAPITA BUSINESS SERVICES LTD,"57,825.69",13/10/2015
Commercial,Customer Support Group,CSG Services Contract Payment,10012777,CAPITA BUSINESS SERVICES LTD,"74,627.00",30/10/2015
Commercial,Customer Support Group,CSG Services Contract Payment,10012744,CAPITA BUSINESS SERVICES LTD,"443,795.00",13/10/2015
Commercial,Customer Support Group,CSG Services Contract Payment,10012776,CAPITA BUSINESS SERVICES LTD,"851,146.00",30/10/2015
Commercial,Customer Support Group,Electricity,60035303,BRITISH GAS BUSINESS(ELEC),"4,698.90",26/10/2015
Commercial,Customer Support Group,Electricity,60032600,E-ON ENERGY,90.38,16/10/2015
Commercial,Customer Support Group,Electricity,60032949,KENT COUNTY COUNCIL (KCS),175.83,01/10/2015
Commercial,Customer Support Group,Electricity,60035549,KENT COUNTY COUNCIL (KCS),223.03,23/10/2015
Commercial,Customer Support Group,Electricity,60031591,KENT COUNTY COUNCIL (KCS),316.71,12/10/2015
Commercial,Customer Support Group,Electricity,60032155,KENT COUNTY COUNCIL (KCS),605.42,01/10/2015
Commercial,Customer Support Group,Electricity,60030400,KENT COUNTY COUNCIL (KCS),"1,171.34",08/10/2015
Commercial,Customer Support Group,Electricity,60032540,KENT COUNTY COUNCIL (KCS),"1,370.21",16/10/2015
Commercial,Customer Support Group,Electricity,60032206,KENT COUNTY COUNCIL (KCS),"3,783.25",16/10/2015
Commercial,Customer Support Group,Electricity,60032323,KENT COUNTY COUNCIL (KCS),"4,749.99",01/10/2015
Commercial,Customer Support Group,Electricity,60035657,KENT COUNTY COUNCIL (KCS),"4,933.79",29/10/2015
Commercial,Customer Support Group,Electricity,60036164,KENT COUNTY COUNCIL (KCS),"6,752.69",29/10/2015
Commercial,Customer Support Group,Electricity,60035637,KENT COUNTY COUNCIL (KCS),"67,467.24",29/10/2015
Commercial,Customer Support Group,Equipment and Materials Purcha,60035747,DAY PLANT HIRE CO LIMITED,350,27/10/2015
Commercial,Customer Support Group,Equipment and Materials Purcha,60032817,S W BRUCE & CO LTD,28.5,30/10/2015
Commercial,Customer Support Group,Equipment and Materials Purcha,60035648,SM ELECTRICAL SERVICES,900,27/10/2015
Commercial,Customer Support Group,Equipment and Materials Purcha,60035341,SM ELECTRICAL SERVICES,"1,010.00",30/10/2015
Commercial,Customer Support Group,Fixtures and fittings,60029306,EVAC & CHAIR INTERNATIONAL LTD,365,01/10/2015
Commercial,Customer Support Group,Fixtures and fittings,60029411,EVAC & CHAIR INTERNATIONAL LTD,640,01/10/2015
Commercial,Customer Support Group,Fixtures and fittings,60031756,LYCO DIRECT LTD,45.72,13/10/2015
Commercial,Customer Support Group,Fixtures and fittings,60031489,LYCO DIRECT LTD,335.28,08/10/2015
Commercial,Customer Support Group,Fixtures and fittings,60032534,UNIQUE OFFICE SOLUTIONS LTD,23.8,28/10/2015
Commercial,Customer Support Group,Fixtures and fittings,60035897,WAGSTAFF INTERIORS GROUP,10,28/10/2015
Commercial,Customer Support Group,Fixtures and fittings,60035903,WAGSTAFF INTERIORS GROUP,10,28/10/2015
Commercial,Customer Support Group,Gas,60033031,KENT COUNTY COUNCIL (KCS),46.33,21/10/2015
Commercial,Customer Support Group,Gas,60030363,KENT COUNTY COUNCIL (KCS),637.58,08/10/2015
Commercial,Customer Support Group,Operational Leases - Equipment,60033230,XEROX FINANCE LTD,"4,826.01",21/10/2015
Commercial,Customer Support Group,Other Services,60035604,BLUE 9 SECURITY LIMITED,50,23/10/2015
Commercial,Customer Support Group,Other Services,60036033,BLUE 9 SECURITY LIMITED,116,28/10/2015
Commercial,Customer Support Group,Other Services,60035596,BLUE 9 SECURITY LIMITED,187.5,23/10/2015
Commercial,Customer Support Group,Other Services,60035642,BLUE 9 SECURITY LIMITED,630.75,23/10/2015
Commercial,Customer Support Group,Other Services,60034018,BLUE 9 SECURITY LIMITED,"1,000.50",09/10/2015
Commercial,Customer Support Group,Other Services,60033894,BLUE 9 SECURITY LIMITED,"1,635.00",09/10/2015
Commercial,Customer Support Group,Other Services,60034013,BLUE 9 SECURITY LIMITED,"20,520.00",09/10/2015
Commercial,Customer Support Group,Other Services,60033677,BLUE 9 SECURITY LIMITED,"25,182.25",09/10/2015
Commercial,Customer Support Group,Other Services,60035474,COMER BUSINESS AND INNOVATION CENTRES,"14,445.12",23/10/2015
Commercial,Customer Support Group,Other Services,60029189,CPI LONDON,30,06/10/2015
Commercial,Customer Support Group,Other Services,20025302,DERRICK BRIDGES & CO.,"25,000.00",22/10/2015
Commercial,Customer Support Group,Other Services,60036174,EQUITA LIMITED,75,29/10/2015
Commercial,Customer Support Group,Other Services,60036088,EQUITA LIMITED,200,29/10/2015
Commercial,Customer Support Group,Other Services,60036101,EQUITA LIMITED,200,29/10/2015
Commercial,Customer Support Group,Other Services,60031191,LEASING PROGRAMMES LIMITED,"1,235.00",01/10/2015
Commercial,Customer Support Group,Postage,60028308,ROYAL MAIL GROUP LIMITED,190.43,01/10/2015
Commercial,Customer Support Group,Postage,60031739,ROYAL MAIL GROUP LIMITED,208.12,13/10/2015
Commercial,Customer Support Group,Postage,60031807,ROYAL MAIL GROUP LIMITED,"5,126.03",19/10/2015
Commercial,Customer Support Group,Postage,60033200,ROYAL MAIL GROUP LIMITED,"6,138.79",21/10/2015
Commercial,Customer Support Group,Postage,60030911,ROYAL MAIL GROUP LIMITED,"6,202.66",19/10/2015
Commercial,Customer Support Group,Postage,60033224,ROYAL MAIL GROUP LIMITED,"6,276.55",21/10/2015
Commercial,Customer Support Group,Postage,60031789,ROYAL MAIL GROUP LIMITED,"6,511.12",19/10/2015
Commercial,Customer Support Group,Postage,60033908,ROYAL MAIL GROUP LIMITED,"6,741.00",09/10/2015
Commercial,Customer Support Group,Postage,60034736,ROYAL MAIL GROUP LIMITED,"7,071.22",23/10/2015
Commercial,Customer Support Group,Postage,60028398,ROYAL MAIL GROUP LIMITED,"7,322.26",01/10/2015
Commercial,Customer Support Group,Postage,60030863,ROYAL MAIL GROUP LIMITED,"8,104.23",19/10/2015
Commercial,Customer Support Group,Postage,60028316,ROYAL MAIL GROUP LIMITED,"11,665.26",01/10/2015
Commercial,Customer Support Group,Rents,10012721,RIDGELAND PROPERTIES LTD,"2,865.28",05/10/2015
Commercial,Customer Support Group,Rents,10012722,RIDGELAND PROPERTIES LTD,"6,180.83",05/10/2015
Commercial,Customer Support Group,Rents,10012720,RIDGELAND PROPERTIES LTD,"137,939.15",05/10/2015
Commercial,Customer Support Group,Rubbish Collection,60035336,G.B.HOLDINGS LTD,16.5,23/10/2015
Commercial,Customer Support Group,Rubbish Collection,60032257,G.B.HOLDINGS LTD,76.5,20/10/2015
Commercial,Customer Support Group,Rubbish Collection,60035270,G.B.HOLDINGS LTD,93,23/10/2015
Commercial,Customer Support Group,Rubbish Collection,60035266,G.B.HOLDINGS LTD,128,23/10/2015
Commercial,Customer Support Group,Rubbish Collection,60035527,G.B.HOLDINGS LTD,279.25,23/10/2015
Commercial,Customer Support Group,Rubbish Collection,60035380,G.B.HOLDINGS LTD,441.1,23/10/2015
Commercial,Customer Support Group,Rubbish Collection,60035377,PREMIER SHREDDING,50,23/10/2015
Commercial,Customer Support Group,Rubbish Collection,60036098,PREMIER SHREDDING,50,29/10/2015
Commercial,Customer Support Group,Rubbish Collection,60035662,PREMIER SHREDDING,150,23/10/2015
Commercial,Customer Support Group,Rubbish Collection,60033296,PREMIER SHREDDING,162,05/10/2015
Commercial,Customer Support Group,Rubbish Collection,60033241,PREMIER SHREDDING,168,05/10/2015
Commercial,Customer Support Group,Rubbish Collection,60035619,PREMIER SHREDDING,185,23/10/2015
Commercial,Customer Support Group,Service Charges,10012723,COMER PROPERTY MANAGEMENT,"18,592.28",05/10/2015
Commercial,Customer Support Group,Service Charges,10012724,COMER PROPERTY MANAGEMENT,"23,954.76",05/10/2015
Commercial,Customer Support Group,Service Charges,60034208,MARYLEBONE ASSET MANAGEMENT LTD,183.36,12/10/2015
Commercial,Customer Support Group,Service Charges,60034214,MARYLEBONE ASSET MANAGEMENT LTD,"27,966.24",14/10/2015
Commercial,Customer Support Group,Subscriptions,60035945,ENVIRONMENT AGENCY,"1,290.00",28/10/2015
Commercial,Customer Support Group,Water Services,60035822,2468 LTD,208.08,26/10/2015
Commercial,Customer Support Group,Water Services,60035783,2468 LTD,624.24,26/10/2015
Commercial,Customer Support Group,Water Services,60030370,2468 LTD,"3,329.28",30/10/2015
Commercial,Customer Support Group,Water Services,60033295,AFFINITY WATER LIMITED,181.62,06/10/2015
Commercial,Customer Support Group,Water Services,60033212,AFFINITY WATER LIMITED,258.9,23/10/2015
Commercial,Customer Support Group,Water Services,60033202,AFFINITY WATER LIMITED,261.77,06/10/2015
Commercial,Customer Support Group,Water Services,60033260,AFFINITY WATER LIMITED,317.1,23/10/2015
Commercial,Customer Support Group,Water Services,60035635,ANGEL SPRINGS LTD,16.99,29/10/2015
Commercial,Customer Support Group,Water Services,60035612,ANGEL SPRINGS LTD,26,29/10/2015
Commercial,Customer Support Group,Water Services,60035673,ANGEL SPRINGS LTD,62,29/10/2015
Commercial,Customer Support Group,Water Services,60035658,ANGEL SPRINGS LTD,100,29/10/2015
Commercial,Customer Support Group,Water Services,60035660,ANGEL SPRINGS LTD,208,29/10/2015
Commercial,Customer Support Group,Water Services,60035643,ANGEL SPRINGS LTD,255.6,29/10/2015
Commercial,Customer Support Group,Water Services,60035692,ANGEL SPRINGS LTD (SEE  VENDOR: 138437),15.5,27/10/2015
Commercial,Customer Support Group,Water Services,60035345,THAMES WATER UTILITIES LIMITED,225.73,26/10/2015
Commercial,Customer Support Group,Water Services,60035370,THAMES WATER UTILITIES LIMITED,"2,968.48",26/10/2015
Commercial,Housing Needs Resources,Consultants Fees,60029901,THE BARNETGROUP LIMITED,"66,465.24",23/10/2015
Commercial,Housing Needs Resources,Private Contractors - Third Pa,60035585,THE BARNETGROUP LIMITED,"237,429.18",26/10/2015
Commercial,Housing Needs Resources,Private Contractors - Third Pa,60035301,THE BARNETGROUP LIMITED,"307,023.24",27/10/2015
Commercial,Housing Needs Resources,Private Contractors - Third Pa,60035911,THE BARNETGROUP LIMITED,"1,600,000.00",29/10/2015
Commercial,HRA,Consultants Fees,60035572,P P C R ASSOCIATES LTD,"1,681.75",23/10/2015
Commercial,HRA,Consultants Fees,60035312,PRIORITY ESTATES PROJECT LTD,384.17,26/10/2015
Commercial,HRA,Consultants Fees,60035756,PRIORITY ESTATES PROJECT LTD,"1,257.00",26/10/2015
Commercial,HRA,Consultants Fees,60027001,THE BARNETGROUP LIMITED,"7,388.10",14/10/2015
Commercial,HRA,Consultants Fees,60035246,THE BARNETGROUP LIMITED,"25,662.50",27/10/2015
Commercial,HRA,Consultants Fees,60030129,TROWERS & HAMLINS,830,13/10/2015
Commercial,HRA,Consultants Fees,60035490,TROWERS & HAMLINS,"1,047.10",23/10/2015
Commercial,HRA,Rents,60028481,CHILD'S HILL BAPTIST CHURCH,30,05/10/2015
Commercial,Parking & Infrastructure,Electricity,60034799,BARNET LIGHTING SERVICES LTD,"510,254.13",22/10/2015
Commercial,Parking & Infrastructure,Equipment and Materials Purcha,60034488,ANGEL SPRINGS LTD (SEE  VENDOR: 138437),39.5,27/10/2015
Commercial,Parking & Infrastructure,Equipment and Materials Purcha,60032846,ASD METAL SERVICES,250,02/10/2015
Commercial,Parking & Infrastructure,Equipment and Materials Purcha,60032156,COBURN SERVICES LTD,556.5,07/10/2015
Commercial,Parking & Infrastructure,Equipment and Materials Purcha,60032843,COBURN SERVICES LTD,556.5,14/10/2015
Commercial,Parking & Infrastructure,Equipment and Materials Purcha,60034657,COBURN SERVICES LTD,556.5,28/10/2015
Commercial,Parking & Infrastructure,Equipment and Materials Purcha,60032860,COBURN SERVICES LTD,886.8,20/10/2015
Commercial,Parking & Infrastructure,Equipment and Materials Purcha,60031883,GREENHAM TRADING LIMITED,15.6,15/10/2015
Commercial,Parking & Infrastructure,Equipment and Materials Purcha,60032348,GREENHAM TRADING LIMITED,98.98,20/10/2015
Commercial,Parking & Infrastructure,Equipment and Materials Purcha,60030611,GREENHAM TRADING LIMITED,108.22,02/10/2015
Commercial,Parking & Infrastructure,Equipment and Materials Purcha,60031891,GREENHAM TRADING LIMITED,198.7,15/10/2015
Commercial,Parking & Infrastructure,Equipment and Materials Purcha,60030978,GREENHAM TRADING LIMITED,359.88,02/10/2015
Commercial,Parking & Infrastructure,Equipment and Materials Purcha,60031463,GREENHAM TRADING LIMITED,447.34,09/10/2015
Commercial,Parking & Infrastructure,Equipment and Materials Purcha,60031848,GREENHAM TRADING LIMITED,747.5,15/10/2015
Commercial,Parking & Infrastructure,Equipment and Materials Purcha,60034019,LAFARGE TARMAC TRADING LIMITED,89.59,13/10/2015
Commercial,Parking & Infrastructure,Equipment and Materials Purcha,60032596,LAFARGE TARMAC TRADING LIMITED,91.42,02/10/2015
Commercial,Parking & Infrastructure,Equipment and Materials Purcha,60032850,LAFARGE TARMAC TRADING LIMITED,91.42,02/10/2015
Commercial,Parking & Infrastructure,Equipment and Materials Purcha,60032254,LAFARGE TARMAC TRADING LIMITED,91.42,05/10/2015
Commercial,Parking & Infrastructure,Equipment and Materials Purcha,60034030,LAFARGE TARMAC TRADING LIMITED,91.42,16/10/2015
Commercial,Parking & Infrastructure,Equipment and Materials Purcha,60035419,LAFARGE TARMAC TRADING LIMITED,91.42,26/10/2015
Commercial,Parking & Infrastructure,Equipment and Materials Purcha,60033918,LAFARGE TARMAC TRADING LIMITED,93.25,30/10/2015
Commercial,Parking & Infrastructure,Equipment and Materials Purcha,60032301,LAFARGE TARMAC TRADING LIMITED,95.08,05/10/2015
Commercial,Parking & Infrastructure,Equipment and Materials Purcha,60032904,LAFARGE TARMAC TRADING LIMITED,95.08,13/10/2015
Commercial,Parking & Infrastructure,Equipment and Materials Purcha,60035288,LAFARGE TARMAC TRADING LIMITED,96.91,26/10/2015
Commercial,Parking & Infrastructure,Equipment and Materials Purcha,60035424,LAFARGE TARMAC TRADING LIMITED,96.91,29/10/2015
Commercial,Parking & Infrastructure,Equipment and Materials Purcha,60035277,LAFARGE TARMAC TRADING LIMITED,100.56,26/10/2015
Commercial,Parking & Infrastructure,Equipment and Materials Purcha,60035455,LAFARGE TARMAC TRADING LIMITED,115.19,26/10/2015
Commercial,Parking & Infrastructure,Equipment and Materials Purcha,60035818,LAFARGE TARMAC TRADING LIMITED,115.19,30/10/2015
Commercial,Parking & Infrastructure,Equipment and Materials Purcha,60032872,LAFARGE TARMAC TRADING LIMITED,117.02,09/10/2015
Commercial,Parking & Infrastructure,Equipment and Materials Purcha,60032909,LAFARGE TARMAC TRADING LIMITED,181.01,09/10/2015
Commercial,Parking & Infrastructure,Equipment and Materials Purcha,60032910,LAFARGE TARMAC TRADING LIMITED,202.95,09/10/2015
Commercial,Parking & Infrastructure,Equipment and Materials Purcha,60033872,LAFARGE TARMAC TRADING LIMITED,208.44,16/10/2015
Commercial,Parking & Infrastructure,Equipment and Materials Purcha,60031708,LAFARGE TARMAC TRADING LIMITED,387.62,19/10/2015
Commercial,Parking & Infrastructure,Equipment and Materials Purcha,60033090,NSL LTD,"3,288.95",08/10/2015
Commercial,Parking & Infrastructure,Equipment and Materials Purcha,60031639,RENNICK UK LTD,189.2,02/10/2015
Commercial,Parking & Infrastructure,Equipment and Materials Purcha,60032199,RENNICK UK LTD,270,08/10/2015
Commercial,Parking & Infrastructure,Equipment and Materials Purcha,60033931,RENNICK UK LTD,293.36,23/10/2015
Commercial,Parking & Infrastructure,Equipment and Materials Purcha,60030566,SPANDEX LIMITED,115.86,26/10/2015
Commercial,Parking & Infrastructure,Equipment and Materials Purcha,60032772,SPANDEX LIMITED,462.92,21/10/2015
Commercial,Parking & Infrastructure,Equipment and Materials Purcha,60033144,TROUNCE LIMITED,28.17,27/10/2015
Commercial,Parking & Infrastructure,Equipment and Materials Purcha,60033866,W. FAYERS & SONS,330,09/10/2015
Commercial,Parking & Infrastructure,Equipment and Materials Purcha,60033867,WM SMITH & SONS LIMITED,41.5,08/10/2015
Commercial,Parking & Infrastructure,Equipment and Materials Purcha,60036081,WM SMITH & SONS LIMITED,44.25,30/10/2015
Commercial,Parking & Infrastructure,Equipment and Materials Purcha,60036166,WM SMITH & SONS LIMITED,220,30/10/2015
Commercial,Parking & Infrastructure,General Office Expenses,40001055,OFFICE DEPOT UK LTD,31.14,02/10/2015
Commercial,Parking & Infrastructure,Hardware Purchases,60034697,SMART PARKING LTD,"9,500.00",29/10/2015
Commercial,Parking & Infrastructure,Miscellaneous Expenses,60033917,PARKEON LIMITED,796.5,21/10/2015
Commercial,Parking & Infrastructure,Miscellaneous Expenses,60033884,PARKEON LIMITED,"2,371.84",21/10/2015
Commercial,Parking & Infrastructure,Other Services,60035081,LONDON COUNCILS,"23,121.00",23/10/2015
Commercial,Parking & Infrastructure,Other Services,60035763,NSL LTD,"1,545.45",29/10/2015
Commercial,Parking & Infrastructure,Professional Services,60033965,NSL LTD,70.5,12/10/2015
Commercial,Parking & Infrastructure,Professional Services,60034906,NSL LTD,"50,630.90",23/10/2015
Commercial,Parking & Infrastructure,Professional Services,60033891,NSL LTD,"218,032.31",13/10/2015
Commercial,Parking & Infrastructure,Software Licences & Support,60035713,NSL LTD,"4,667.91",29/10/2015
Commercial,Parking & Infrastructure,Software Licences & Support,60034748,NSL LTD,"4,901.17",22/10/2015
Commercial,Parking & Infrastructure,Software Licences & Support,60032808,NSL LTD,"12,038.00",09/10/2015
Commercial,Parking & Infrastructure,Software Licences & Support,60034215,NSL LTD,"32,212.78",21/10/2015
Commercial,Public Health,Health authorities - Third Par,10012756,LONDON BOROUGH OF HARROW,"7,167,500.00",15/10/2015
Commercial,Regional Enterprise,Advertising,60034276,AMELIX GROUP,"8,062.50",12/10/2015
Commercial,Regional Enterprise,Advertising,60032971,TMP (UK) LTD,35.64,09/10/2015
Commercial,Regional Enterprise,Advertising,60035991,TMP (UK) LTD,35.64,30/10/2015
Commercial,Regional Enterprise,Advertising,60033000,TMP (UK) LTD,42.77,09/10/2015
Commercial,Regional Enterprise,Advertising,60033008,TMP (UK) LTD,46.33,01/10/2015
Commercial,Regional Enterprise,Advertising,60033005,TMP (UK) LTD,115.64,09/10/2015
Commercial,Regional Enterprise,Advertising,60032974,TMP (UK) LTD,122.77,09/10/2015
Commercial,Regional Enterprise,Advertising,60033023,TMP (UK) LTD,126.33,19/10/2015
Commercial,Regional Enterprise,Advertising,60035925,TMP (UK) LTD,144.16,30/10/2015
Commercial,Regional Enterprise,Advertising,60035875,TMP (UK) LTD,250.54,29/10/2015
Commercial,Regional Enterprise,Advertising,60035830,TMP (UK) LTD,354.15,29/10/2015
Commercial,Regional Enterprise,Advertising,60035833,TMP (UK) LTD,396.92,29/10/2015
Commercial,Regional Enterprise,Advertising,60032959,TMP (UK) LTD,429,01/10/2015
Commercial,Regional Enterprise,Consultants Fees,10012771,CBRE INDIRECT INVESTMENT SERVS. LTD,"20,000.00",23/10/2015
Commercial,Regional Enterprise,Consultants Fees,60035778,CBRE INDIRECT INVESTMENT SERVS. LTD,"20,000.00",27/10/2015
Commercial,Regional Enterprise,Consultants Fees,10012770,CBRE INDIRECT INVESTMENT SERVS. LTD,"80,000.00",23/10/2015
Commercial,Regional Enterprise,Consultants Fees,60026827,NETWORK RAIL INFRASTRUCTURE LTD,"416,808.66",14/10/2015
Commercial,Regional Enterprise,Consultants Fees,20025051,REDACTED - PERSONAL DATA,100,16/10/2015
Commercial,Regional Enterprise,Consultants Fees,60030772,SAPIENS CONSULTANCY,"1,488.00",13/10/2015
Commercial,Regional Enterprise,Consultants Fees,60035276,WRAGGE LAWRENCE GRAHAM & CO LLP,"36,955.32",26/10/2015
Commercial,Regional Enterprise,Contract Cleaning,60033804,CHURCHILL CONTRACT SERVICES,475.72,30/10/2015
Commercial,Regional Enterprise,Equipment and Materials Purcha,60024337,CA TRAFFIC LTD,"3,189.00",16/10/2015
Commercial,Regional Enterprise,Equipment and Materials Purcha,20024898,KELLY OF MILL HILL,"2,122.30",14/10/2015
Commercial,Regional Enterprise,Grant Payments,20023994,AMWELL CONSTRUCTION LTD,462,02/10/2015
Commercial,Regional Enterprise,Grant Payments,20023995,AMWELL CONSTRUCTION LTD,"4,882.00",02/10/2015
Commercial,Regional Enterprise,Grant Payments,20025432,AMWELL CONSTRUCTION LTD,"5,007.00",29/10/2015
Commercial,Regional Enterprise,Grant Payments,20025087,AMWELL CONSTRUCTION LTD,"5,067.00",19/10/2015
Commercial,Regional Enterprise,Grant Payments,20023996,AMWELL CONSTRUCTION LTD,"5,398.00",02/10/2015
Commercial,Regional Enterprise,Grant Payments,20025088,AMWELL CONSTRUCTION LTD,"8,817.22",19/10/2015
Commercial,Regional Enterprise,Grant Payments,20025345,ARTHUR J. FERRYMAN ASSOCIATES,480,23/10/2015
Commercial,Regional Enterprise,Grant Payments,20025105,ARTHUR J. FERRYMAN ASSOCIATES,"1,058.06",20/10/2015
Commercial,Regional Enterprise,Grant Payments,20024105,ARTHUR J. FERRYMAN ASSOCIATES,"1,453.00",07/10/2015
Commercial,Regional Enterprise,Grant Payments,20025104,ARTHUR J. FERRYMAN ASSOCIATES,"2,189.10",20/10/2015
Commercial,Regional Enterprise,Grant Payments,20024924,B S INITIATIVE LTD,"1,080.00",13/10/2015
Commercial,Regional Enterprise,Grant Payments,20025421,CAPITAL  LOCKSMITHS,219.6,28/10/2015
Commercial,Regional Enterprise,Grant Payments,20025419,CAPITAL  LOCKSMITHS,225,28/10/2015
Commercial,Regional Enterprise,Grant Payments,20025431,CAPITAL  LOCKSMITHS,275.4,29/10/2015
Commercial,Regional Enterprise,Grant Payments,20025418,CAPITAL  LOCKSMITHS,357.9,28/10/2015
Commercial,Regional Enterprise,Grant Payments,20025108,DOLPHIN HOISTS,"5,765.00",20/10/2015
Commercial,Regional Enterprise,Grant Payments,20024129,DP BUILDERS DISABLED ADAPTATIONS,"3,934.05",08/10/2015
Commercial,Regional Enterprise,Grant Payments,20023997,DP BUILDERS DISABLED ADAPTATIONS,"5,421.00",02/10/2015
Commercial,Regional Enterprise,Grant Payments,20025103,DP BUILDERS DISABLED ADAPTATIONS,"5,707.00",20/10/2015
Commercial,Regional Enterprise,Grant Payments,20025102,DP BUILDERS DISABLED ADAPTATIONS,"5,930.00",20/10/2015
Commercial,Regional Enterprise,Grant Payments,20025343,DP BUILDERS DISABLED ADAPTATIONS,"5,995.00",23/10/2015
Commercial,Regional Enterprise,Grant Payments,20025342,DP BUILDERS DISABLED ADAPTATIONS,"6,770.00",23/10/2015
Commercial,Regional Enterprise,Grant Payments,20024106,DP BUILDERS DISABLED ADAPTATIONS,"11,033.90",07/10/2015
Commercial,Regional Enterprise,Grant Payments,20024967,DP BUILDERS DISABLED ADAPTATIONS,"20,209.25",14/10/2015
Commercial,Regional Enterprise,Grant Payments,20025433,H D PROPERTY SERVICES LTD,"3,968.00",29/10/2015
Commercial,Regional Enterprise,Grant Payments,20024026,H D PROPERTY SERVICES LTD,"4,314.00",05/10/2015
Commercial,Regional Enterprise,Grant Payments,20024107,MODLINE DEVELOPMENTS LTD,"15,000.00",06/10/2015
Commercial,Regional Enterprise,Grant Payments,20024926,QUATREFOILS,"1,320.00",13/10/2015
Commercial,Regional Enterprise,Grant Payments,20025489,RANGER SECURITY SYSTEMS,360,30/10/2015
Commercial,Regional Enterprise,Grant Payments,20025503,RANGER SECURITY SYSTEMS,360,30/10/2015
Commercial,Regional Enterprise,Grant Payments,20025114,REDACTED - PERSONAL DATA,132,20/10/2015
Commercial,Regional Enterprise,Grant Payments,20025113,REDACTED - PERSONAL DATA,400,20/10/2015
Commercial,Regional Enterprise,Grant Payments,20025214,REDACTED - PERSONAL DATA,"2,940.00",21/10/2015
Commercial,Regional Enterprise,Grant Payments,20025310,REDACTED - PERSONAL DATA,"5,640.00",23/10/2015
Commercial,Regional Enterprise,Grant Payments,20024968,REDACTED - PERSONAL DATA,"8,000.00",14/10/2015
Commercial,Regional Enterprise,Grant Payments,20025106,REDACTED - PERSONAL DATA,"12,242.50",20/10/2015
Commercial,Regional Enterprise,Grant Payments,20025344,SCOOTER STORE,"2,965.00",23/10/2015
Commercial,Regional Enterprise,Grant Payments,20024130,SOUTH HERTFORDSHIRE,"1,340.00",08/10/2015
Commercial,Regional Enterprise,Grant Payments,20025107,SOUTH HERTFORDSHIRE,"4,973.00",20/10/2015
Commercial,Regional Enterprise,Grant Payments,20024029,SOUTH HERTFORDSHIRE,"7,001.00",05/10/2015
Commercial,Regional Enterprise,Grant Payments,20025091,STANNAH STAIRLIFTS LTD,"2,180.00",19/10/2015
Commercial,Regional Enterprise,Grant Payments,20024030,STANNAH STAIRLIFTS LTD,"2,940.00",05/10/2015
Commercial,Regional Enterprise,Grant Payments,20024025,STANNAH STAIRLIFTS LTD,"4,625.00",05/10/2015
Commercial,Regional Enterprise,Grant Payments,20024108,STANNAH STAIRLIFTS LTD,"4,741.00",07/10/2015
Commercial,Regional Enterprise,Grant Payments,20025417,STANNAH STAIRLIFTS LTD,"5,093.00",28/10/2015
Commercial,Regional Enterprise,Grant Payments,20025090,STANNAH STAIRLIFTS LTD,"11,401.00",19/10/2015
Commercial,Regional Enterprise,Grant Payments,20023834,TOTAL HYGIENE LIMITED,"1,297.20",14/10/2015
Commercial,Regional Enterprise,Grant Payments,20024962,W S W PROPERTY MAINTENANCE,"2,640.00",14/10/2015
Commercial,Regional Enterprise,Grant Payments,20024966,W S W PROPERTY MAINTENANCE,"3,094.90",14/10/2015
Commercial,Regional Enterprise,Grant Payments,20024961,W S W PROPERTY MAINTENANCE,"3,594.00",14/10/2015
Commercial,Regional Enterprise,Grant Payments,20025309,WSW PROPERTY MAINTENANCE,"4,281.60",23/10/2015
Commercial,Regional Enterprise,IT Services,10012731,BEVAN BRITTAN LLP,"2,450,000.00",09/10/2015
Commercial,Regional Enterprise,Other Establishments - Third P,20025101,TFL,"668,439.78",19/10/2015
Commercial,Regional Enterprise,Other Services,60035364,ARTS DEPOT PRODUCTIONS LTD,820,23/10/2015
Commercial,Regional Enterprise,Other Services,60025429,CA TRAFFIC LTD,300,16/10/2015
Commercial,Regional Enterprise,Other Services,60035520,CONWAY AECOM LTD,151.92,23/10/2015
Commercial,Regional Enterprise,Other Services,60035591,CONWAY AECOM LTD,195.72,29/10/2015
Commercial,Regional Enterprise,Other Services,60035430,CONWAY AECOM LTD,249.1,29/10/2015
Commercial,Regional Enterprise,Other Services,60027500,CONWAY AECOM LTD,557.04,14/10/2015
Commercial,Regional Enterprise,Other Services,60027481,CONWAY AECOM LTD,569.7,14/10/2015
Commercial,Regional Enterprise,Other Services,60030965,CONWAY AECOM LTD,797.58,09/10/2015
Commercial,Regional Enterprise,Other Services,60032946,CONWAY AECOM LTD,"1,032.80",01/10/2015
Commercial,Regional Enterprise,Other Services,60031062,CONWAY AECOM LTD,"1,904.36",09/10/2015
Commercial,Regional Enterprise,Other Services,60032945,CONWAY AECOM LTD,"2,808.08",01/10/2015
Commercial,Regional Enterprise,Other Services,60014197,CONWAY AECOM LTD,"5,000.00",14/10/2015
Commercial,Regional Enterprise,Other Services,60035586,CONWAY AECOM LTD,"5,000.00",29/10/2015
Commercial,Regional Enterprise,Other Services,60033227,CONWAY AECOM LTD,"6,000.00",05/10/2015
Commercial,Regional Enterprise,Other Services,60033047,CONWAY AECOM LTD,"6,762.57",14/10/2015
Commercial,Regional Enterprise,Other Services,60033018,CONWAY AECOM LTD,"7,579.25",21/10/2015
Commercial,Regional Enterprise,Other Services,60033242,CONWAY AECOM LTD,"8,000.00",05/10/2015
Commercial,Regional Enterprise,Other Services,60035483,CONWAY AECOM LTD,"8,093.27",26/10/2015
Commercial,Regional Enterprise,Other Services,60031610,CONWAY AECOM LTD,"8,612.97",12/10/2015
Commercial,Regional Enterprise,Other Services,60032992,CONWAY AECOM LTD,"9,703.81",14/10/2015
Commercial,Regional Enterprise,Other Services,60033020,CONWAY AECOM LTD,"9,843.90",16/10/2015
Commercial,Regional Enterprise,Other Services,60033221,CONWAY AECOM LTD,"10,000.00",05/10/2015
Commercial,Regional Enterprise,Other Services,60033248,CONWAY AECOM LTD,"10,000.00",05/10/2015
Commercial,Regional Enterprise,Other Services,60031693,CONWAY AECOM LTD,"10,556.77",12/10/2015
Commercial,Regional Enterprise,Other Services,60033002,CONWAY AECOM LTD,"10,848.12",16/10/2015
Commercial,Regional Enterprise,Other Services,60031626,CONWAY AECOM LTD,"11,250.49",12/10/2015
Commercial,Regional Enterprise,Other Services,60035376,CONWAY AECOM LTD,"11,608.77",23/10/2015
Commercial,Regional Enterprise,Other Services,60032960,CONWAY AECOM LTD,"12,570.53",14/10/2015
Commercial,Regional Enterprise,Other Services,60031071,CONWAY AECOM LTD,"12,965.51",09/10/2015
Commercial,Regional Enterprise,Other Services,60035417,CONWAY AECOM LTD,"14,000.00",29/10/2015
Commercial,Regional Enterprise,Other Services,60035402,CONWAY AECOM LTD,"14,485.13",23/10/2015
Commercial,Regional Enterprise,Other Services,60035511,CONWAY AECOM LTD,"15,537.69",23/10/2015
Commercial,Regional Enterprise,Other Services,60033060,CONWAY AECOM LTD,"15,711.05",14/10/2015
Commercial,Regional Enterprise,Other Services,60035498,CONWAY AECOM LTD,"16,034.65",23/10/2015
Commercial,Regional Enterprise,Other Services,60031019,CONWAY AECOM LTD,"16,970.11",09/10/2015
Commercial,Regional Enterprise,Other Services,60035393,CONWAY AECOM LTD,"16,973.50",29/10/2015
Commercial,Regional Enterprise,Other Services,60033061,CONWAY AECOM LTD,"17,727.94",16/10/2015
Commercial,Regional Enterprise,Other Services,60035578,CONWAY AECOM LTD,"17,924.69",23/10/2015
Commercial,Regional Enterprise,Other Services,60031332,CONWAY AECOM LTD,"19,075.05",09/10/2015
Commercial,Regional Enterprise,Other Services,60033255,CONWAY AECOM LTD,"20,000.00",23/10/2015
Commercial,Regional Enterprise,Other Services,60035485,CONWAY AECOM LTD,"20,000.00",26/10/2015
Commercial,Regional Enterprise,Other Services,60031002,CONWAY AECOM LTD,"21,068.81",09/10/2015
Commercial,Regional Enterprise,Other Services,60035444,CONWAY AECOM LTD,"21,516.53",23/10/2015
Commercial,Regional Enterprise,Other Services,60035273,CONWAY AECOM LTD,"21,738.81",23/10/2015
Commercial,Regional Enterprise,Other Services,60033187,CONWAY AECOM LTD,"23,500.00",27/10/2015
Commercial,Regional Enterprise,Other Services,60033265,CONWAY AECOM LTD,"25,000.00",05/10/2015
Commercial,Regional Enterprise,Other Services,60035574,CONWAY AECOM LTD,"34,000.00",23/10/2015
Commercial,Regional Enterprise,Other Services,60031698,CONWAY AECOM LTD,"36,659.47",05/10/2015
Commercial,Regional Enterprise,Other Services,60035382,CONWAY AECOM LTD,"37,865.55",23/10/2015
Commercial,Regional Enterprise,Other Services,60035371,CONWAY AECOM LTD,"39,113.67",23/10/2015
Commercial,Regional Enterprise,Other Services,60033037,CONWAY AECOM LTD,"39,461.70",01/10/2015
Commercial,Regional Enterprise,Other Services,60035358,CONWAY AECOM LTD,"40,000.00",29/10/2015
Commercial,Regional Enterprise,Other Services,60035427,CONWAY AECOM LTD,"42,000.00",29/10/2015
Commercial,Regional Enterprise,Other Services,60035480,CONWAY AECOM LTD,"42,000.00",29/10/2015
Commercial,Regional Enterprise,Other Services,60035290,CONWAY AECOM LTD,"50,000.00",29/10/2015
Commercial,Regional Enterprise,Other Services,60031714,CONWAY AECOM LTD,"51,700.93",12/10/2015
Commercial,Regional Enterprise,Other Services,60035263,CONWAY AECOM LTD,"55,000.00",29/10/2015
Commercial,Regional Enterprise,Other Services,60035306,CONWAY AECOM LTD,"80,000.00",29/10/2015
Commercial,Regional Enterprise,Other Services,60035400,CONWAY AECOM LTD,"120,000.00",29/10/2015
Commercial,Regional Enterprise,Other Services,60031362,CONWAY AECOM LTD,"225,674.61",09/10/2015
Commercial,Regional Enterprise,Other Services,60032961,CONWAY AECOM LTD,"229,616.25",21/10/2015
Commercial,Regional Enterprise,Other Services,60035542,DAVIAN COACHES LIMITED,410,23/10/2015
Commercial,Regional Enterprise,Other Services,60035356,DAVIAN COACHES LIMITED,"5,130.00",23/10/2015
Commercial,Regional Enterprise,Other Services,10012725,E-ON ENERGY,316.39,08/10/2015
Commercial,Regional Enterprise,Other Services,60032157,HENDON SCHOOL (ACADEMY),"2,749.65",05/10/2015
Commercial,Regional Enterprise,Other Services,60033194,J C DECAUX UK LTD,"21,332.96",05/10/2015
Commercial,Regional Enterprise,Other Services,60035465,LOBEG,"1,400.00",26/10/2015
Commercial,Regional Enterprise,Other Services,60034584,MILLBROOK PARK PRIMARY SCHOOL,875,16/10/2015
Commercial,Regional Enterprise,Other Services,60031745,MS ONLINE LTD,100.66,13/10/2015
Commercial,Regional Enterprise,Other Services,60034768,ROYAL CHACE HOTEL,362.5,20/10/2015
Commercial,Regional Enterprise,Other Services,60034757,ROYAL CHACE HOTEL,425,20/10/2015
Commercial,Regional Enterprise,Other Services,60034111,SPENCER RHODES GRAPHICS LTD,916,12/10/2015
Commercial,Regional Enterprise,Other Services,60034745,TASHBAR OF EDGWARE PRIMARY SCHOOL,"1,100.00",16/10/2015
Commercial,Regional Enterprise,Other Services,60033039,TMP (UK) LTD,364.84,01/10/2015
Commercial,Regional Enterprise,Other Services,60035092,WATES LIVING SPACE,"4,250.92",21/10/2015
Commercial,Regional Enterprise,Other Services,60035091,WATES LIVING SPACE,"9,636.74",21/10/2015
Commercial,Regional Enterprise,Other Services,60035046,WATES LIVING SPACE,"14,009.22",21/10/2015
Commercial,Regional Enterprise,Other Services,60033264,WREN ACADEMY,890,06/10/2015
Commercial,Regional Enterprise,Professional Services,10012738,PUBLIC ANALYST SCIENTIFIC SERVS. LT,350,13/10/2015
Commercial,Regional Enterprise,Professional Services,10012739,PUBLIC ANALYST SCIENTIFIC SERVS. LT,980,13/10/2015
Commercial,Regional Enterprise,Professional Services,10012728,RE (REGIONAL ENTERPRISE) LIMITED,"11,430.00",08/10/2015
Commercial,Regional Enterprise,Publications,60033936,LOVE BURNT OAK COMMUNITY RESOURCE & SUPP,"1,040.00",09/10/2015
Commercial,Regional Enterprise,Subscriptions,60032848,PIPER PROJECTS LTD,"4,000.00",02/10/2015
Commissioning,Commissioning,Building Repairs & Maintenance,60033972,CONWAY AECOM LTD,"17,908.77",23/10/2015
Commissioning,Commissioning,Building Repairs & Maintenance,60030852,LETTERBOX DISTRIBUTION.COM,897.51,02/10/2015
Commissioning,Commissioning,Building Repairs & Maintenance,60030979,OAKRAY LIMITED,"1,180.08",26/10/2015
Commissioning,Commissioning,Building Repairs & Maintenance,60031164,RGE SERVICES,721.98,15/10/2015
Commissioning,Commissioning,Building Repairs & Maintenance,60032840,S W BRUCE & CO LTD,59.84,30/10/2015
Commissioning,Commissioning,Building Repairs & Maintenance,60018760,S W BRUCE & CO LTD,"11,442.50",20/10/2015
Commissioning,Commissioning,Capital Construction and Works,60031323,S W BRUCE & CO LTD,"85,023.88",26/10/2015
Commissioning,Commissioning,Consultants Fees,10012727,BARNET & DISTRICT ATHLETIC CLUB,25,08/10/2015
Commissioning,Commissioning,Consultants Fees,10012726,BARNET & DISTRICT ATHLETIC CLUB,75,08/10/2015
Commissioning,Commissioning,Consultants Fees,60035721,COPPER CONSULTING LTD,975,26/10/2015
Commissioning,Commissioning,Consultants Fees,60035255,KAZOU CONSULTANCY LTD,166,23/10/2015
Commissioning,Commissioning,Consultants Fees,10012749,OPINION RESEARCH SERVICES,"17,300.00",13/10/2015
Commissioning,Commissioning,Consultants Fees,60024934,OPINION RESEARCH SERVICES,"33,985.00",21/10/2015
Commissioning,Commissioning,Consultants Fees,60033850,THE BARNETGROUP LIMITED,"40,000.00",09/10/2015
Commissioning,Commissioning,Consultants Fees,60035316,TRANSPORT PLANNING & HIGHWAYS,"4,000.00",26/10/2015
Commissioning,Commissioning,Consultants Fees,60033252,UKCT SUPPORT SERVICES LIMITED,450,05/10/2015
Commissioning,Commissioning,Consultants Fees,60033280,UKCT SUPPORT SERVICES LIMITED,450,05/10/2015
Commissioning,Commissioning,Depreciation,60033874,SPORTS LEADERS UK,256,08/10/2015
Commissioning,Commissioning,Employee Expenses,60033871,GATENBY SANDERSON,"3,350.00",29/10/2015
Commissioning,Commissioning,Employee Expenses,60028072,TMP (UK) LTD,529.5,16/10/2015
Commissioning,Commissioning,Equipment and Materials Purcha,60034998,COMMUNITY BARNET,"7,047.47",16/10/2015
Commissioning,Commissioning,Equipment and Materials Purcha,60035981,OCS GROUP UK LIMITED,"46,304.00",30/10/2015
Commissioning,Commissioning,Equipment and Materials Purcha,10012751,PARK RETAIL LTD,337.2,14/10/2015
Commissioning,Commissioning,Equipment and Materials Purcha,60033138,S W BRUCE & CO LTD,"100,000.00",23/10/2015
Commissioning,Commissioning,Equipment and Materials Purcha,10012772,SHAYLOR GROUP PLC,"557,946.34",23/10/2015
Commissioning,Commissioning,General Office Expenses,40001091,OFFICE DEPOT UK LTD,1.08,26/10/2015
Commissioning,Commissioning,General Office Expenses,40001122,OFFICE DEPOT UK LTD,14.61,26/10/2015
Commissioning,Commissioning,General Office Expenses,40001084,OFFICE DEPOT UK LTD,45.17,26/10/2015
Commissioning,Commissioning,Grant Payments,20024165,ART REACH BARNET,"1,950.00",08/10/2015
Commissioning,Commissioning,Grant Payments,20024022,AVENUE HOUSE ESTATE TRUST,"41,667.00",05/10/2015
Commissioning,Commissioning,Grant Payments,60034751,COMMUNITY BARNET,"4,851.75",20/10/2015
Commissioning,Commissioning,Grant Payments,20024126,MIDDLE EASTERN WOMEN & SOCIETY ORGANISAT,"1,625.00",08/10/2015
Commissioning,Commissioning,Grant Payments,80001271,THE PAPERWEIGHT TRUST,"2,500.00",29/10/2015
Commissioning,Commissioning,Miscellaneous Expenses,60035421,COMMUNITY BARNET,"13,000.00",23/10/2015
Commissioning,Commissioning,Other Agencies - Third Party P,60031044,FAMILY FUND TRADING LTD,132,19/10/2015
Commissioning,Commissioning,Other Agencies - Third Party P,60033877,FAMILY FUND TRADING LTD,143,28/10/2015
Commissioning,Commissioning,Other Agencies - Third Party P,60028952,FAMILY FUND TRADING LTD,148,01/10/2015
Commissioning,Commissioning,Other Agencies - Third Party P,60031736,FAMILY FUND TRADING LTD,221.67,19/10/2015
Commissioning,Commissioning,Other Agencies - Third Party P,60032240,FAMILY FUND TRADING LTD,396.67,20/10/2015
Commissioning,Commissioning,Other Agencies - Third Party P,60029375,FAMILY FUND TRADING LTD,801.67,01/10/2015
Commissioning,Commissioning,Other Agencies - Third Party P,60029738,FAMILY FUND TRADING LTD,846.67,15/10/2015
Commissioning,Commissioning,Other Agencies - Third Party P,60034746,FAMILY FUND TRADING LTD,"1,190.83",19/10/2015
Commissioning,Commissioning,Other Agencies - Third Party P,60030971,FAMILY FUND TRADING LTD,"1,448.50",16/10/2015
Commissioning,Commissioning,Other Agencies - Third Party P,60034009,FAMILY FUND TRADING LTD,"2,085.84",30/10/2015
Commissioning,Commissioning,Other Agencies - Third Party P,60033966,FAMILY FUND TRADING LTD,"2,144.36",28/10/2015
Commissioning,Commissioning,Other Agencies - Third Party P,60027884,FAMILY FUND TRADING LTD,"4,015.00",05/10/2015
Commissioning,Commissioning,Other Agencies - Third Party P,60028526,FAMILY FUND TRADING LTD,"5,787.50",05/10/2015
Commissioning,Commissioning,Other Agencies - Third Party P,20025053,REDACTED - PERSONAL DATA,100,16/10/2015
Commissioning,Commissioning,Other Agencies - Third Party P,60034855,SAFE LIVES,"7,939.50",29/10/2015
Commissioning,Commissioning,Other Services,60033111,ELITE LEISURE SERVICES,378,12/10/2015
Commissioning,Commissioning,Other Services,60031214,HARROW GREEN LTD,558.88,16/10/2015
Commissioning,Commissioning,Other Services,60031254,HARROW GREEN LTD,953.04,16/10/2015
Commissioning,Commissioning,Other Services,60031243,HARROW GREEN LTD,"1,046.77",16/10/2015
Commissioning,Commissioning,Other Services,60031305,HARROW GREEN LTD,"1,565.63",16/10/2015
Commissioning,Commissioning,Other Services,60031211,HARROW GREEN LTD,"1,689.55",16/10/2015
Commissioning,Commissioning,Other Services,60031216,HARROW GREEN LTD,"3,903.04",16/10/2015
Commissioning,Commissioning,Other Services,60031315,HARROW GREEN LTD,"4,194.76",16/10/2015
Commissioning,Commissioning,Other Services,60031290,HARROW GREEN LTD,"4,362.40",16/10/2015
Commissioning,Commissioning,Other Services,60031217,HARROW GREEN LTD,"4,645.82",16/10/2015
Commissioning,Commissioning,Other Services,60031250,HARROW GREEN LTD,"4,950.90",16/10/2015
Commissioning,Commissioning,Other Services,60031249,HARROW GREEN LTD,"8,012.49",16/10/2015
Commissioning,Commissioning,Other Services,60030900,IMPOWER CONSULTING LIMITED,"12,631.26",08/10/2015
Commissioning,Commissioning,Other Services,60034112,IMPOWER CONSULTING LIMITED,"30,036.59",29/10/2015
Commissioning,Commissioning,Other Services,20024134,REDACTED - PERSONAL DATA,1.38,09/10/2015
Commissioning,Commissioning,Other Services,20024131,REDACTED - PERSONAL DATA,2.3,08/10/2015
Commissioning,Commissioning,Other Services,20024132,REDACTED - PERSONAL DATA,5.7,08/10/2015
Commissioning,Commissioning,Other Services,20024099,REDACTED - PERSONAL DATA,22.5,06/10/2015
Commissioning,Commissioning,Other Services,20024122,REDACTED - PERSONAL DATA,58.2,07/10/2015
Commissioning,Commissioning,Other Services,60035283,S W BRUCE & CO LTD,"1,636.00",23/10/2015
Commissioning,Commissioning,Printing-Contract,60033175,LETTERBOX DISTRIBUTION.COM,"8,970.00",05/10/2015
Commissioning,Commissioning,Printing-Contract,60035823,LETTERBOX DISTRIBUTION.COM,"8,970.00",27/10/2015
Commissioning,Commissioning,Printing-Contract,60033886,LONDON LETTERBOX MARKETING,670,14/10/2015
Commissioning,Commissioning,Printing-Contract,40001095,OFFICE DEPOT UK LTD,1.22,26/10/2015
Commissioning,Commissioning,Private Contractors - Third Pa,60028815,GREENWICH LEISURE LTD,"100,273.55",01/10/2015
Commissioning,Commissioning,Private Contractors - Third Pa,60030753,GREENWICH LEISURE LTD,"100,273.55",07/10/2015
Commissioning,Commissioning,Professional Services,10012765,31TEN CONSULTING LIMITED,"6,000.00",30/10/2015
Commissioning,Commissioning,Professional Services,60035375,CAPITA BUSINESS SERVICES LTD,"1,356.00",26/10/2015
Commissioning,Commissioning,Professional Services,10012760,GENERAL DYNAMICS INFORMATION TECHNOLOGY,"5,494.32",16/10/2015
Commissioning,Commissioning,Professional Services,10012661,GENERAL DYNAMICS INFORMATION TECHNOLOGY,"5,936.76",16/10/2015
Commissioning,Commissioning,Professional Services,60034817,IMPOWER CONSULTING LIMITED,"5,100.00",29/10/2015
Commissioning,Commissioning,Professional Services,60034165,PRICEWATERHOUSE COOPERS,"9,500.00",16/10/2015
Commissioning,Commissioning,Publications,60028664,DIGITALISSUE LIMITED,150,01/10/2015
Commissioning,Commissioning,Publications,60034515,REDACTED - PERSONAL DATA,150,14/10/2015
Commissioning,Commissioning,Publications,60034676,REDACTED - PERSONAL DATA,150,14/10/2015
Commissioning,Commissioning,Publications,60029581,TMP (UK) LTD,529.5,16/10/2015
Commissioning,Commissioning,Rubbish Collection,60033164,IRON MOUNTAIN (UK) LIMITED,249,05/10/2015
Commissioning,Commissioning,Rubbish Collection,60035151,PREMIER SHREDDING,175,27/10/2015
Commissioning,Commissioning,Software Licences & Support,60033929,LITTLE RED IDEAS LTD,"8,988.00",08/10/2015
Commissioning,Commissioning,Subscriptions,60033501,IRMS CUSTOMER SERVICES,"1,198.00",28/10/2015
Commissioning,Commissioning,Subscriptions,60033101,LONDON BOROUGH OF EALING,"15,000.00",22/10/2015
Commissioning,Commissioning,Subscriptions,60034980,OFCOM,"3,619.64",20/10/2015
Commissioning,Commissioning,Subscriptions,10012718,WESTMINSTER EDUCATION FORUM,210,02/10/2015
Commissioning,Commissioning,Training,60032006,CIPFA BUSINESS LIMITED,150,13/10/2015
Commissioning,Commissioning,Training,60031484,INSTITUTE OF REVENUES RATING,445,05/10/2015
Commissioning,Commissioning,Training,60033077,LOCAL GOVERNMENT ASSOCIATION,450,29/10/2015
Commissioning,Commissioning,Training,60030819,LOCAL GOVERNMENT ASSOCIATION,990,07/10/2015
Commissioning,Commissioning,Ttl IT & Comms,60034056,J.C.APPLICATIONS DEVELOPMENT,"6,579.00",12/10/2015
Commissioning,Commissioning,Water Services,60033980,AFFINITY WATER LIMITED,"831,952.67",28/10/2015
Corporate Accounting,Corporate Accounting,Equipment and Materials Purcha,60028378,ARGOS BUSINESS SOLUTIONS LTD,116,01/10/2015
Corporate Accounting,Corporate Accounting,Government departments - Third,20025414,DEPARTMENT FOR COMMUNITIES & LOCAL GOV.,"447,479.56",28/10/2015
Corporate Accounting,Corporate Accounting,Other Agencies - Third Party P,10012781,THE BARNETGROUP LIMITED,"2,155,000.00",29/10/2015
Corporate Accounting,Corporate Accounting,Other Establishments - Third P,30094302,PARKFIELD ACADEMY,"3,591.00",02/10/2015
Corporate Accounting,Corporate Accounting,Other Local Authorities - Thir,EBX0085121,GREATER LONDON AUTHORITY,"233,647.00",22/10/2015
Corporate Accounting,Corporate Accounting,Other Local Authorities - Thir,EBX0082894,GREATER LONDON AUTHORITY,"5,646,574.40",09/10/2015
Corporate Accounting,Corporate Accounting,Other Services,10012732,EDENRED,"2,150.50",09/10/2015
Corporate Accounting,Corporate Accounting,Other Transfer Payments to Soc,60035728,CITIBANK NA LONDON,50,27/10/2015
Corporate Accounting,Corporate Accounting,Other Transfer Payments to Soc,60033157,CITIBANK NA LONDON,57.9,05/10/2015
Corporate Accounting,Corporate Accounting,Other Transfer Payments to Soc,60035771,CITIBANK NA LONDON,57.9,27/10/2015
Corporate Accounting,Corporate Accounting,Other Transfer Payments to Soc,60035221,CITIBANK NA LONDON,59.86,22/10/2015
Corporate Accounting,Corporate Accounting,Other Transfer Payments to Soc,60035733,CITIBANK NA LONDON,78,27/10/2015
Corporate Accounting,Corporate Accounting,Other Transfer Payments to Soc,60033094,CITIBANK NA LONDON,120,05/10/2015
Corporate Accounting,Corporate Accounting,Other Transfer Payments to Soc,60033162,CITIBANK NA LONDON,130,05/10/2015
Corporate Accounting,Corporate Accounting,Other Transfer Payments to Soc,60035821,CITIBANK NA LONDON,132.9,27/10/2015
Corporate Accounting,Corporate Accounting,Other Transfer Payments to Soc,60033169,CITIBANK NA LONDON,140.15,05/10/2015
Corporate Accounting,Corporate Accounting,Other Transfer Payments to Soc,60031021,CITIBANK NA LONDON,172.12,14/10/2015
Corporate Accounting,Corporate Accounting,Other Transfer Payments to Soc,60033062,CITIBANK NA LONDON,173.7,05/10/2015
Corporate Accounting,Corporate Accounting,Other Transfer Payments to Soc,60035707,CITIBANK NA LONDON,199,27/10/2015
Corporate Accounting,Corporate Accounting,Other Transfer Payments to Soc,60035696,CITIBANK NA LONDON,200,27/10/2015
Corporate Accounting,Corporate Accounting,Other Transfer Payments to Soc,60033127,CITIBANK NA LONDON,203,05/10/2015
Corporate Accounting,Corporate Accounting,Other Transfer Payments to Soc,60033109,CITIBANK NA LONDON,204.28,05/10/2015
Corporate Accounting,Corporate Accounting,Other Transfer Payments to Soc,60033126,CITIBANK NA LONDON,208.5,05/10/2015
Corporate Accounting,Corporate Accounting,Other Transfer Payments to Soc,60035794,CITIBANK NA LONDON,237.25,27/10/2015
Corporate Accounting,Corporate Accounting,Other Transfer Payments to Soc,60035130,CITIBANK NA LONDON,251.8,22/10/2015
Corporate Accounting,Corporate Accounting,Other Transfer Payments to Soc,60035757,CITIBANK NA LONDON,257.9,27/10/2015
Corporate Accounting,Corporate Accounting,Other Transfer Payments to Soc,60034193,CITIBANK NA LONDON,260,20/10/2015
Corporate Accounting,Corporate Accounting,Other Transfer Payments to Soc,60033131,CITIBANK NA LONDON,262.8,05/10/2015
Corporate Accounting,Corporate Accounting,Other Transfer Payments to Soc,60033092,CITIBANK NA LONDON,280.8,05/10/2015
Corporate Accounting,Corporate Accounting,Other Transfer Payments to Soc,60033087,CITIBANK NA LONDON,289.5,05/10/2015
Corporate Accounting,Corporate Accounting,Other Transfer Payments to Soc,60033104,CITIBANK NA LONDON,328.7,05/10/2015
Corporate Accounting,Corporate Accounting,Other Transfer Payments to Soc,60035739,CITIBANK NA LONDON,576.6,27/10/2015
Corporate Accounting,Corporate Accounting,Other Transfer Payments to Soc,60030967,CITIBANK NA LONDON,585.6,19/10/2015
Corporate Accounting,Corporate Accounting,Other Transfer Payments to Soc,60035775,CITIBANK NA LONDON,600,27/10/2015
Corporate Accounting,Corporate Accounting,Other Transfer Payments to Soc,60033173,CITIBANK NA LONDON,600.8,05/10/2015
Corporate Accounting,Corporate Accounting,Other Transfer Payments to Soc,60034167,CITIBANK NA LONDON,609,13/10/2015
Corporate Accounting,Corporate Accounting,Other Transfer Payments to Soc,60033100,CITIBANK NA LONDON,680.9,05/10/2015
Corporate Accounting,Corporate Accounting,Other Transfer Payments to Soc,60035103,CITIBANK NA LONDON,707.1,22/10/2015
Corporate Accounting,Corporate Accounting,Other Transfer Payments to Soc,60033073,CITIBANK NA LONDON,717.73,05/10/2015
Corporate Accounting,Corporate Accounting,Other Transfer Payments to Soc,60035192,CITIBANK NA LONDON,"1,020.00",22/10/2015
Corporate Accounting,Corporate Accounting,Other Transfer Payments to Soc,60030364,CITIBANK NA LONDON,"1,480.00",09/10/2015
Corporate Accounting,Corporate Accounting,Other Transfer Payments to Soc,60032230,CITIBANK NA LONDON,"2,718.37",14/10/2015
Corporate Accounting,Corporate Accounting,Other Transfer Payments to Soc,60030145,CITIBANK NA LONDON,"2,739.47",15/10/2015
Corporate Accounting,Corporate Accounting,Other Transfer Payments to Soc,60035147,CITIBANK NA LONDON,"3,263.12",22/10/2015
Corporate Accounting,Corporate Accounting,Other Transfer Payments to Soc,60034675,CITIBANK NA LONDON,"14,001.85",15/10/2015
Delivery Units,Adults and Communities,Advertising,60027645,TMP (UK) LTD,"1,494.60",19/10/2015
Delivery Units,Adults and Communities,Cleaning and domestic material,40001086,OFFICE DEPOT UK LTD,65.28,26/10/2015
Delivery Units,Adults and Communities,Consultants Fees,60035767,PPL (PRIVATE PUBLIC LTD) CONSULTING,"9,050.00",29/10/2015
Delivery Units,Adults and Communities,Consultants Fees,60033761,PPL (PRIVATE PUBLIC LTD) CONSULTING,"27,550.00",23/10/2015
Delivery Units,Adults and Communities,Consultants Fees,60034796,VOICEABILITY,"2,988.00",19/10/2015
Delivery Units,Adults and Communities,Consultants Fees,60034776,VOICEABILITY,"5,611.00",19/10/2015
Delivery Units,Adults and Communities,Consumable Catering Supplies,40001085,OFFICE DEPOT UK LTD,19.46,26/10/2015
Delivery Units,Adults and Communities,Electricity,60032759,KENT COUNTY COUNCIL (KCS),242.08,12/10/2015
Delivery Units,Adults and Communities,Employee Expenses,60028243,CENTRAL LONDONCOMMUNITY HEALTHCARE,"106,288.00",14/10/2015
Delivery Units,Adults and Communities,Equipment and Materials Purcha,60033139,MEDEQUIP ASSISTIVE TECHNOLOGY LTD,"123,775.47",21/10/2015
Delivery Units,Adults and Communities,Equipment and Materials Purcha,60033070,MEDEQUIP ASSISTIVE TECHNOLOGY LTD,"228,754.07",05/10/2015
Delivery Units,Adults and Communities,Equipment and Materials Purcha,60036047,NYCOMM LTD,20.87,29/10/2015
Delivery Units,Adults and Communities,Equipment and Materials Purcha,60029982,PICKLES CHEMIST,326.41,08/10/2015
Delivery Units,Adults and Communities,Equipment and Materials Purcha,60031583,REDLAND HEALTHCARE LTD,760.5,19/10/2015
Delivery Units,Adults and Communities,Equipment and Materials Purcha,60030997,REDLAND HEALTHCARE LTD,"1,428.14",19/10/2015
Delivery Units,Adults and Communities,Food Costs,60032331,DAIRY CREST LIMITED,2.88,09/10/2015
Delivery Units,Adults and Communities,Food Costs,60031727,DAIRY CREST LIMITED,2.88,14/10/2015
Delivery Units,Adults and Communities,Food Costs,60033029,DAIRY CREST LIMITED,2.88,16/10/2015
Delivery Units,Adults and Communities,Food Costs,60033974,DAIRY CREST LIMITED,2.88,23/10/2015
Delivery Units,Adults and Communities,Food Costs,60034875,DAIRY CREST LIMITED,2.88,30/10/2015
Delivery Units,Adults and Communities,Furniture-Purchase-Repair,60035644,1 STOP LOCKSMITHS,140,23/10/2015
Delivery Units,Adults and Communities,Furniture-Purchase-Repair,10012761,BLUE 9 SECURITY LIMITED,"7,344.00",19/10/2015
Delivery Units,Adults and Communities,Gas,60030324,BRITISH GAS BUSINESS,328.5,02/10/2015
Delivery Units,Adults and Communities,Gas,60031717,KENT COUNTY COUNCIL (KCS),110.37,12/10/2015
Delivery Units,Adults and Communities,Gas,60035378,KENT COUNTY COUNCIL (KCS),132.73,23/10/2015
Delivery Units,Adults and Communities,Government Grants,60023433,ACADEMIA LTD,"1,659.45",22/10/2015
Delivery Units,Adults and Communities,Grounds maintenance,60026969,REDACTED - PERSONAL DATA,200,06/10/2015
Delivery Units,Adults and Communities,Hardware Purchases,60031578,ACADEMIA LTD,250,15/10/2015
Delivery Units,Adults and Communities,Hardware Purchases,60031627,ACADEMIA LTD,536,22/10/2015
Delivery Units,Adults and Communities,Hardware Purchases,60031341,ACADEMIA LTD,659.45,15/10/2015
Delivery Units,Adults and Communities,Hardware Purchases,60031256,ACADEMIA LTD,"6,115.68",15/10/2015
Delivery Units,Adults and Communities,Hardware Purchases,10012552,EVERON UK LIMITED,"1,360.00",05/10/2015
Delivery Units,Adults and Communities,Hardware Purchases,60025328,SPACE KRAFT LTD,495.95,01/10/2015
Delivery Units,Adults and Communities,Hardware Purchases,60025346,SPACE KRAFT LTD,495.95,01/10/2015
Delivery Units,Adults and Communities,Legal and Court Fees,20023978,CLARKE WILMOTT SOLICITORS,"16,640.03",02/10/2015
Delivery Units,Adults and Communities,Other Agencies - Third Party P,30095170,AARON COURT CARE HOME,"2,144.91",07/10/2015
Delivery Units,Adults and Communities,Other Agencies - Third Party P,30095854,ABBEY RAVENSCROFT PARK NURSING HOME,"-1,147.46",14/10/2015
Delivery Units,Adults and Communities,Other Agencies - Third Party P,30097758,ABBEY RAVENSCROFT PARK NURSING HOME,"-1,143.47",27/10/2015
Delivery Units,Adults and Communities,Other Agencies - Third Party P,30097762,ABBEY RAVENSCROFT PARK NURSING HOME,"-1,100.61",27/10/2015
Delivery Units,Adults and Communities,Other Agencies - Third Party P,30095142,ABBEY RAVENSCROFT PARK NURSING HOME,-541.29,07/10/2015
Delivery Units,Adults and Communities,Other Agencies - Third Party P,30097760,ABBEY RAVENSCROFT PARK NURSING HOME,-539.61,27/10/2015
Delivery Units,Adults and Communities,Other Agencies - Third Party P,30095856,ABBEY RAVENSCROFT PARK NURSING HOME,"1,092.00",14/10/2015
Delivery Units,Adults and Communities,Other Agencies - Third Party P,30095855,ABBEY RAVENSCROFT PARK NURSING HOME,"1,243.89",14/10/2015
Delivery Units,Adults and Communities,Other Agencies - Third Party P,30095141,ABBEY RAVENSCROFT PARK NURSING HOME,"2,244.13",07/10/2015
Delivery Units,Adults and Communities,Other Agencies - Third Party P,30095144,ABBEY RAVENSCROFT PARK NURSING HOME,"2,244.13",07/10/2015
Delivery Units,Adults and Communities,Other Agencies - Third Party P,30097759,ABBEY RAVENSCROFT PARK NURSING HOME,"2,244.14",27/10/2015
Delivery Units,Adults and Communities,Other Agencies - Third Party P,30095154,ABBEY RAVENSCROFT PARK NURSING HOME,"2,340.04",07/10/2015
Delivery Units,Adults and Communities,Other Agencies - Third Party P,30095030,ABBEY RAVENSCROFT PARK NURSING HOME,"2,468.54",06/10/2015
Delivery Units,Adults and Communities,Other Agencies - Third Party P,30095853,ABBEY RAVENSCROFT PARK NURSING HOME,"2,468.92",14/10/2015
Delivery Units,Adults and Communities,Other Agencies - Third Party P,30095151,ABBEY RAVENSCROFT PARK NURSING HOME,"2,485.71",07/10/2015
Delivery Units,Adults and Communities,Other Agencies - Third Party P,30095138,ABBEY RAVENSCROFT PARK NURSING HOME,"2,487.77",07/10/2015
Delivery Units,Adults and Communities,Other Agencies - Third Party P,30095139,ABBEY RAVENSCROFT PARK NURSING HOME,"2,487.77",07/10/2015
Delivery Units,Adults and Communities,Other Agencies - Third Party P,30095145,ABBEY RAVENSCROFT PARK NURSING HOME,"2,487.77",07/10/2015
Delivery Units,Adults and Communities,Other Agencies - Third Party P,30095146,ABBEY RAVENSCROFT PARK NURSING HOME,"2,487.77",07/10/2015
Delivery Units,Adults and Communities,Other Agencies - Third Party P,30095147,ABBEY RAVENSCROFT PARK NURSING HOME,"2,487.77",07/10/2015
Delivery Units,Adults and Communities,Other Agencies - Third Party P,30095148,ABBEY RAVENSCROFT PARK NURSING HOME,"2,487.77",07/10/2015
Delivery Units,Adults and Communities,Other Agencies - Third Party P,30095149,ABBEY RAVENSCROFT PARK NURSING HOME,"2,487.77",07/10/2015
Delivery Units,Adults and Communities,Other Agencies - Third Party P,30095508,ABBEY RAVENSCROFT PARK NURSING HOME,"2,487.77",09/10/2015
Delivery Units,Adults and Communities,Other Agencies - Third Party P,30097757,ABBEY RAVENSCROFT PARK NURSING HOME,"2,487.77",27/10/2015
Delivery Units,Adults and Communities,Other Agencies - Third Party P,30095140,ABBEY RAVENSCROFT PARK NURSING HOME,"2,571.43",07/10/2015
Delivery Units,Adults and Communities,Other Agencies - Third Party P,30095143,ABBEY RAVENSCROFT PARK NURSING HOME,"2,571.43",07/10/2015
Delivery Units,Adults and Communities,Other Agencies - Third Party P,30095851,ABBEY RAVENSCROFT PARK NURSING HOME,"2,657.14",14/10/2015
Delivery Units,Adults and Communities,Other Agencies - Third Party P,30095150,ABBEY RAVENSCROFT PARK NURSING HOME,"3,000.00",07/10/2015
Delivery Units,Adults and Communities,Other Agencies - Third Party P,30095152,ABBEY RAVENSCROFT PARK NURSING HOME,"3,000.00",07/10/2015
Delivery Units,Adults and Communities,Other Agencies - Third Party P,30095153,ABBEY RAVENSCROFT PARK NURSING HOME,"3,000.00",07/10/2015
Delivery Units,Adults and Communities,Other Agencies - Third Party P,30095852,ABBEY RAVENSCROFT PARK NURSING HOME,"3,100.00",14/10/2015
Delivery Units,Adults and Communities,Other Agencies - Third Party P,30097761,ABBEY RAVENSCROFT PARK NURSING HOME,"4,563.06",27/10/2015
Delivery Units,Adults and Communities,Other Agencies - Third Party P,30097048,ABOUT ME CARE & SUPPORT LTD,"1,365.84",21/10/2015
Delivery Units,Adults and Communities,Other Agencies - Third Party P,30095807,ACCEDO CARE LTD,"5,600.00",14/10/2015
Delivery Units,Adults and Communities,Other Agencies - Third Party P,30094533,ACCEDO CARE LTD,"8,960.00",02/10/2015
Delivery Units,Adults and Communities,Other Agencies - Third Party P,30097918,ACCEDO CARE LTD,"8,960.00",29/10/2015
Delivery Units,Adults and Communities,Other Agencies - Third Party P,30094541,ADVANTAGE HEALTHCARE GROUP LTD,70.2,08/10/2015
Delivery Units,Adults and Communities,Other Agencies - Third Party P,30094542,ADVANTAGE HEALTHCARE GROUP LTD,316.2,08/10/2015
Delivery Units,Adults and Communities,Other Agencies - Third Party P,30094537,ADVANTAGE HEALTHCARE GROUP LTD,658.67,02/10/2015
Delivery Units,Adults and Communities,Other Agencies - Third Party P,30094540,ADVANTAGE HEALTHCARE GROUP LTD,"1,101.63",08/10/2015
Delivery Units,Adults and Communities,Other Agencies - Third Party P,30094842,ADVANTAGE HEALTHCARE GROUP LTD,"1,753.48",29/10/2015
Delivery Units,Adults and Communities,Other Agencies - Third Party P,30094538,ADVANTAGE HEALTHCARE GROUP LTD,"1,754.00",08/10/2015
Delivery Units,Adults and Communities,Other Agencies - Third Party P,30094539,ADVANTAGE HEALTHCARE GROUP LTD,"1,881.48",08/10/2015
Delivery Units,Adults and Communities,Other Agencies - Third Party P,30094536,ADVANTAGE HEALTHCARE GROUP LTD,"1,919.79",02/10/2015
Delivery Units,Adults and Communities,Other Agencies - Third Party P,30094535,ADVANTAGE HEALTHCARE GROUP LTD,"2,015.19",02/10/2015
Delivery Units,Adults and Communities,Other Agencies - Third Party P,30095823,AGUDAS ISRAEL HOUSING ASSCTN LTD,-541.29,14/10/2015
Delivery Units,Adults and Communities,Other Agencies - Third Party P,30095054,AGUDAS ISRAEL HOUSING ASSCTN LTD,"1,092.02",07/10/2015
Delivery Units,Adults and Communities,Other Agencies - Third Party P,30096176,AGUDAS ISRAEL HOUSING ASSCTN LTD,"1,600.20",20/10/2015
Delivery Units,Adults and Communities,Other Agencies - Third Party P,30095826,AGUDAS ISRAEL HOUSING ASSCTN LTD,"2,446.29",14/10/2015
Delivery Units,Adults and Communities,Other Agencies - Third Party P,30095824,AGUDAS ISRAEL HOUSING ASSCTN LTD,"3,052.50",14/10/2015
Delivery Units,Adults and Communities,Other Agencies - Third Party P,30095822,AGUDAS ISRAEL HOUSING ASSCTN LTD,"3,214.29",14/10/2015
Delivery Units,Adults and Communities,Other Agencies - Third Party P,30095825,AGUDAS ISRAEL HOUSING ASSCTN LTD,"4,071.43",14/10/2015
Delivery Units,Adults and Communities,Other Agencies - Third Party P,30097661,ALLIED HEALTHCARE LTD,"3,977.67",26/10/2015
Delivery Units,Adults and Communities,Other Agencies - Third Party P,30097660,ALLIED HEALTHCARE LTD,"4,702.05",26/10/2015
Delivery Units,Adults and Communities,Other Agencies - Third Party P,30095603,ANA HOMECARE LTD,"1,087.08",13/10/2015
Delivery Units,Adults and Communities,Other Agencies - Third Party P,30095602,ANA HOMECARE LTD,"1,296.98",13/10/2015
Delivery Units,Adults and Communities,Other Agencies - Third Party P,30097440,ANASTASIA LODGE,"3,000.00",23/10/2015
Delivery Units,Adults and Communities,Other Agencies - Third Party P,30095157,ANCASTER COURT NURSING HOME,"2,487.77",07/10/2015
Delivery Units,Adults and Communities,Other Agencies - Third Party P,30097460,ANCHOR TRUST,"2,232.64",23/10/2015
Delivery Units,Adults and Communities,Other Agencies - Third Party P,30096190,APEX CARE HOME LTD,-344.79,16/10/2015
Delivery Units,Adults and Communities,Other Agencies - Third Party P,30096189,APEX CARE HOME LTD,"3,999.69",16/10/2015
Delivery Units,Adults and Communities,Other Agencies - Third Party P,30094691,ASHFIELDS RESIDENTIAL CARE HOME,"2,340.04",02/10/2015
Delivery Units,Adults and Communities,Other Agencies - Third Party P,30094692,ASHFIELDS RESIDENTIAL CARE HOME,"2,340.04",02/10/2015
Delivery Units,Adults and Communities,Other Agencies - Third Party P,30094690,ASHFIELDS RESIDENTIAL CARE HOME,"2,571.43",02/10/2015
Delivery Units,Adults and Communities,Other Agencies - Third Party P,30097545,ASHTON LODGE CARE CENTRE,"2,094.40",23/10/2015
Delivery Units,Adults and Communities,Other Agencies - Third Party P,30097203,AUTUMN GARDENS,"2,184.04",22/10/2015
Delivery Units,Adults and Communities,Other Agencies - Third Party P,30097204,AUTUMN GARDENS,"2,800.00",22/10/2015
Delivery Units,Adults and Communities,Other Agencies - Third Party P,30097205,AUTUMN GARDENS,"2,880.00",22/10/2015
Delivery Units,Adults and Communities,Other Agencies - Third Party P,30096074,B & M CARE,-929.46,27/10/2015
Delivery Units,Adults and Communities,Other Agencies - Third Party P,30097797,B & M CARE,-575.14,27/10/2015
Delivery Units,Adults and Communities,Other Agencies - Third Party P,30095182,B & M CARE,-556.59,07/10/2015
Delivery Units,Adults and Communities,Other Agencies - Third Party P,30095183,B & M CARE,"2,144.91",07/10/2015
Delivery Units,Adults and Communities,Other Agencies - Third Party P,30097794,B & M CARE,"2,216.41",27/10/2015
Delivery Units,Adults and Communities,Other Agencies - Third Party P,30095181,B & M CARE,"2,340.00",07/10/2015
Delivery Units,Adults and Communities,Other Agencies - Third Party P,30095184,B & M CARE,"2,340.04",07/10/2015
Delivery Units,Adults and Communities,Other Agencies - Third Party P,30095185,B & M CARE,"2,340.04",07/10/2015
Delivery Units,Adults and Communities,Other Agencies - Third Party P,30097796,B & M CARE,"2,418.00",27/10/2015
Delivery Units,Adults and Communities,Other Agencies - Third Party P,30097795,B & M CARE,"2,418.04",27/10/2015
Delivery Units,Adults and Communities,Other Agencies - Third Party P,30097798,B & M CARE,"2,418.04",27/10/2015
Delivery Units,Adults and Communities,Other Agencies - Third Party P,30097799,B & M CARE,"2,418.04",27/10/2015
Delivery Units,Adults and Communities,Other Agencies - Third Party P,30094771,BARNET CENTRE FOR INDEPENDENT LIVIN,"11,948.25",02/10/2015
Delivery Units,Adults and Communities,Other Agencies - Third Party P,30096926,BARNET CENTRE FOR INDEPENDENT LIVIN,"12,085.97",21/10/2015
Delivery Units,Adults and Communities,Other Agencies - Third Party P,30094772,BARNET HOMES LIMITED,"1,097.61",02/10/2015
Delivery Units,Adults and Communities,Other Agencies - Third Party P,30095699,BARNET MENCAP,263.2,13/10/2015
Delivery Units,Adults and Communities,Other Agencies - Third Party P,30095701,BARNET MENCAP,263.2,13/10/2015
Delivery Units,Adults and Communities,Other Agencies - Third Party P,30095704,BARNET MENCAP,509.95,13/10/2015
Delivery Units,Adults and Communities,Other Agencies - Third Party P,30095705,BARNET MENCAP,509.95,13/10/2015
Delivery Units,Adults and Communities,Other Agencies - Third Party P,30095706,BARNET MENCAP,509.95,13/10/2015
Delivery Units,Adults and Communities,Other Agencies - Third Party P,30095707,BARNET MENCAP,509.95,13/10/2015
Delivery Units,Adults and Communities,Other Agencies - Third Party P,30095708,BARNET MENCAP,509.95,13/10/2015
Delivery Units,Adults and Communities,Other Agencies - Third Party P,30095709,BARNET MENCAP,509.95,13/10/2015
Delivery Units,Adults and Communities,Other Agencies - Third Party P,30095710,BARNET MENCAP,509.95,13/10/2015
Delivery Units,Adults and Communities,Other Agencies - Third Party P,30095711,BARNET MENCAP,509.95,13/10/2015
Delivery Units,Adults and Communities,Other Agencies - Third Party P,30095712,BARNET MENCAP,509.95,13/10/2015
Delivery Units,Adults and Communities,Other Agencies - Third Party P,30095713,BARNET MENCAP,509.95,13/10/2015
Delivery Units,Adults and Communities,Other Agencies - Third Party P,30095703,BARNET MENCAP,592.2,13/10/2015
Delivery Units,Adults and Communities,Other Agencies - Third Party P,30096031,BARNET MENCAP,592.2,15/10/2015
Delivery Units,Adults and Communities,Other Agencies - Third Party P,30097550,BARNET MENCAP,"18,197.25",23/10/2015
Delivery Units,Adults and Communities,Other Agencies - Third Party P,30097551,BARNET MENCAP,"18,197.25",23/10/2015
Delivery Units,Adults and Communities,Other Agencies - Third Party P,30097746,BAYTREE COMMUNITY CARE (LONDON) LTD,-559.33,27/10/2015
Delivery Units,Adults and Communities,Other Agencies - Third Party P,30094619,BAYTREE COMMUNITY CARE (LONDON) LTD,-541.29,02/10/2015
Delivery Units,Adults and Communities,Other Agencies - Third Party P,30094620,BAYTREE COMMUNITY CARE (LONDON) LTD,"3,424.27",02/10/2015
Delivery Units,Adults and Communities,Other Agencies - Third Party P,30095834,BAYTREE COMMUNITY CARE (LONDON) LTD,"3,424.27",14/10/2015
Delivery Units,Adults and Communities,Other Agencies - Third Party P,30097747,BAYTREE COMMUNITY CARE (LONDON) LTD,"3,538.37",27/10/2015
Delivery Units,Adults and Communities,Other Agencies - Third Party P,30095085,BENSLOW MANAGEMENT COMPANY LIMITED,"2,340.04",07/10/2015
Delivery Units,Adults and Communities,Other Agencies - Third Party P,30094688,BIRCHWOOD GRANGE CARE HOME,"2,487.77",02/10/2015
Delivery Units,Adults and Communities,Other Agencies - Third Party P,30094687,BIRCHWOOD GRANGE CARE HOME,"2,571.43",02/10/2015
Delivery Units,Adults and Communities,Other Agencies - Third Party P,30095057,BRADBURY HOUSE ORGANISATION,-344.79,07/10/2015
Delivery Units,Adults and Communities,Other Agencies - Third Party P,30095056,BRADBURY HOUSE ORGANISATION,"3,349.07",07/10/2015
Delivery Units,Adults and Communities,Other Agencies - Third Party P,30094310,BROADWAY LODGE,"10,740.00",02/10/2015
Delivery Units,Adults and Communities,Other Agencies - Third Party P,30097642,BROOKDALE HEALTHCARE,"3,759.36",26/10/2015
Delivery Units,Adults and Communities,Other Agencies - Third Party P,30094978,BROOKDALE HEALTHCARE,"7,554.90",06/10/2015
Delivery Units,Adults and Communities,Other Agencies - Third Party P,30097703,BROOKDALE HEALTHCARE,"7,806.73",27/10/2015
Delivery Units,Adults and Communities,Other Agencies - Third Party P,30094976,BROOKDALE HEALTHCARE,"9,000.00",06/10/2015
Delivery Units,Adults and Communities,Other Agencies - Third Party P,30094977,BROOKDALE HEALTHCARE,"9,300.00",06/10/2015
Delivery Units,Adults and Communities,Other Agencies - Third Party P,30097701,BROOKDALE HEALTHCARE,"9,300.00",27/10/2015
Delivery Units,Adults and Communities,Other Agencies - Third Party P,30094980,BROOKDALE HEALTHCARE,"9,497.70",06/10/2015
Delivery Units,Adults and Communities,Other Agencies - Third Party P,30097702,BROOKDALE HEALTHCARE,"9,610.00",27/10/2015
Delivery Units,Adults and Communities,Other Agencies - Third Party P,30097705,BROOKDALE HEALTHCARE,"9,814.29",27/10/2015
Delivery Units,Adults and Communities,Other Agencies - Third Party P,30097528,BRUNSWICK SUPPORTED LIVING SERVICES,"1,412.68",23/10/2015
Delivery Units,Adults and Communities,Other Agencies - Third Party P,30097529,BRUNSWICK SUPPORTED LIVING SERVICES,"1,412.68",28/10/2015
Delivery Units,Adults and Communities,Other Agencies - Third Party P,30097530,BRUNSWICK SUPPORTED LIVING SERVICES,"1,942.84",23/10/2015
Delivery Units,Adults and Communities,Other Agencies - Third Party P,30097531,BRUNSWICK SUPPORTED LIVING SERVICES,"1,942.84",28/10/2015
Delivery Units,Adults and Communities,Other Agencies - Third Party P,30097541,BRUNSWICK SUPPORTED LIVING SERVICES,"2,153.92",23/10/2015
Delivery Units,Adults and Communities,Other Agencies - Third Party P,30097542,BRUNSWICK SUPPORTED LIVING SERVICES,"2,153.92",28/10/2015
Delivery Units,Adults and Communities,Other Agencies - Third Party P,30097396,BUPA CARE HOMES,-71.49,22/10/2015
Delivery Units,Adults and Communities,Other Agencies - Third Party P,30096075,BUPA CARE HOMES,663.41,15/10/2015
Delivery Units,Adults and Communities,Other Agencies - Third Party P,30096087,BUPA CARE HOMES,"1,128.57",15/10/2015
Delivery Units,Adults and Communities,Other Agencies - Third Party P,30095189,BUPA CARE HOMES,"1,326.02",07/10/2015
Delivery Units,Adults and Communities,Other Agencies - Third Party P,30095191,BUPA CARE HOMES,"1,421.28",07/10/2015
Delivery Units,Adults and Communities,Other Agencies - Third Party P,30095186,BUPA CARE HOMES,"1,716.03",07/10/2015
Delivery Units,Adults and Communities,Other Agencies - Third Party P,20025131,BUPA CARE HOMES,"1,907.29",20/10/2015
Delivery Units,Adults and Communities,Other Agencies - Third Party P,30097395,BUPA CARE HOMES,"2,144.91",22/10/2015
Delivery Units,Adults and Communities,Other Agencies - Third Party P,30097800,BUPA CARE HOMES,"2,144.91",27/10/2015
Delivery Units,Adults and Communities,Other Agencies - Third Party P,30095194,BUPA CARE HOMES,"2,169.32",07/10/2015
Delivery Units,Adults and Communities,Other Agencies - Third Party P,30097394,BUPA CARE HOMES,"2,216.41",22/10/2015
Delivery Units,Adults and Communities,Other Agencies - Third Party P,30096086,BUPA CARE HOMES,"2,227.80",15/10/2015
Delivery Units,Adults and Communities,Other Agencies - Third Party P,30094762,BUPA CARE HOMES,"2,239.37",06/10/2015
Delivery Units,Adults and Communities,Other Agencies - Third Party P,30094763,BUPA CARE HOMES,"2,239.37",06/10/2015
Delivery Units,Adults and Communities,Other Agencies - Third Party P,30095192,BUPA CARE HOMES,"2,244.13",07/10/2015
Delivery Units,Adults and Communities,Other Agencies - Third Party P,30096079,BUPA CARE HOMES,"2,244.13",15/10/2015
Delivery Units,Adults and Communities,Other Agencies - Third Party P,30096080,BUPA CARE HOMES,"2,244.13",15/10/2015
Delivery Units,Adults and Communities,Other Agencies - Third Party P,30096082,BUPA CARE HOMES,"2,244.13",15/10/2015
Delivery Units,Adults and Communities,Other Agencies - Third Party P,30096084,BUPA CARE HOMES,"2,244.13",15/10/2015
Delivery Units,Adults and Communities,Other Agencies - Third Party P,30096088,BUPA CARE HOMES,"2,244.13",15/10/2015
Delivery Units,Adults and Communities,Other Agencies - Third Party P,30095193,BUPA CARE HOMES,"2,318.93",07/10/2015
Delivery Units,Adults and Communities,Other Agencies - Third Party P,30096078,BUPA CARE HOMES,"2,318.93",15/10/2015
Delivery Units,Adults and Communities,Other Agencies - Third Party P,30097802,BUPA CARE HOMES,"2,318.93",27/10/2015
Delivery Units,Adults and Communities,Other Agencies - Third Party P,30094705,BUPA CARE HOMES,"2,340.04",02/10/2015
Delivery Units,Adults and Communities,Other Agencies - Third Party P,30094706,BUPA CARE HOMES,"2,340.04",02/10/2015
Delivery Units,Adults and Communities,Other Agencies - Third Party P,30094707,BUPA CARE HOMES,"2,340.04",02/10/2015
Delivery Units,Adults and Communities,Other Agencies - Third Party P,30094708,BUPA CARE HOMES,"2,340.04",02/10/2015
Delivery Units,Adults and Communities,Other Agencies - Third Party P,30095187,BUPA CARE HOMES,"2,340.04",07/10/2015
Delivery Units,Adults and Communities,Other Agencies - Third Party P,30095195,BUPA CARE HOMES,"2,340.04",07/10/2015
Delivery Units,Adults and Communities,Other Agencies - Third Party P,30095188,BUPA CARE HOMES,"2,418.04",07/10/2015
Delivery Units,Adults and Communities,Other Agencies - Third Party P,30094703,BUPA CARE HOMES,"2,487.77",02/10/2015
Delivery Units,Adults and Communities,Other Agencies - Third Party P,30094704,BUPA CARE HOMES,"2,487.77",02/10/2015
Delivery Units,Adults and Communities,Other Agencies - Third Party P,30096097,BUPA CARE HOMES,"2,487.77",15/10/2015
Delivery Units,Adults and Communities,Other Agencies - Third Party P,30097801,BUPA CARE HOMES,"2,528.57",27/10/2015
Delivery Units,Adults and Communities,Other Agencies - Third Party P,30096076,BUPA CARE HOMES,"2,570.70",15/10/2015
Delivery Units,Adults and Communities,Other Agencies - Third Party P,20025118,BUPA CARE HOMES,"2,570.70",20/10/2015
Delivery Units,Adults and Communities,Other Agencies - Third Party P,20025130,BUPA CARE HOMES,"2,570.70",20/10/2015
Delivery Units,Adults and Communities,Other Agencies - Third Party P,30096081,BUPA CARE HOMES,"2,785.71",15/10/2015
Delivery Units,Adults and Communities,Other Agencies - Third Party P,30096085,BUPA CARE HOMES,"2,829.73",15/10/2015
Delivery Units,Adults and Communities,Other Agencies - Third Party P,30096077,BUPA CARE HOMES,"2,878.57",15/10/2015
Delivery Units,Adults and Communities,Other Agencies - Third Party P,30094712,BUPA CARE HOMES,"3,153.69",02/10/2015
Delivery Units,Adults and Communities,Other Agencies - Third Party P,30094713,BUPA CARE HOMES,"3,153.69",02/10/2015
Delivery Units,Adults and Communities,Other Agencies - Third Party P,30094714,BUPA CARE HOMES,"3,214.29",02/10/2015
Delivery Units,Adults and Communities,Other Agencies - Third Party P,30094715,BUPA CARE HOMES,"3,214.29",02/10/2015
Delivery Units,Adults and Communities,Other Agencies - Third Party P,30096083,BUPA CARE HOMES,"4,285.71",15/10/2015
Delivery Units,Adults and Communities,Other Agencies - Third Party P,30094765,BUPA CARE HOMES,"4,686.43",06/10/2015
Delivery Units,Adults and Communities,Other Agencies - Third Party P,30094711,BUPA CARE HOMES,"7,500.00",02/10/2015
Delivery Units,Adults and Communities,Other Agencies - Third Party P,30097803,BUPA CARE HOMES,"7,750.00",27/10/2015
Delivery Units,Adults and Communities,Other Agencies - Third Party P,30096071,BUPA NURSING HOMES LTD - ARKLEY,"-1,570.89",15/10/2015
Delivery Units,Adults and Communities,Other Agencies - Third Party P,30096070,BUPA NURSING HOMES LTD - ARKLEY,598.43,15/10/2015
Delivery Units,Adults and Communities,Other Agencies - Third Party P,30096069,BUPA NURSING HOMES LTD - ARKLEY,"2,094.52",15/10/2015
Delivery Units,Adults and Communities,Other Agencies - Third Party P,30096090,CAMBIAN BEECHES,"-25,479.60",27/10/2015
Delivery Units,Adults and Communities,Other Agencies - Third Party P,30095530,CAMBIAN BEECHES,"12,739.80",09/10/2015
Delivery Units,Adults and Communities,Other Agencies - Third Party P,30095531,CAMBIAN BEECHES,"12,739.80",09/10/2015
Delivery Units,Adults and Communities,Other Agencies - Third Party P,30097805,CAMBIAN BEECHES,"13,164.46",27/10/2015
Delivery Units,Adults and Communities,Other Agencies - Third Party P,30097806,CAMBIAN BEECHES,"13,164.46",27/10/2015
Delivery Units,Adults and Communities,Other Agencies - Third Party P,30097443,CAMPHILL DEVON COMMUNITY LIMITED,"4,508.00",23/10/2015
Delivery Units,Adults and Communities,Other Agencies - Third Party P,30095001,CANDLE COURT NURSING HOME,"2,487.77",06/10/2015
Delivery Units,Adults and Communities,Other Agencies - Third Party P,30095002,CANDLE COURT NURSING HOME,"2,487.77",06/10/2015
Delivery Units,Adults and Communities,Other Agencies - Third Party P,30095075,CANDLE COURT NURSING HOME,"3,387.43",07/10/2015
Delivery Units,Adults and Communities,Other Agencies - Third Party P,30095003,CANDLE COURT NURSING HOME,"3,642.86",06/10/2015
Delivery Units,Adults and Communities,Other Agencies - Third Party P,30095077,CANDLE COURT NURSING HOME,"4,234.29",07/10/2015
Delivery Units,Adults and Communities,Other Agencies - Third Party P,30095076,CANDLE COURT NURSING HOME,"4,375.43",07/10/2015
Delivery Units,Adults and Communities,Other Agencies - Third Party P,30095035,CARE ASSIST LIMITED,"4,071.43",06/10/2015
Delivery Units,Adults and Communities,Other Agencies - Third Party P,30095036,CARE ASSIST LIMITED,"4,071.43",06/10/2015
Delivery Units,Adults and Communities,Other Agencies - Third Party P,30095175,CARE UK COMMUNITY PARTNERSHIPS,"2,774.96",07/10/2015
Delivery Units,Adults and Communities,Other Agencies - Third Party P,30096067,CAREBASE BURNT OAK 2006 LIMITED,-74.86,22/10/2015
Delivery Units,Adults and Communities,Other Agencies - Third Party P,30094670,CAREBASE BURNT OAK 2006 LIMITED,"2,244.13",02/10/2015
Delivery Units,Adults and Communities,Other Agencies - Third Party P,30094674,CAREBASE BURNT OAK 2006 LIMITED,"2,340.04",02/10/2015
Delivery Units,Adults and Communities,Other Agencies - Third Party P,30094677,CAREBASE BURNT OAK 2006 LIMITED,"2,340.04",02/10/2015
Delivery Units,Adults and Communities,Other Agencies - Third Party P,30094671,CAREBASE BURNT OAK 2006 LIMITED,"2,487.77",02/10/2015
Delivery Units,Adults and Communities,Other Agencies - Third Party P,30094672,CAREBASE BURNT OAK 2006 LIMITED,"2,487.77",02/10/2015
Delivery Units,Adults and Communities,Other Agencies - Third Party P,30094673,CAREBASE BURNT OAK 2006 LIMITED,"2,487.77",02/10/2015
Delivery Units,Adults and Communities,Other Agencies - Third Party P,30094675,CAREBASE BURNT OAK 2006 LIMITED,"2,487.77",02/10/2015
Delivery Units,Adults and Communities,Other Agencies - Third Party P,30094678,CAREBASE BURNT OAK 2006 LIMITED,"2,487.77",02/10/2015
Delivery Units,Adults and Communities,Other Agencies - Third Party P,30094676,CAREBASE BURNT OAK 2006 LIMITED,"2,571.43",02/10/2015
Delivery Units,Adults and Communities,Other Agencies - Third Party P,30097188,CAREBASE BURNT OAK 2006 LIMITED,"7,140.00",22/10/2015
Delivery Units,Adults and Communities,Other Agencies - Third Party P,30094396,CARETECH COMMUNITY SERVICES LTD,"3,881.43",02/10/2015
Delivery Units,Adults and Communities,Other Agencies - Third Party P,30095238,CARETECH COMMUNITY SERVICES LTD,"4,478.57",07/10/2015
Delivery Units,Adults and Communities,Other Agencies - Third Party P,30095821,CARLTON COURT (TLC GROUP),"-1,795.30",14/10/2015
Delivery Units,Adults and Communities,Other Agencies - Third Party P,30095819,CARLTON COURT (TLC GROUP),"-1,525.35",14/10/2015
Delivery Units,Adults and Communities,Other Agencies - Third Party P,30095817,CARLTON COURT (TLC GROUP),"-1,421.28",14/10/2015
Delivery Units,Adults and Communities,Other Agencies - Third Party P,30094565,CARLTON COURT (TLC GROUP),-543.43,02/10/2015
Delivery Units,Adults and Communities,Other Agencies - Third Party P,30095814,CARLTON COURT (TLC GROUP),82.93,14/10/2015
Delivery Units,Adults and Communities,Other Agencies - Third Party P,30095812,CARLTON COURT (TLC GROUP),"1,688.48",14/10/2015
Delivery Units,Adults and Communities,Other Agencies - Third Party P,30095820,CARLTON COURT (TLC GROUP),"1,857.14",14/10/2015
Delivery Units,Adults and Communities,Other Agencies - Third Party P,30094557,CARLTON COURT (TLC GROUP),"2,144.91",02/10/2015
Delivery Units,Adults and Communities,Other Agencies - Third Party P,30094559,CARLTON COURT (TLC GROUP),"2,144.91",02/10/2015
Delivery Units,Adults and Communities,Other Agencies - Third Party P,30094562,CARLTON COURT (TLC GROUP),"2,144.91",02/10/2015
Delivery Units,Adults and Communities,Other Agencies - Third Party P,30094575,CARLTON COURT (TLC GROUP),"2,144.91",02/10/2015
Delivery Units,Adults and Communities,Other Agencies - Third Party P,30094574,CARLTON COURT (TLC GROUP),"2,244.13",02/10/2015
Delivery Units,Adults and Communities,Other Agencies - Third Party P,30095815,CARLTON COURT (TLC GROUP),"2,244.13",14/10/2015
Delivery Units,Adults and Communities,Other Agencies - Third Party P,30095813,CARLTON COURT (TLC GROUP),"2,318.93",14/10/2015
Delivery Units,Adults and Communities,Other Agencies - Third Party P,30094558,CARLTON COURT (TLC GROUP),"2,340.04",02/10/2015
Delivery Units,Adults and Communities,Other Agencies - Third Party P,30094578,CARLTON COURT (TLC GROUP),"2,340.04",02/10/2015
Delivery Units,Adults and Communities,Other Agencies - Third Party P,30094560,CARLTON COURT (TLC GROUP),"2,487.77",02/10/2015
Delivery Units,Adults and Communities,Other Agencies - Third Party P,30094561,CARLTON COURT (TLC GROUP),"2,487.77",02/10/2015
Delivery Units,Adults and Communities,Other Agencies - Third Party P,30094563,CARLTON COURT (TLC GROUP),"2,487.77",02/10/2015
Delivery Units,Adults and Communities,Other Agencies - Third Party P,30094564,CARLTON COURT (TLC GROUP),"2,487.77",02/10/2015
Delivery Units,Adults and Communities,Other Agencies - Third Party P,30094566,CARLTON COURT (TLC GROUP),"2,487.77",02/10/2015
Delivery Units,Adults and Communities,Other Agencies - Third Party P,30094567,CARLTON COURT (TLC GROUP),"2,487.77",02/10/2015
Delivery Units,Adults and Communities,Other Agencies - Third Party P,30094568,CARLTON COURT (TLC GROUP),"2,487.77",02/10/2015
Delivery Units,Adults and Communities,Other Agencies - Third Party P,30094571,CARLTON COURT (TLC GROUP),"2,487.77",02/10/2015
Delivery Units,Adults and Communities,Other Agencies - Third Party P,30094572,CARLTON COURT (TLC GROUP),"2,487.77",02/10/2015
Delivery Units,Adults and Communities,Other Agencies - Third Party P,30094576,CARLTON COURT (TLC GROUP),"2,487.77",02/10/2015
Delivery Units,Adults and Communities,Other Agencies - Third Party P,30095857,CARLTON COURT (TLC GROUP),"2,570.70",14/10/2015
Delivery Units,Adults and Communities,Other Agencies - Third Party P,30094569,CARLTON COURT (TLC GROUP),"3,214.29",02/10/2015
Delivery Units,Adults and Communities,Other Agencies - Third Party P,30094570,CARLTON COURT (TLC GROUP),"3,600.90",02/10/2015
Delivery Units,Adults and Communities,Other Agencies - Third Party P,30094579,CARLTON COURT (TLC GROUP),"3,642.86",02/10/2015
Delivery Units,Adults and Communities,Other Agencies - Third Party P,30094573,CARLTON COURT (TLC GROUP),"5,571.43",02/10/2015
Delivery Units,Adults and Communities,Other Agencies - Third Party P,30095816,CARLTON COURT (TLC GROUP),"6,283.56",14/10/2015
Delivery Units,Adults and Communities,Other Agencies - Third Party P,30095064,CARMEN LODGE RESIDENTIAL HOME,"2,651.10",07/10/2015
Delivery Units,Adults and Communities,Other Agencies - Third Party P,30095827,CARMEN LODGE RESIDENTIAL HOME,"2,651.10",19/10/2015
Delivery Units,Adults and Communities,Other Agencies - Third Party P,30096159,CATHERINE LODGE,"2,184.04",16/10/2015
Delivery Units,Adults and Communities,Other Agencies - Third Party P,30095456,CENTRAL MIDDLESEX SKILLS,"-1,266.44",13/10/2015
Delivery Units,Adults and Communities,Other Agencies - Third Party P,30095612,CENTRAL MIDDLESEX SKILLS,723.68,13/10/2015
Delivery Units,Adults and Communities,Other Agencies - Third Party P,30095611,CENTRAL MIDDLESEX SKILLS,"1,266.44",13/10/2015
Delivery Units,Adults and Communities,Other Agencies - Third Party P,30095081,CHATSWORTH CARE,"10,264.29",07/10/2015
Delivery Units,Adults and Communities,Other Agencies - Third Party P,30095977,CHEQUERS TRANSPORT LIMITED,44,15/10/2015
Delivery Units,Adults and Communities,Other Agencies - Third Party P,30096160,CHEQUERS TRANSPORT LIMITED,60,16/10/2015
Delivery Units,Adults and Communities,Other Agencies - Third Party P,30095978,CHEQUERS TRANSPORT LIMITED,187.88,15/10/2015
Delivery Units,Adults and Communities,Other Agencies - Third Party P,30095976,CHEQUERS TRANSPORT LIMITED,446.4,15/10/2015
Delivery Units,Adults and Communities,Other Agencies - Third Party P,20023947,CHINGFORD KENNELS,225,06/10/2015
Delivery Units,Adults and Communities,Other Agencies - Third Party P,20025075,CHINGFORD KENNELS,360,16/10/2015
Delivery Units,Adults and Communities,Other Agencies - Third Party P,20023949,CHINGFORD KENNELS,387,06/10/2015
Delivery Units,Adults and Communities,Other Agencies - Third Party P,30095470,CHOICE CARE GROUP,-344.79,09/10/2015
Delivery Units,Adults and Communities,Other Agencies - Third Party P,30095469,CHOICE CARE GROUP,"8,454.90",09/10/2015
Delivery Units,Adults and Communities,Other Agencies - Third Party P,20025073,CHURCHILLS,407,16/10/2015
Delivery Units,Adults and Communities,Other Agencies - Third Party P,20025074,CHURCHILLS,900,16/10/2015
Delivery Units,Adults and Communities,Other Agencies - Third Party P,30095031,CLARE HOUSE NURSING HOME,"2,094.52",06/10/2015
Delivery Units,Adults and Communities,Other Agencies - Third Party P,30096179,CLARE HOUSE NURSING HOME,"2,094.52",16/10/2015
Delivery Units,Adults and Communities,Other Agencies - Third Party P,30094695,CLOVELLY HOUSE RESID. HOME LTD,-713.04,02/10/2015
Delivery Units,Adults and Communities,Other Agencies - Third Party P,30097790,CLOVELLY HOUSE RESID. HOME LTD,-50.93,27/10/2015
Delivery Units,Adults and Communities,Other Agencies - Third Party P,30094698,CLOVELLY HOUSE RESID. HOME LTD,"1,872.64",02/10/2015
Delivery Units,Adults and Communities,Other Agencies - Third Party P,30097785,CLOVELLY HOUSE RESID. HOME LTD,"1,872.64",27/10/2015
Delivery Units,Adults and Communities,Other Agencies - Third Party P,30094697,CLOVELLY HOUSE RESID. HOME LTD,"2,184.04",02/10/2015
Delivery Units,Adults and Communities,Other Agencies - Third Party P,30094700,CLOVELLY HOUSE RESID. HOME LTD,"2,184.04",02/10/2015
Delivery Units,Adults and Communities,Other Agencies - Third Party P,30094701,CLOVELLY HOUSE RESID. HOME LTD,"2,184.04",02/10/2015
Delivery Units,Adults and Communities,Other Agencies - Third Party P,30097787,CLOVELLY HOUSE RESID. HOME LTD,"2,184.04",27/10/2015
Delivery Units,Adults and Communities,Other Agencies - Third Party P,30094693,CLOVELLY HOUSE RESID. HOME LTD,"2,600.00",02/10/2015
Delivery Units,Adults and Communities,Other Agencies - Third Party P,30094696,CLOVELLY HOUSE RESID. HOME LTD,"2,600.00",02/10/2015
Delivery Units,Adults and Communities,Other Agencies - Third Party P,30094699,CLOVELLY HOUSE RESID. HOME LTD,"2,600.00",02/10/2015
Delivery Units,Adults and Communities,Other Agencies - Third Party P,30094317,CMG HOMES LTD,-710.88,02/10/2015
Delivery Units,Adults and Communities,Other Agencies - Third Party P,30094998,CMG HOMES LTD,-505.2,06/10/2015
Delivery Units,Adults and Communities,Other Agencies - Third Party P,30094312,CMG HOMES LTD,-396.94,02/10/2015
Delivery Units,Adults and Communities,Other Agencies - Third Party P,30094315,CMG HOMES LTD,-396.94,02/10/2015
Delivery Units,Adults and Communities,Other Agencies - Third Party P,30094313,CMG HOMES LTD,592.4,02/10/2015
Delivery Units,Adults and Communities,Other Agencies - Third Party P,30094316,CMG HOMES LTD,592.4,02/10/2015
Delivery Units,Adults and Communities,Other Agencies - Third Party P,30094311,CMG HOMES LTD,"1,648.40",02/10/2015
Delivery Units,Adults and Communities,Other Agencies - Third Party P,30094314,CMG HOMES LTD,"1,648.40",02/10/2015
Delivery Units,Adults and Communities,Other Agencies - Third Party P,30095606,CMG HOMES LTD,"3,086.84",13/10/2015
Delivery Units,Adults and Communities,Other Agencies - Third Party P,30094997,CMG HOMES LTD,"3,990.12",06/10/2015
Delivery Units,Adults and Communities,Other Agencies - Third Party P,30094588,COMPLETE CARE SERVICES LTD,"5,251.80",02/10/2015
Delivery Units,Adults and Communities,Other Agencies - Third Party P,30095216,CONNIFERS CARE LTD,"8,270.74",07/10/2015
Delivery Units,Adults and Communities,Other Agencies - Third Party P,20025272,COURT OF PROTECTION,400,23/10/2015
Delivery Units,Adults and Communities,Other Agencies - Third Party P,30094606,CRAEGMOOR,-271.93,02/10/2015
Delivery Units,Adults and Communities,Other Agencies - Third Party P,30094605,CRAEGMOOR,"3,665.19",02/10/2015
Delivery Units,Adults and Communities,Other Agencies - Third Party P,30095011,CRESWICK HOUSE,-321.8,06/10/2015
Delivery Units,Adults and Communities,Other Agencies - Third Party P,30095010,CRESWICK HOUSE,"3,608.24",06/10/2015
Delivery Units,Adults and Communities,Other Agencies - Third Party P,30093972,CRESWICK HOUSE,"7,123.12",05/10/2015
Delivery Units,Adults and Communities,Other Agencies - Third Party P,30095012,CRESWICK HOUSE,"7,123.12",06/10/2015
Delivery Units,Adults and Communities,Other Agencies - Third Party P,30096173,DABB PAA,"1,092.96",16/10/2015
Delivery Units,Adults and Communities,Other Agencies - Third Party P,30097713,DANA CARE LIMITED,-356.28,27/10/2015
Delivery Units,Adults and Communities,Other Agencies - Third Party P,30097717,DANA CARE LIMITED,-356.28,27/10/2015
Delivery Units,Adults and Communities,Other Agencies - Third Party P,30097726,DANA CARE LIMITED,-356.28,27/10/2015
Delivery Units,Adults and Communities,Other Agencies - Third Party P,30097738,DANA CARE LIMITED,-356.28,27/10/2015
Delivery Units,Adults and Communities,Other Agencies - Third Party P,30094581,DANA CARE LIMITED,-344.79,02/10/2015
Delivery Units,Adults and Communities,Other Agencies - Third Party P,30096038,DANA CARE LIMITED,-344.79,15/10/2015
Delivery Units,Adults and Communities,Other Agencies - Third Party P,30096066,DANA CARE LIMITED,-344.79,15/10/2015
Delivery Units,Adults and Communities,Other Agencies - Third Party P,30097740,DANA CARE LIMITED,-275.83,27/10/2015
Delivery Units,Adults and Communities,Other Agencies - Third Party P,30097770,DANA CARE LIMITED,-275.83,27/10/2015
Delivery Units,Adults and Communities,Other Agencies - Third Party P,30097715,DANA CARE LIMITED,-68.53,27/10/2015
Delivery Units,Adults and Communities,Other Agencies - Third Party P,30097714,DANA CARE LIMITED,958.4,27/10/2015
Delivery Units,Adults and Communities,Other Agencies - Third Party P,30096037,DANA CARE LIMITED,"4,791.56",15/10/2015
Delivery Units,Adults and Communities,Other Agencies - Third Party P,30097712,DANA CARE LIMITED,"4,951.28",27/10/2015
Delivery Units,Adults and Communities,Other Agencies - Third Party P,30097716,DANA CARE LIMITED,"4,951.28",27/10/2015
Delivery Units,Adults and Communities,Other Agencies - Third Party P,30097739,DANA CARE LIMITED,"6,329.86",27/10/2015
Delivery Units,Adults and Communities,Other Agencies - Third Party P,30097769,DANA CARE LIMITED,"7,820.57",27/10/2015
Delivery Units,Adults and Communities,Other Agencies - Third Party P,30096065,DANA CARE LIMITED,"7,912.33",15/10/2015
Delivery Units,Adults and Communities,Other Agencies - Third Party P,30097737,DANA CARE LIMITED,"8,176.07",27/10/2015
Delivery Units,Adults and Communities,Other Agencies - Third Party P,30094625,DANA CARE LIMITED,"9,582.86",02/10/2015
Delivery Units,Adults and Communities,Other Agencies - Third Party P,30094580,DANA CARE LIMITED,"9,775.72",02/10/2015
Delivery Units,Adults and Communities,Other Agencies - Third Party P,30097725,DANA CARE LIMITED,"10,101.57",27/10/2015
Delivery Units,Adults and Communities,Other Agencies - Third Party P,30094356,DEVELOPMENT AND LEARNING OPPORTUNIT,153,02/10/2015
Delivery Units,Adults and Communities,Other Agencies - Third Party P,30095643,DEVELOPMENT AND LEARNING OPPORTUNIT,227.07,13/10/2015
Delivery Units,Adults and Communities,Other Agencies - Third Party P,30094363,DEVELOPMENT AND LEARNING OPPORTUNIT,229.5,02/10/2015
Delivery Units,Adults and Communities,Other Agencies - Third Party P,30094349,DEVELOPMENT AND LEARNING OPPORTUNIT,306,02/10/2015
Delivery Units,Adults and Communities,Other Agencies - Third Party P,30094350,DEVELOPMENT AND LEARNING OPPORTUNIT,306,02/10/2015
Delivery Units,Adults and Communities,Other Agencies - Third Party P,30094357,DEVELOPMENT AND LEARNING OPPORTUNIT,306,02/10/2015
Delivery Units,Adults and Communities,Other Agencies - Third Party P,30094358,DEVELOPMENT AND LEARNING OPPORTUNIT,306,02/10/2015
Delivery Units,Adults and Communities,Other Agencies - Third Party P,30094359,DEVELOPMENT AND LEARNING OPPORTUNIT,306,02/10/2015
Delivery Units,Adults and Communities,Other Agencies - Third Party P,30094360,DEVELOPMENT AND LEARNING OPPORTUNIT,306,02/10/2015
Delivery Units,Adults and Communities,Other Agencies - Third Party P,30094361,DEVELOPMENT AND LEARNING OPPORTUNIT,306,02/10/2015
Delivery Units,Adults and Communities,Other Agencies - Third Party P,30094362,DEVELOPMENT AND LEARNING OPPORTUNIT,306,02/10/2015
Delivery Units,Adults and Communities,Other Agencies - Third Party P,30094364,DEVELOPMENT AND LEARNING OPPORTUNIT,306,02/10/2015
Delivery Units,Adults and Communities,Other Agencies - Third Party P,30094365,DEVELOPMENT AND LEARNING OPPORTUNIT,306,02/10/2015
Delivery Units,Adults and Communities,Other Agencies - Third Party P,30094883,DEVELOPMENT AND LEARNING OPPORTUNIT,500,05/10/2015
Delivery Units,Adults and Communities,Other Agencies - Third Party P,30094885,DEVELOPMENT AND LEARNING OPPORTUNIT,652.4,05/10/2015
Delivery Units,Adults and Communities,Other Agencies - Third Party P,30095642,DEVELOPMENT AND LEARNING OPPORTUNIT,681.21,13/10/2015
Delivery Units,Adults and Communities,Other Agencies - Third Party P,30097903,DEVELOPMENT AND LEARNING OPPORTUNIT,"1,053.00",29/10/2015
Delivery Units,Adults and Communities,Other Agencies - Third Party P,30094884,DEVELOPMENT AND LEARNING OPPORTUNIT,"1,056.00",05/10/2015
Delivery Units,Adults and Communities,Other Agencies - Third Party P,30094852,DEVELOPMENT AND LEARNING OPPORTUNIT,"2,025.00",05/10/2015
Delivery Units,Adults and Communities,Other Agencies - Third Party P,30096036,DILLON CARE LTD,"3,900.00",15/10/2015
Delivery Units,Adults and Communities,Other Agencies - Third Party P,30095651,DIMENSIONS UK,74.8,13/10/2015
Delivery Units,Adults and Communities,Other Agencies - Third Party P,30095653,DIMENSIONS UK,74.8,13/10/2015
Delivery Units,Adults and Communities,Other Agencies - Third Party P,30095657,DIMENSIONS UK,74.8,13/10/2015
Delivery Units,Adults and Communities,Other Agencies - Third Party P,30095665,DIMENSIONS UK,112.2,13/10/2015
Delivery Units,Adults and Communities,Other Agencies - Third Party P,30094749,DIMENSIONS UK,149.6,02/10/2015
Delivery Units,Adults and Communities,Other Agencies - Third Party P,30094750,DIMENSIONS UK,149.6,02/10/2015
Delivery Units,Adults and Communities,Other Agencies - Third Party P,30094751,DIMENSIONS UK,149.6,02/10/2015
Delivery Units,Adults and Communities,Other Agencies - Third Party P,30095552,DIMENSIONS UK,149.6,09/10/2015
Delivery Units,Adults and Communities,Other Agencies - Third Party P,30095647,DIMENSIONS UK,149.6,13/10/2015
Delivery Units,Adults and Communities,Other Agencies - Third Party P,30095649,DIMENSIONS UK,149.6,13/10/2015
Delivery Units,Adults and Communities,Other Agencies - Third Party P,30095650,DIMENSIONS UK,149.6,13/10/2015
Delivery Units,Adults and Communities,Other Agencies - Third Party P,30095652,DIMENSIONS UK,149.6,13/10/2015
Delivery Units,Adults and Communities,Other Agencies - Third Party P,30095654,DIMENSIONS UK,149.6,13/10/2015
Delivery Units,Adults and Communities,Other Agencies - Third Party P,30095655,DIMENSIONS UK,149.6,13/10/2015
Delivery Units,Adults and Communities,Other Agencies - Third Party P,30095656,DIMENSIONS UK,149.6,13/10/2015
Delivery Units,Adults and Communities,Other Agencies - Third Party P,30095662,DIMENSIONS UK,149.6,13/10/2015
Delivery Units,Adults and Communities,Other Agencies - Third Party P,30095664,DIMENSIONS UK,149.6,13/10/2015
Delivery Units,Adults and Communities,Other Agencies - Third Party P,30095666,DIMENSIONS UK,149.6,13/10/2015
Delivery Units,Adults and Communities,Other Agencies - Third Party P,30095667,DIMENSIONS UK,149.6,13/10/2015
Delivery Units,Adults and Communities,Other Agencies - Third Party P,30095668,DIMENSIONS UK,149.6,13/10/2015
Delivery Units,Adults and Communities,Other Agencies - Third Party P,30095669,DIMENSIONS UK,149.6,13/10/2015
Delivery Units,Adults and Communities,Other Agencies - Third Party P,30094752,DIMENSIONS UK,205.7,02/10/2015
Delivery Units,Adults and Communities,Other Agencies - Third Party P,30095646,DIMENSIONS UK,224.4,13/10/2015
Delivery Units,Adults and Communities,Other Agencies - Third Party P,30095648,DIMENSIONS UK,224.4,13/10/2015
Delivery Units,Adults and Communities,Other Agencies - Third Party P,30095660,DIMENSIONS UK,224.4,13/10/2015
Delivery Units,Adults and Communities,Other Agencies - Third Party P,30095659,DIMENSIONS UK,299.2,13/10/2015
Delivery Units,Adults and Communities,Other Agencies - Third Party P,30095661,DIMENSIONS UK,299.2,13/10/2015
Delivery Units,Adults and Communities,Other Agencies - Third Party P,30096188,DIMENSIONS UK,372.96,16/10/2015
Delivery Units,Adults and Communities,Other Agencies - Third Party P,30095663,DIMENSIONS UK,448.8,13/10/2015
Delivery Units,Adults and Communities,Other Agencies - Third Party P,30095658,DIMENSIONS UK,523.6,13/10/2015
Delivery Units,Adults and Communities,Other Agencies - Third Party P,30094747,DIMENSIONS UK,"1,570.80",02/10/2015
Delivery Units,Adults and Communities,Other Agencies - Third Party P,30094748,DIMENSIONS UK,"1,570.80",02/10/2015
Delivery Units,Adults and Communities,Other Agencies - Third Party P,30094745,DIMENSIONS UK,"1,870.00",02/10/2015
Delivery Units,Adults and Communities,Other Agencies - Third Party P,30094746,DIMENSIONS UK,"1,870.00",02/10/2015
Delivery Units,Adults and Communities,Other Agencies - Third Party P,30095877,DR FRENCH MEMORIAL HOME LTD,"4,758.08",14/10/2015
Delivery Units,Adults and Communities,Other Agencies - Third Party P,30097390,DR FRENCH MEMORIAL HOME LTD,"12,164.32",23/10/2015
Delivery Units,Adults and Communities,Other Agencies - Third Party P,30097429,DYNAMIC PEOPLE LTD,11.06,23/10/2015
Delivery Units,Adults and Communities,Other Agencies - Third Party P,30097432,DYNAMIC PEOPLE LTD,66.35,23/10/2015
Delivery Units,Adults and Communities,Other Agencies - Third Party P,30097428,DYNAMIC PEOPLE LTD,180.6,23/10/2015
Delivery Units,Adults and Communities,Other Agencies - Third Party P,30097431,DYNAMIC PEOPLE LTD,180.6,23/10/2015
Delivery Units,Adults and Communities,Other Agencies - Third Party P,30097434,DYNAMIC PEOPLE LTD,180.6,23/10/2015
Delivery Units,Adults and Communities,Other Agencies - Third Party P,30097646,DYNAMIC PEOPLE LTD,206.4,26/10/2015
Delivery Units,Adults and Communities,Other Agencies - Third Party P,30097911,DYNAMIC PEOPLE LTD,420,29/10/2015
Delivery Units,Adults and Communities,Other Agencies - Third Party P,30094035,EAST SUSSEX COUNTY COUNCIL,-244.4,16/10/2015
Delivery Units,Adults and Communities,Other Agencies - Third Party P,30094036,EAST SUSSEX COUNTY COUNCIL,-61.1,16/10/2015
Delivery Units,Adults and Communities,Other Agencies - Third Party P,30094031,EAST SUSSEX COUNTY COUNCIL,122.2,16/10/2015
Delivery Units,Adults and Communities,Other Agencies - Third Party P,30094032,EAST SUSSEX COUNTY COUNCIL,122.2,16/10/2015
Delivery Units,Adults and Communities,Other Agencies - Third Party P,30094030,EAST SUSSEX COUNTY COUNCIL,152.75,16/10/2015
Delivery Units,Adults and Communities,Other Agencies - Third Party P,30091422,EAST SUSSEX COUNTY COUNCIL,244.4,01/10/2015
Delivery Units,Adults and Communities,Other Agencies - Third Party P,30094029,EAST SUSSEX COUNTY COUNCIL,244.4,16/10/2015
Delivery Units,Adults and Communities,Other Agencies - Third Party P,30094033,EAST SUSSEX COUNTY COUNCIL,244.4,16/10/2015
Delivery Units,Adults and Communities,Other Agencies - Third Party P,30094034,EAST SUSSEX COUNTY COUNCIL,244.4,16/10/2015
Delivery Units,Adults and Communities,Other Agencies - Third Party P,30094026,EAST SUSSEX COUNTY COUNCIL,305.5,16/10/2015
Delivery Units,Adults and Communities,Other Agencies - Third Party P,30094025,EAST SUSSEX COUNTY COUNCIL,366.6,16/10/2015
Delivery Units,Adults and Communities,Other Agencies - Third Party P,30094027,EAST SUSSEX COUNTY COUNCIL,488.8,16/10/2015
Delivery Units,Adults and Communities,Other Agencies - Third Party P,30094028,EAST SUSSEX COUNTY COUNCIL,488.8,16/10/2015
Delivery Units,Adults and Communities,Other Agencies - Third Party P,30094024,EAST SUSSEX COUNTY COUNCIL,549.9,01/10/2015
Delivery Units,Adults and Communities,Other Agencies - Third Party P,30095885,EASTSIDE HOUSE RESIDENTIAL CARE HOM,"2,001.92",14/10/2015
Delivery Units,Adults and Communities,Other Agencies - Third Party P,30097169,ELEANOR PALMER TRUST NO 2 A/C.,"6,006.11",22/10/2015
Delivery Units,Adults and Communities,Other Agencies - Third Party P,30097444,ELEANOR PALMER TRUST NO 2 A/C.,"18,486.26",23/10/2015
Delivery Units,Adults and Communities,Other Agencies - Third Party P,30097722,ELIZABETH FITZROY SUPPORT,-356.28,27/10/2015
Delivery Units,Adults and Communities,Other Agencies - Third Party P,30097724,ELIZABETH FITZROY SUPPORT,-356.28,27/10/2015
Delivery Units,Adults and Communities,Other Agencies - Third Party P,30097749,ELIZABETH FITZROY SUPPORT,-356.28,27/10/2015
Delivery Units,Adults and Communities,Other Agencies - Third Party P,30097751,ELIZABETH FITZROY SUPPORT,-356.28,27/10/2015
Delivery Units,Adults and Communities,Other Agencies - Third Party P,30095063,ELIZABETH FITZROY SUPPORT,-344.79,07/10/2015
Delivery Units,Adults and Communities,Other Agencies - Third Party P,30095091,ELIZABETH FITZROY SUPPORT,-344.79,07/10/2015
Delivery Units,Adults and Communities,Other Agencies - Third Party P,30094716,ELIZABETH HOUSE,"2,340.04",02/10/2015
Delivery Units,Adults and Communities,Other Agencies - Third Party P,30095887,ELM PARK LODGE,-902.14,14/10/2015
Delivery Units,Adults and Communities,Other Agencies - Third Party P,30095516,ELM PARK LODGE,-541.29,09/10/2015
Delivery Units,Adults and Communities,Other Agencies - Third Party P,30095558,ELM PARK LODGE,-541.29,09/10/2015
Delivery Units,Adults and Communities,Other Agencies - Third Party P,30095527,ELM PARK LODGE,"2,035.46",09/10/2015
Delivery Units,Adults and Communities,Other Agencies - Third Party P,30095557,ELM PARK LODGE,"2,035.46",09/10/2015
Delivery Units,Adults and Communities,Other Agencies - Third Party P,30095529,ELM PARK LODGE,"2,092.11",09/10/2015
Delivery Units,Adults and Communities,Other Agencies - Third Party P,30095515,ELM PARK LODGE,"3,064.29",09/10/2015
Delivery Units,Adults and Communities,Other Agencies - Third Party P,30095533,ELM PARK LODGE,"3,107.14",09/10/2015
Delivery Units,Adults and Communities,Other Agencies - Third Party P,30095514,ELM PARK LODGE,"3,192.86",09/10/2015
Delivery Units,Adults and Communities,Other Agencies - Third Party P,30097824,ELM PARK LODGE,"3,278.57",27/10/2015
Delivery Units,Adults and Communities,Other Agencies - Third Party P,30095869,ELM PARK LODGE,"3,299.29",14/10/2015
Delivery Units,Adults and Communities,Other Agencies - Third Party P,30095528,ELM PARK LODGE,"3,321.43",09/10/2015
Delivery Units,Adults and Communities,Other Agencies - Third Party P,30095551,ELM PARK LODGE,"3,321.43",09/10/2015
Delivery Units,Adults and Communities,Other Agencies - Third Party P,30095559,ELM PARK LODGE,"3,344.14",09/10/2015
Delivery Units,Adults and Communities,Other Agencies - Third Party P,30095518,ELM PARK LODGE,"3,372.39",09/10/2015
Delivery Units,Adults and Communities,Other Agencies - Third Party P,30095889,ELM PARK LODGE,"3,392.43",14/10/2015
Delivery Units,Adults and Communities,Other Agencies - Third Party P,30095517,ELM PARK LODGE,"3,407.14",09/10/2015
Delivery Units,Adults and Communities,Other Agencies - Third Party P,30095526,ELM PARK LODGE,"3,496.33",09/10/2015
Delivery Units,Adults and Communities,Other Agencies - Third Party P,30095562,ELM PARK LODGE,"3,496.33",09/10/2015
Delivery Units,Adults and Communities,Other Agencies - Third Party P,30095886,ELM PARK LODGE,"3,574.86",14/10/2015
Delivery Units,Adults and Communities,Other Agencies - Third Party P,30095932,ELM PARK LODGE,"4,941.57",14/10/2015
Delivery Units,Adults and Communities,Other Agencies - Third Party P,30097511,EMMAUS HOUSE,"2,184.04",23/10/2015
Delivery Units,Adults and Communities,Other Agencies - Third Party P,30094889,ENABLE U SENSORY SUPPORT LTD,240,05/10/2015
Delivery Units,Adults and Communities,Other Agencies - Third Party P,30094890,ENABLE U SENSORY SUPPORT LTD,240,05/10/2015
Delivery Units,Adults and Communities,Other Agencies - Third Party P,30094891,ENABLE U SENSORY SUPPORT LTD,240,05/10/2015
Delivery Units,Adults and Communities,Other Agencies - Third Party P,30095670,EVE HERSOV & CO,196.5,13/10/2015
Delivery Units,Adults and Communities,Other Agencies - Third Party P,30095029,FERNBANK NURSING HOME.,673.2,06/10/2015
Delivery Units,Adults and Communities,Other Agencies - Third Party P,30094628,FERNBANK NURSING HOME.,"2,244.00",02/10/2015
Delivery Units,Adults and Communities,Other Agencies - Third Party P,30094629,FERNBANK NURSING HOME.,"2,244.00",02/10/2015
Delivery Units,Adults and Communities,Other Agencies - Third Party P,30094630,FERNBANK NURSING HOME.,"2,244.00",02/10/2015
Delivery Units,Adults and Communities,Other Agencies - Third Party P,30094631,FERNBANK NURSING HOME.,"2,244.00",02/10/2015
Delivery Units,Adults and Communities,Other Agencies - Third Party P,30094632,FERNBANK NURSING HOME.,"2,244.00",02/10/2015
Delivery Units,Adults and Communities,Other Agencies - Third Party P,30094633,FERNBANK NURSING HOME.,"2,244.00",02/10/2015
Delivery Units,Adults and Communities,Other Agencies - Third Party P,30094634,FERNBANK NURSING HOME.,"2,244.00",02/10/2015
Delivery Units,Adults and Communities,Other Agencies - Third Party P,30094635,FERNBANK NURSING HOME.,"2,487.60",02/10/2015
Delivery Units,Adults and Communities,Other Agencies - Third Party P,30097755,FINBOND LIMITED,"2,216.41",27/10/2015
Delivery Units,Adults and Communities,Other Agencies - Third Party P,30094626,FINBOND LIMITED,"2,340.04",02/10/2015
Delivery Units,Adults and Communities,Other Agencies - Third Party P,30097752,FINBOND LIMITED,"2,418.04",27/10/2015
Delivery Units,Adults and Communities,Other Agencies - Third Party P,30097754,FINBOND LIMITED,"2,418.04",27/10/2015
Delivery Units,Adults and Communities,Other Agencies - Third Party P,30094627,FINBOND LIMITED,"2,571.43",02/10/2015
Delivery Units,Adults and Communities,Other Agencies - Third Party P,30097340,FINBOND LIMITED,"2,571.43",22/10/2015
Delivery Units,Adults and Communities,Other Agencies - Third Party P,30097753,FINBOND LIMITED,"2,657.14",27/10/2015
Delivery Units,Adults and Communities,Other Agencies - Third Party P,30097341,FINBOND LIMITED,"4,758.09",22/10/2015
Delivery Units,Adults and Communities,Other Agencies - Third Party P,30095534,FLAGSWAN TWO LTD,"2,464.29",09/10/2015
Delivery Units,Adults and Communities,Other Agencies - Third Party P,30094374,FOUR SEASONS 2000 LTD,"1,787.43",02/10/2015
Delivery Units,Adults and Communities,Other Agencies - Third Party P,30094375,FOUR SEASONS 2000 LTD,"2,001.92",02/10/2015
Delivery Units,Adults and Communities,Other Agencies - Third Party P,30094376,FOUR SEASONS 2000 LTD,"2,001.92",02/10/2015
Delivery Units,Adults and Communities,Other Agencies - Third Party P,30094377,FOUR SEASONS 2000 LTD,"2,001.92",02/10/2015
Delivery Units,Adults and Communities,Other Agencies - Third Party P,30096178,FOUR SEASONS 2000 LTD,"2,001.92",16/10/2015
Delivery Units,Adults and Communities,Other Agencies - Third Party P,30097397,FOUR SEASONS HEALTH CARE,904.89,22/10/2015
Delivery Units,Adults and Communities,Other Agencies - Third Party P,30097398,FOUR SEASONS HEALTH CARE,"1,340.79",22/10/2015
Delivery Units,Adults and Communities,Other Agencies - Third Party P,30096183,FOUR SEASONS HEALTH CARE,"1,409.74",16/10/2015
Delivery Units,Adults and Communities,Other Agencies - Third Party P,30096094,FOUR SEASONS HEALTH CARE,"2,085.68",15/10/2015
Delivery Units,Adults and Communities,Other Agencies - Third Party P,30097399,FOUR SEASONS HEALTH CARE,"2,085.68",22/10/2015
Delivery Units,Adults and Communities,Other Agencies - Third Party P,30097400,FOUR SEASONS HEALTH CARE,"2,085.68",22/10/2015
Delivery Units,Adults and Communities,Other Agencies - Third Party P,30097404,FOUR SEASONS HEALTH CARE,"2,085.68",22/10/2015
Delivery Units,Adults and Communities,Other Agencies - Third Party P,30096095,FOUR SEASONS HEALTH CARE,"2,090.08",15/10/2015
Delivery Units,Adults and Communities,Other Agencies - Third Party P,30097405,FOUR SEASONS HEALTH CARE,"2,090.08",22/10/2015
Delivery Units,Adults and Communities,Other Agencies - Third Party P,30097401,FOUR SEASONS HEALTH CARE,"2,123.48",22/10/2015
Delivery Units,Adults and Communities,Other Agencies - Third Party P,30097403,FOUR SEASONS HEALTH CARE,"2,313.08",22/10/2015
Delivery Units,Adults and Communities,Other Agencies - Third Party P,30097406,FOUR SEASONS HEALTH CARE,"2,313.08",22/10/2015
Delivery Units,Adults and Communities,Other Agencies - Third Party P,30096093,FOUR SEASONS HEALTH CARE,"2,321.92",15/10/2015
Delivery Units,Adults and Communities,Other Agencies - Third Party P,30097407,FOUR SEASONS HEALTH CARE,"2,321.92",22/10/2015
Delivery Units,Adults and Communities,Other Agencies - Third Party P,30096092,FOUR SEASONS HEALTH CARE,"2,533.68",15/10/2015
Delivery Units,Adults and Communities,Other Agencies - Third Party P,30097402,FOUR SEASONS HEALTH CARE,"2,571.48",22/10/2015
Delivery Units,Adults and Communities,Other Agencies - Third Party P,30096091,FOUR SEASONS HEALTH CARE,"2,761.08",15/10/2015
Delivery Units,Adults and Communities,Other Agencies - Third Party P,30097177,FOUR SEASONS HEALTH CARE (NO.4) LTD,"2,004.00",22/10/2015
Delivery Units,Adults and Communities,Other Agencies - Third Party P,30095561,FREEWAYS TRUST LIMITED,829.8,23/10/2015
Delivery Units,Adults and Communities,Other Agencies - Third Party P,30095560,FREEWAYS TRUST LIMITED,"2,079.64",23/10/2015
Delivery Units,Adults and Communities,Other Agencies - Third Party P,30094895,FREMANTLE TRUST,"-2,982.00",05/10/2015
Delivery Units,Adults and Communities,Other Agencies - Third Party P,30097915,FREMANTLE TRUST,"-1,704.20",29/10/2015
Delivery Units,Adults and Communities,Other Agencies - Third Party P,30094368,FREMANTLE TRUST,"1,392.86",02/10/2015
Delivery Units,Adults and Communities,Other Agencies - Third Party P,30094387,FREMANTLE TRUST,"1,525.20",02/10/2015
Delivery Units,Adults and Communities,Other Agencies - Third Party P,30094380,FREMANTLE TRUST,"1,723.68",02/10/2015
Delivery Units,Adults and Communities,Other Agencies - Third Party P,30095509,FREMANTLE TRUST,"1,973.29",09/10/2015
Delivery Units,Adults and Communities,Other Agencies - Third Party P,30094388,FREMANTLE TRUST,"2,274.44",02/10/2015
Delivery Units,Adults and Communities,Other Agencies - Third Party P,30094370,FREMANTLE TRUST,"2,908.00",02/10/2015
Delivery Units,Adults and Communities,Other Agencies - Third Party P,30095510,FREMANTLE TRUST,"2,908.00",09/10/2015
Delivery Units,Adults and Communities,Other Agencies - Third Party P,30095511,FREMANTLE TRUST,"2,908.00",09/10/2015
Delivery Units,Adults and Communities,Other Agencies - Third Party P,30095512,FREMANTLE TRUST,"2,908.00",09/10/2015
Delivery Units,Adults and Communities,Other Agencies - Third Party P,30095513,FREMANTLE TRUST,"2,908.00",09/10/2015
Delivery Units,Adults and Communities,Other Agencies - Third Party P,30097479,FREMANTLE TRUST,"2,908.00",23/10/2015
Delivery Units,Adults and Communities,Other Agencies - Third Party P,30094369,FREMANTLE TRUST,"3,000.00",02/10/2015
Delivery Units,Adults and Communities,Other Agencies - Third Party P,30094367,FREMANTLE TRUST,"3,052.00",02/10/2015
Delivery Units,Adults and Communities,Other Agencies - Third Party P,30094371,FREMANTLE TRUST,"4,569.71",02/10/2015
Delivery Units,Adults and Communities,Other Agencies - Third Party P,30094379,FREMANTLE TRUST,"8,620.14",02/10/2015
Delivery Units,Adults and Communities,Other Agencies - Third Party P,30094893,FREMANTLE TRUST,"15,046.18",05/10/2015
Delivery Units,Adults and Communities,Other Agencies - Third Party P,30097914,FREMANTLE TRUST,"15,529.98",29/10/2015
Delivery Units,Adults and Communities,Other Agencies - Third Party P,30094894,FREMANTLE TRUST,"35,123.88",05/10/2015
Delivery Units,Adults and Communities,Other Agencies - Third Party P,30097916,FREMANTLE TRUST,"39,913.50",29/10/2015
Delivery Units,Adults and Communities,Other Agencies - Third Party P,30094591,FRIARY LODGE,"2,144.91",02/10/2015
Delivery Units,Adults and Communities,Other Agencies - Third Party P,30093962,FRIARY LODGE,"2,216.41",02/10/2015
Delivery Units,Adults and Communities,Other Agencies - Third Party P,30094586,FRIARY LODGE,"2,340.04",02/10/2015
Delivery Units,Adults and Communities,Other Agencies - Third Party P,30094617,FRIARY LODGE,"2,340.04",02/10/2015
Delivery Units,Adults and Communities,Other Agencies - Third Party P,30094623,FRIARY LODGE,"2,340.04",02/10/2015
Delivery Units,Adults and Communities,Other Agencies - Third Party P,30093960,FRIARY LODGE,"2,418.04",02/10/2015
Delivery Units,Adults and Communities,Other Agencies - Third Party P,30093988,FRIARY LODGE,"2,418.04",02/10/2015
Delivery Units,Adults and Communities,Other Agencies - Third Party P,30093997,FRIARY LODGE,"2,418.04",02/10/2015
Delivery Units,Adults and Communities,Other Agencies - Third Party P,30095180,FRIERN RESIDENTIAL CARE HOME,-541.29,07/10/2015
Delivery Units,Adults and Communities,Other Agencies - Third Party P,30095203,FRIERN RESIDENTIAL CARE HOME,-541.29,07/10/2015
Delivery Units,Adults and Communities,Other Agencies - Third Party P,30095252,FRIERN RESIDENTIAL CARE HOME,-541.29,07/10/2015
Delivery Units,Adults and Communities,Other Agencies - Third Party P,30095235,FRIERN RESIDENTIAL CARE HOME,-392.57,07/10/2015
Delivery Units,Adults and Communities,Other Agencies - Third Party P,30095212,FRIERN RESIDENTIAL CARE HOME,-344.79,07/10/2015
Delivery Units,Adults and Communities,Other Agencies - Third Party P,30095179,FRIERN RESIDENTIAL CARE HOME,"1,219.72",07/10/2015
Delivery Units,Adults and Communities,Other Agencies - Third Party P,30095234,FRIERN RESIDENTIAL CARE HOME,"1,322.65",07/10/2015
Delivery Units,Adults and Communities,Other Agencies - Third Party P,30095159,FRIERN RESIDENTIAL CARE HOME,"2,035.46",07/10/2015
Delivery Units,Adults and Communities,Other Agencies - Third Party P,30095211,FRIERN RESIDENTIAL CARE HOME,"2,035.46",07/10/2015
Delivery Units,Adults and Communities,Other Agencies - Third Party P,30094373,FRIERN RESIDENTIAL CARE HOME,"2,103.31",02/10/2015
Delivery Units,Adults and Communities,Other Agencies - Third Party P,30095202,FRIERN RESIDENTIAL CARE HOME,"2,144.92",07/10/2015
Delivery Units,Adults and Communities,Other Agencies - Third Party P,30095251,FRIERN RESIDENTIAL CARE HOME,"2,144.92",07/10/2015
Delivery Units,Adults and Communities,Other Agencies - Third Party P,30095162,FRIERN RESIDENTIAL CARE HOME,"3,857.14",07/10/2015
Delivery Units,Adults and Communities,Other Agencies - Third Party P,30096182,GENTLE HANDS CARE AGENCY,"1,316.00",16/10/2015
Delivery Units,Adults and Communities,Other Agencies - Third Party P,30097413,GLEBELANDS,"12,000.00",23/10/2015
Delivery Units,Adults and Communities,Other Agencies - Third Party P,30095210,GLENHOLME PSYCHIATRIC AFTER CARE HO,"3,857.57",07/10/2015
Delivery Units,Adults and Communities,Other Agencies - Third Party P,30095171,GLENHOLME PSYCHIATRIC AFTER CARE HO,"3,964.89",07/10/2015
Delivery Units,Adults and Communities,Other Agencies - Third Party P,30095892,GLENHOLME PSYCHIATRIC AFTER CARE HO,"3,986.16",14/10/2015
Delivery Units,Adults and Communities,Other Agencies - Third Party P,30095257,GLENHOLME PSYCHIATRIC AFTER CARE HO,"4,071.43",07/10/2015
Delivery Units,Adults and Communities,Other Agencies - Third Party P,30095874,GLENHOLME PSYCHIATRIC AFTER CARE HO,"4,097.05",14/10/2015
Delivery Units,Adults and Communities,Other Agencies - Third Party P,30095937,GLENHOLME PSYCHIATRIC AFTER CARE HO,"4,207.14",14/10/2015
Delivery Units,Adults and Communities,Other Agencies - Third Party P,30094603,GLOUCESTERSHIRE GROUP HOMES,-796.76,02/10/2015
Delivery Units,Adults and Communities,Other Agencies - Third Party P,30094602,GLOUCESTERSHIRE GROUP HOMES,"4,054.03",02/10/2015
Delivery Units,Adults and Communities,Other Agencies - Third Party P,30096044,H.C.S. (ENFIELD) LTD,-356.28,15/10/2015
Delivery Units,Adults and Communities,Other Agencies - Third Party P,30096042,H.C.S. (ENFIELD) LTD,-344.79,15/10/2015
Delivery Units,Adults and Communities,Other Agencies - Third Party P,30096061,H.C.S. (ENFIELD) LTD,-2.53,15/10/2015
Delivery Units,Adults and Communities,Other Agencies - Third Party P,30096062,H.C.S. (ENFIELD) LTD,-2.45,15/10/2015
